Workbook

Sheet DB
A1: # | B1: α/α | C1: Α.Μ. | D1: Ονοματεπώνυμο | E1: Σύλλογος | F1: Βαθμοί | G1: Έτος | H1: Πόλη1 | I1: Κτγ1
A2: 1 | B2: =IF(H2&I2=H1&I1,B1+1,1) -> 1 | C2: 33545 | D2: =IF($C2>0,VLOOKUP($C2,Μητρώο!$A:$F,3,FALSE),"") -> ΛΥΜΠΕΡΗΣ ΑΡΗΣ-ΠΑΝΑΓΙΩΤΗΣ | E2: =IF($C2>0,VLOOKUP($C2,Μητρώο!$A:$F,5,FALSE),"") -> ΠΕΥΚΗ Γ.ΚΑΛΟΒΕΛΩΝΗΣ | F2: =IF(COUNTIF(Rankings!$B:$B,RIGHT($I2,2)&"-"&$C2)>0,IF($C2>0,VLOOKUP(RIGHT($I2,2)&"-"&$C2,Rankings!$B:$H,7,FALSE),""),0) -> 41.52781356 | G2: =IF($C2>0,VLOOKUP($C2,Μητρώο!$A:$F,4,FALSE),"") -> 2004 | H2: ΑΘΗ | I2: b12
A3: =A2+1 -> 2 | B3: =IF(H3&I3=H2&I2,B2+1,1) -> 2 | C3: 34959 | D3: =IF($C3>0,VLOOKUP($C3,Μητρώο!$A:$F,3,FALSE),"") -> ΚΟΥΑΡΤΑ ΣΤΕΦΑΝΟΣ-ΜΗΝΑΣ | E3: =IF($C3>0,VLOOKUP($C3,Μητρώο!$A:$F,5,FALSE),"") -> Α.Ο.Α.ΑΤΤΙΚΟΣ ΗΛΙΟΣ | F3: =IF(COUNTIF(Rankings!$B:$B,RIGHT($I3,2)&"-"&$C3)>0,IF($C3>0,VLOOKUP(RIGHT($I3,2)&"-"&$C3,Rankings!$B:$H,7,FALSE),""),0) -> 40.50912973 | G3: =IF($C3>0,VLOOKUP($C3,Μητρώο!$A:$F,4,FALSE),"") -> 2003 | H3: ΑΘΗ | I3: b12
A4: 2 | B4: 3 | C4: 34913 | D4: =IF($C4>0,VLOOKUP($C4,Μητρώο!$A:$F,3,FALSE),"") -> ΤΣΕΚΟΥΡΑΣ ΠΑΝΑΓΙΩΤΗΣ | E4: =IF($C4>0,VLOOKUP($C4,Μητρώο!$A:$F,5,FALSE),"") -> ΠΕΥΚΗ Γ.ΚΑΛΟΒΕΛΩΝΗΣ | F4: =IF(COUNTIF(Rankings!$B:$B,RIGHT($I4,2)&"-"&$C4)>0,IF($C4>0,VLOOKUP(RIGHT($I4,2)&"-"&$C4,Rankings!$B:$H,7,FALSE),""),0) -> 40.02356357 | G4: =IF($C4>0,VLOOKUP($C4,Μητρώο!$A:$F,4,FALSE),"") -> 2004 | H4: ΑΘΗ | I4: b12
A5: =A4+1 -> 3 | B5: 4 | C5: 35508 | D5: =IF($C5>0,VLOOKUP($C5,Μητρώο!$A:$F,3,FALSE),"") -> ΑΝΔΡΩΝΗΣ ΑΛΕΞΑΝΔΡΟΣ | E5: =IF($C5>0,VLOOKUP($C5,Μητρώο!$A:$F,5,FALSE),"") -> Ο.Α.ΑΓΙΑΣ ΠΑΡΑΣΚΕΥΗΣ | F5: =IF(COUNTIF(Rankings!$B:$B,RIGHT($I5,2)&"-"&$C5)>0,IF($C5>0,VLOOKUP(RIGHT($I5,2)&"-"&$C5,Rankings!$B:$H,7,FALSE),""),0) -> 30.01573713 | G5: =IF($C5>0,VLOOKUP($C5,Μητρώο!$A:$F,4,FALSE),"") -> 2003 | H5: ΑΘΗ | I5: b12
A6: 3 | B6: 5 | C6: 33651 | D6: =IF($C6>0,VLOOKUP($C6,Μητρώο!$A:$F,3,FALSE),"") -> ΧΑϊΔΕΜΕΝΟΣ ΓΕΩΡΓΙΟΣ | E6: =IF($C6>0,VLOOKUP($C6,Μητρώο!$A:$F,5,FALSE),"") -> ΠΕΥΚΗ Γ.ΚΑΛΟΒΕΛΩΝΗΣ | F6: =IF(COUNTIF(Rankings!$B:$B,RIGHT($I6,2)&"-"&$C6)>0,IF($C6>0,VLOOKUP(RIGHT($I6,2)&"-"&$C6,Rankings!$B:$H,7,FALSE),""),0) -> 29.01478073 | G6: =IF($C6>0,VLOOKUP($C6,Μητρώο!$A:$F,4,FALSE),"") -> 2004 | H6: ΑΘΗ | I6: b12
A7: =A6+1 -> 4 | B7: 6 | C7: 34659 | D7: =IF($C7>0,VLOOKUP($C7,Μητρώο!$A:$F,3,FALSE),"") -> ΜΠΑΡΜΠΑΡΗΣ ΠΑΝΤΕΛΗΣ | E7: =IF($C7>0,VLOOKUP($C7,Μητρώο!$A:$F,5,FALSE),"") -> Α.Κ.Α.ΜΑΡΑΘΩΝΑ | F7: =IF(COUNTIF(Rankings!$B:$B,RIGHT($I7,2)&"-"&$C7)>0,IF($C7>0,VLOOKUP(RIGHT($I7,2)&"-"&$C7,Rankings!$B:$H,7,FALSE),""),0) -> 27.01311935 | G7: =IF($C7>0,VLOOKUP($C7,Μητρώο!$A:$F,4,FALSE),"") -> 2004 | H7: ΑΘΗ | I7: b12
A8: 4 | B8: 7 | C8: 34985 | D8: =IF($C8>0,VLOOKUP($C8,Μητρώο!$A:$F,3,FALSE),"") -> ΝΕΪΣ ΜΑΡΚ-ΠΗΤΕΡ | E8: =IF($C8>0,VLOOKUP($C8,Μητρώο!$A:$F,5,FALSE),"") -> Α.Ο.ΚΗΦΙΣΙΑΣ | F8: =IF(COUNTIF(Rankings!$B:$B,RIGHT($I8,2)&"-"&$C8)>0,IF($C8>0,VLOOKUP(RIGHT($I8,2)&"-"&$C8,Rankings!$B:$H,7,FALSE),""),0) -> 26.52489116 | G8: =IF($C8>0,VLOOKUP($C8,Μητρώο!$A:$F,4,FALSE),"") -> 2003 | H8: ΑΘΗ | I8: b12
A9: =A8+1 -> 5 | B9: 8 | C9: 35934 | D9: =IF($C9>0,VLOOKUP($C9,Μητρώο!$A:$F,3,FALSE),"") -> ΜΠΡΑΒΟΣ ΗΛΙΑΣ | E9: =IF($C9>0,VLOOKUP($C9,Μητρώο!$A:$F,5,FALSE),"") -> Ο.Α.ΑΘΗΝΩΝ | F9: =IF(COUNTIF(Rankings!$B:$B,RIGHT($I9,2)&"-"&$C9)>0,IF($C9>0,VLOOKUP(RIGHT($I9,2)&"-"&$C9,Rankings!$B:$H,7,FALSE),""),0) -> 22.50100681 | G9: =IF($C9>0,VLOOKUP($C9,Μητρώο!$A:$F,4,FALSE),"") -> 2004 | H9: ΑΘΗ | I9: b12
A10: 5 | B10: 9 | C10: 34052 | D10: =IF($C10>0,VLOOKUP($C10,Μητρώο!$A:$F,3,FALSE),"") -> ΧΟΥΒΑΡΔΑΣ ΒΑΣΙΛΗΣ | E10: =IF($C10>0,VLOOKUP($C10,Μητρώο!$A:$F,5,FALSE),"") -> Ο.Α.ΑΘΗΝΩΝ | F10: =IF(COUNTIF(Rankings!$B:$B,RIGHT($I10,2)&"-"&$C10)>0,IF($C10>0,VLOOKUP(RIGHT($I10,2)&"-"&$C10,Rankings!$B:$H,7,FALSE),""),0) -> 18.51492992 | G10: =IF($C10>0,VLOOKUP($C10,Μητρώο!$A:$F,4,FALSE),"") -> 2004 | H10: ΑΘΗ | I10: b12
A11: =A10+1 -> 6 | B11: 10 | C11: 35878 | D11: =IF($C11>0,VLOOKUP($C11,Μητρώο!$A:$F,3,FALSE),"") -> ΧΡΥΣΟΣΤΟΜΗΣ ΓΙΩΡΓΟΣ | E11: =IF($C11>0,VLOOKUP($C11,Μητρώο!$A:$F,5,FALSE),"") -> Σ.Α.ΡΑΦΗΝΑΣ | F11: =IF(COUNTIF(Rankings!$B:$B,RIGHT($I11,2)&"-"&$C11)>0,IF($C11>0,VLOOKUP(RIGHT($I11,2)&"-"&$C11,Rankings!$B:$H,7,FALSE),""),0) -> 18.02585536 | G11: =IF($C11>0,VLOOKUP($C11,Μητρώο!$A:$F,4,FALSE),"") -> 2004 | H11: ΑΘΗ | I11: b12
A12: 6 | B12: 11 | C12: 33652 | D12: =IF($C12>0,VLOOKUP($C12,Μητρώο!$A:$F,3,FALSE),"") -> ΚΡΙΕΖΗΣ ΑΝΤΩΝΗΣ | E12: =IF($C12>0,VLOOKUP($C12,Μητρώο!$A:$F,5,FALSE),"") -> ΠΕΥΚΗ Γ.ΚΑΛΟΒΕΛΩΝΗΣ | F12: =IF(COUNTIF(Rankings!$B:$B,RIGHT($I12,2)&"-"&$C12)>0,IF($C12>0,VLOOKUP(RIGHT($I12,2)&"-"&$C12,Rankings!$B:$H,7,FALSE),""),0) -> 17.5297735 | G12: =IF($C12>0,VLOOKUP($C12,Μητρώο!$A:$F,4,FALSE),"") -> 2004 | H12: ΑΘΗ | I12: b12
A13: =A12+1 -> 7 | B13: 12 | C13: 32188 | D13: =IF($C13>0,VLOOKUP($C13,Μητρώο!$A:$F,3,FALSE),"") -> ΚΟΚΚΟΡΗΣ ΓΕΩΡΓΙΟΣ | E13: =IF($C13>0,VLOOKUP($C13,Μητρώο!$A:$F,5,FALSE),"") -> Ο.Α.ΣΥΡΟΥ | F13: =IF(COUNTIF(Rankings!$B:$B,RIGHT($I13,2)&"-"&$C13)>0,IF($C13>0,VLOOKUP(RIGHT($I13,2)&"-"&$C13,Rankings!$B:$H,7,FALSE),""),0) -> 15.53825044 | G13: =IF($C13>0,VLOOKUP($C13,Μητρώο!$A:$F,4,FALSE),"") -> 2003 | H13: ΑΘΗ | I13: b12
A14: 7 | B14: 13 | C14: 34701 | D14: =IF($C14>0,VLOOKUP($C14,Μητρώο!$A:$F,3,FALSE),"") -> ΝΙΚΟΛΕΤΟΣ ΝΙΚΟΛΑΟΣ | E14: =IF($C14>0,VLOOKUP($C14,Μητρώο!$A:$F,5,FALSE),"") -> Σ.Α.ΡΑΦΗΝΑΣ | F14: =IF(COUNTIF(Rankings!$B:$B,RIGHT($I14,2)&"-"&$C14)>0,IF($C14>0,VLOOKUP(RIGHT($I14,2)&"-"&$C14,Rankings!$B:$H,7,FALSE),""),0) -> 13.01811951 | G14: =IF($C14>0,VLOOKUP($C14,Μητρώο!$A:$F,4,FALSE),"") -> 2004 | H14: ΑΘΗ | I14: b12
A15: =A14+1 -> 8 | B15: 14 | C15: 36772 | D15: =IF($C15>0,VLOOKUP($C15,Μητρώο!$A:$F,3,FALSE),"") -> ΔΗΜΗΤΡΙΑΔΗΣ ΕΡΜΗΣ-ΑΘΑΝΑΣΙΟΣ | E15: =IF($C15>0,VLOOKUP($C15,Μητρώο!$A:$F,5,FALSE),"") -> Α.Ο.Α.ΑΤΤΙΚΟΣ ΗΛΙΟΣ | F15: =IF(COUNTIF(Rankings!$B:$B,RIGHT($I15,2)&"-"&$C15)>0,IF($C15>0,VLOOKUP(RIGHT($I15,2)&"-"&$C15,Rankings!$B:$H,7,FALSE),""),0) -> 8.018645895 | G15: =IF($C15>0,VLOOKUP($C15,Μητρώο!$A:$F,4,FALSE),"") -> 2004 | H15: ΑΘΗ | I15: b12
A16: 8 | B16: 15 | C16: 33934 | D16: =IF($C16>0,VLOOKUP($C16,Μητρώο!$A:$F,3,FALSE),"") -> ΖΑΛΟΚΩΣΤΑΣ ΔΗΜΗΤΡΙΟΣ | E16: =IF($C16>0,VLOOKUP($C16,Μητρώο!$A:$F,5,FALSE),"") -> Α.Σ.ΑΚΡΟΠΟΛΙΣ | F16: =IF(COUNTIF(Rankings!$B:$B,RIGHT($I16,2)&"-"&$C16)>0,IF($C16>0,VLOOKUP(RIGHT($I16,2)&"-"&$C16,Rankings!$B:$H,7,FALSE),""),0) -> 6.010517551 | G16: =IF($C16>0,VLOOKUP($C16,Μητρώο!$A:$F,4,FALSE),"") -> 2004 | H16: ΑΘΗ | I16: b12
A17: =A16+1 -> 9 | B17: 16 | C17: 34956 | D17: =IF($C17>0,VLOOKUP($C17,Μητρώο!$A:$F,3,FALSE),"") -> ΓΚΑΓΚΟΜΟΙΡΟΣ ΔΗΜΗΤΡΗΣ | E17: =IF($C17>0,VLOOKUP($C17,Μητρώο!$A:$F,5,FALSE),"") -> Α.Ο.Α.ΦΙΛΟΘΕΗΣ | F17: =IF(COUNTIF(Rankings!$B:$B,RIGHT($I17,2)&"-"&$C17)>0,IF($C17>0,VLOOKUP(RIGHT($I17,2)&"-"&$C17,Rankings!$B:$H,7,FALSE),""),0) -> 6.038344589 | G17: =IF($C17>0,VLOOKUP($C17,Μητρώο!$A:$F,4,FALSE),"") -> 2004 | H17: ΑΘΗ | I17: b12
A18: 9 | B18: 17 | C18: 35856 | D18: =IF($C18>0,VLOOKUP($C18,Μητρώο!$A:$F,3,FALSE),"") -> ΜΕΤΑΞΟΠΟΥΛΟΣ ΝΙΚΟΛΑΟΣ-ΧΡΗΣΤΟΣ | E18: =IF($C18>0,VLOOKUP($C18,Μητρώο!$A:$F,5,FALSE),"") -> Σ.Α.ΡΑΦΗΝΑΣ | F18: =IF(COUNTIF(Rankings!$B:$B,RIGHT($I18,2)&"-"&$C18)>0,IF($C18>0,VLOOKUP(RIGHT($I18,2)&"-"&$C18,Rankings!$B:$H,7,FALSE),""),0) -> 5.017861888 | G18: =IF($C18>0,VLOOKUP($C18,Μητρώο!$A:$F,4,FALSE),"") -> 2005 | H18: ΑΘΗ | I18: b12
A19: =A18+1 -> 10 | B19: 18 | C19: 35945 | D19: =IF($C19>0,VLOOKUP($C19,Μητρώο!$A:$F,3,FALSE),"") -> ΚΟΥΤΣΟΥΜΠΟΣ ΚΥΡΙΑΚΟΣ | E19: =IF($C19>0,VLOOKUP($C19,Μητρώο!$A:$F,5,FALSE),"") -> Α.Ο.Α.ΑΤΤΙΚΟΣ ΗΛΙΟΣ | F19: =IF(COUNTIF(Rankings!$B:$B,RIGHT($I19,2)&"-"&$C19)>0,IF($C19>0,VLOOKUP(RIGHT($I19,2)&"-"&$C19,Rankings!$B:$H,7,FALSE),""),0) -> 5.007668398 | G19: =IF($C19>0,VLOOKUP($C19,Μητρώο!$A:$F,4,FALSE),"") -> 2003 | H19: ΑΘΗ | I19: b12
A20: 10 | B20: 19 | C20: 34246 | D20: =IF($C20>0,VLOOKUP($C20,Μητρώο!$A:$F,3,FALSE),"") -> ΗΛΙΑΔΗΣ ΦΩΤΙΟΣ | E20: =IF($C20>0,VLOOKUP($C20,Μητρώο!$A:$F,5,FALSE),"") -> Α.Ε.ΠΟΡΤΟ ΡΑΦΤΗ | F20: =IF(COUNTIF(Rankings!$B:$B,RIGHT($I20,2)&"-"&$C20)>0,IF($C20>0,VLOOKUP(RIGHT($I20,2)&"-"&$C20,Rankings!$B:$H,7,FALSE),""),0) -> 4.032884131 | G20: =IF($C20>0,VLOOKUP($C20,Μητρώο!$A:$F,4,FALSE),"") -> 2004 | H20: ΑΘΗ | I20: b12
A21: =A20+1 -> 11 | B21: 20 | C21: 37252 | D21: =IF($C21>0,VLOOKUP($C21,Μητρώο!$A:$F,3,FALSE),"") -> ΜΕΤΑΞΑΣ ΓΕΩΡΓΙΟΣ | E21: =IF($C21>0,VLOOKUP($C21,Μητρώο!$A:$F,5,FALSE),"") -> Α.Σ.ΚΟΛΛΕΓΙΟΥ ΝΤΕΡΗ | F21: =IF(COUNTIF(Rankings!$B:$B,RIGHT($I21,2)&"-"&$C21)>0,IF($C21>0,VLOOKUP(RIGHT($I21,2)&"-"&$C21,Rankings!$B:$H,7,FALSE),""),0) -> 3.03370411 | G21: =IF($C21>0,VLOOKUP($C21,Μητρώο!$A:$F,4,FALSE),"") -> 2004 | H21: ΑΘΗ | I21: b12
A22: 11 | B22: 21 | C22: 37381 | D22: =IF($C22>0,VLOOKUP($C22,Μητρώο!$A:$F,3,FALSE),"") -> ΓΙΑΝΝΑΔΑΚΗΣ ΗΛΙΑΣ | E22: =IF($C22>0,VLOOKUP($C22,Μητρώο!$A:$F,5,FALSE),"") -> Α.Ο.ΒΑΡΗΣ ΑΝΑΓΥΡΟΥΣ | F22: =IF(COUNTIF(Rankings!$B:$B,RIGHT($I22,2)&"-"&$C22)>0,IF($C22>0,VLOOKUP(RIGHT($I22,2)&"-"&$C22,Rankings!$B:$H,7,FALSE),""),0) -> 3.037516569 | G22: =IF($C22>0,VLOOKUP($C22,Μητρώο!$A:$F,4,FALSE),"") -> 2003 | H22: ΑΘΗ | I22: b12
A23: =A22+1 -> 12 | B23: 22 | C23: 31275 | D23: =IF($C23>0,VLOOKUP($C23,Μητρώο!$A:$F,3,FALSE),"") -> ΒΗΛΑΡΑΣ ΠΑΥΛΟΣ | E23: =IF($C23>0,VLOOKUP($C23,Μητρώο!$A:$F,5,FALSE),"") -> Α.Σ.Ν.ΒΟΥΤΖΑ ΡΑΦΗΝΑΣ Η ΠΡΟΟΔΟΣ | F23: =IF(COUNTIF(Rankings!$B:$B,RIGHT($I23,2)&"-"&$C23)>0,IF($C23>0,VLOOKUP(RIGHT($I23,2)&"-"&$C23,Rankings!$B:$H,7,FALSE),""),0) -> 2.501764209 | G23: =IF($C23>0,VLOOKUP($C23,Μητρώο!$A:$F,4,FALSE),"") -> 2003 | H23: ΑΘΗ | I23: b12
A24: 12 | B24: 23 | C24: 37723 | D24: =IF($C24>0,VLOOKUP($C24,Μητρώο!$A:$F,3,FALSE),"") -> ΠΕΤΡΙΤΗΣ ΙΩΑΝΝΗΣ | E24: =IF($C24>0,VLOOKUP($C24,Μητρώο!$A:$F,5,FALSE),"") -> Σ.Α.ΡΑΦΗΝΑΣ | F24: =IF(COUNTIF(Rankings!$B:$B,RIGHT($I24,2)&"-"&$C24)>0,IF($C24>0,VLOOKUP(RIGHT($I24,2)&"-"&$C24,Rankings!$B:$H,7,FALSE),""),0) -> 2.527610868 | G24: =IF($C24>0,VLOOKUP($C24,Μητρώο!$A:$F,4,FALSE),"") -> 2004 | H24: ΑΘΗ | I24: b12
A25: =A24+1 -> 13 | B25: 24 | C25: 36605 | D25: =IF($C25>0,VLOOKUP($C25,Μητρώο!$A:$F,3,FALSE),"") -> ΛΑΓΟΥΔΗΣ ΘΕΟΔΩΡΟΣ | E25: =IF($C25>0,VLOOKUP($C25,Μητρώο!$A:$F,5,FALSE),"") -> Σ.Α.ΡΑΦΗΝΑΣ | F25: =IF(COUNTIF(Rankings!$B:$B,RIGHT($I25,2)&"-"&$C25)>0,IF($C25>0,VLOOKUP(RIGHT($I25,2)&"-"&$C25,Rankings!$B:$H,7,FALSE),""),0) -> 1.500132758 | G25: =IF($C25>0,VLOOKUP($C25,Μητρώο!$A:$F,4,FALSE),"") -> 2003 | H25: ΑΘΗ | I25: b12
A26: 13 | B26: 25 | C26: 32238 | D26: =IF($C26>0,VLOOKUP($C26,Μητρώο!$A:$F,3,FALSE),"") -> ΤΖΕΛΑΤΗΣ ΗΛΙΑΣ | E26: =IF($C26>0,VLOOKUP($C26,Μητρώο!$A:$F,5,FALSE),"") -> Α.Κ.Α.ΜΑΡΑΘΩΝΑ | F26: =IF(COUNTIF(Rankings!$B:$B,RIGHT($I26,2)&"-"&$C26)>0,IF($C26>0,VLOOKUP(RIGHT($I26,2)&"-"&$C26,Rankings!$B:$H,7,FALSE),""),0) -> 1.537067314 | G26: =IF($C26>0,VLOOKUP($C26,Μητρώο!$A:$F,4,FALSE),"") -> 2003 | H26: ΑΘΗ | I26: b12
A27: =A26+1 -> 14 | B27: 26 | C27: 90153 | D27: =IF($C27>0,VLOOKUP($C27,Μητρώο!$A:$F,3,FALSE),"") -> ΧΟΛΜΠΑΝ ΒΛΑΝΤΙΜΙΡ | E27: =IF($C27>0,VLOOKUP($C27,Μητρώο!$A:$F,5,FALSE),"") -> Ο.Α.ΑΘΗΝΩΝ | F27: =IF(COUNTIF(Rankings!$B:$B,RIGHT($I27,2)&"-"&$C27)>0,IF($C27>0,VLOOKUP(RIGHT($I27,2)&"-"&$C27,Rankings!$B:$H,7,FALSE),""),0) -> 1.500433145 | G27: =IF($C27>0,VLOOKUP($C27,Μητρώο!$A:$F,4,FALSE),"") -> 2005 | H27: ΑΘΗ | I27: b12
A28: 14 | B28: 27 | C28: 37526 | D28: =IF($C28>0,VLOOKUP($C28,Μητρώο!$A:$F,3,FALSE),"") -> ΚΕΧΑΓΙΑΣ ΤΡΙΑΝΤΑΦΥΛΛΟΣ-ΙΩΑΝΝΗΣ | E28: =IF($C28>0,VLOOKUP($C28,Μητρώο!$A:$F,5,FALSE),"") -> Α.Ο.Α.ΦΙΛΟΘΕΗΣ | F28: =IF(COUNTIF(Rankings!$B:$B,RIGHT($I28,2)&"-"&$C28)>0,IF($C28>0,VLOOKUP(RIGHT($I28,2)&"-"&$C28,Rankings!$B:$H,7,FALSE),""),0) -> 1.52159547 | G28: =IF($C28>0,VLOOKUP($C28,Μητρώο!$A:$F,4,FALSE),"") -> 2005 | H28: ΑΘΗ | I28: b12
A29: =A28+1 -> 15 | B29: 28 | C29: 35876 | D29: =IF($C29>0,VLOOKUP($C29,Μητρώο!$A:$F,3,FALSE),"") -> ΣΤΑΜΠΟΥΛΙΔΗΣ ΝΙΚΟΛΑΟΣ | E29: =IF($C29>0,VLOOKUP($C29,Μητρώο!$A:$F,5,FALSE),"") -> Σ.Α.ΡΑΦΗΝΑΣ | F29: =IF(COUNTIF(Rankings!$B:$B,RIGHT($I29,2)&"-"&$C29)>0,IF($C29>0,VLOOKUP(RIGHT($I29,2)&"-"&$C29,Rankings!$B:$H,7,FALSE),""),0) -> 1.003786809 | G29: =IF($C29>0,VLOOKUP($C29,Μητρώο!$A:$F,4,FALSE),"") -> 2005 | H29: ΑΘΗ | I29: b12
A30: 15 | B30: 29 | C30: 32048 | D30: =IF($C30>0,VLOOKUP($C30,Μητρώο!$A:$F,3,FALSE),"") -> ΠΟΛΥΔΩΡΟΣ ΚΩΝΣΤΑΝΤΙΝΟΣ | E30: =IF($C30>0,VLOOKUP($C30,Μητρώο!$A:$F,5,FALSE),"") -> Α.Ε.ΠΟΡΤΟ ΡΑΦΤΗ | F30: =IF(COUNTIF(Rankings!$B:$B,RIGHT($I30,2)&"-"&$C30)>0,IF($C30>0,VLOOKUP(RIGHT($I30,2)&"-"&$C30,Rankings!$B:$H,7,FALSE),""),0) -> 1.030216189 | G30: =IF($C30>0,VLOOKUP($C30,Μητρώο!$A:$F,4,FALSE),"") -> 2004 | H30: ΑΘΗ | I30: b12
A31: =A30+1 -> 16 | B31: 30 | C31: 37267 | D31: =IF($C31>0,VLOOKUP($C31,Μητρώο!$A:$F,3,FALSE),"") -> ΒΑΣΙΛΑΚΗΣ ΕΥΓΕΝΙΟΣ | E31: =IF($C31>0,VLOOKUP($C31,Μητρώο!$A:$F,5,FALSE),"") -> Α.Σ.Ν.ΒΟΥΤΖΑ ΡΑΦΗΝΑΣ Η ΠΡΟΟΔΟΣ | F31: =IF(COUNTIF(Rankings!$B:$B,RIGHT($I31,2)&"-"&$C31)>0,IF($C31>0,VLOOKUP(RIGHT($I31,2)&"-"&$C31,Rankings!$B:$H,7,FALSE),""),0) -> 1.01085669 | G31: =IF($C31>0,VLOOKUP($C31,Μητρώο!$A:$F,4,FALSE),"") -> 2005 | H31: ΑΘΗ | I31: b12
A32: 16 | B32: 31 | C32: 37258 | D32: =IF($C32>0,VLOOKUP($C32,Μητρώο!$A:$F,3,FALSE),"") -> ΣΤΥΛΙΑΝΟΣ ΠΕΤΡΟΣ | E32: =IF($C32>0,VLOOKUP($C32,Μητρώο!$A:$F,5,FALSE),"") -> Α.Σ.ΚΟΛΛΕΓΙΟΥ ΝΤΕΡΗ | F32: =IF(COUNTIF(Rankings!$B:$B,RIGHT($I32,2)&"-"&$C32)>0,IF($C32>0,VLOOKUP(RIGHT($I32,2)&"-"&$C32,Rankings!$B:$H,7,FALSE),""),0) -> 1.035874987 | G32: =IF($C32>0,VLOOKUP($C32,Μητρώο!$A:$F,4,FALSE),"") -> 2005 | H32: ΑΘΗ | I32: b12
A33: =A32+1 -> 17 | B33: =IF(H33&I33=H32&I32,B32+1,1) -> 32 | C33: 37924 | D33: =IF($C33>0,VLOOKUP($C33,Μητρώο!$A:$F,3,FALSE),"") -> ΓΟΥΤΑΣ ΔΗΜΗΤΡΙΟΣ | E33: =IF($C33>0,VLOOKUP($C33,Μητρώο!$A:$F,5,FALSE),"") -> Α.Ο.Α.ΦΙΛΟΘΕΗΣ | F33: =IF(COUNTIF(Rankings!$B:$B,RIGHT($I33,2)&"-"&$C33)>0,IF($C33>0,VLOOKUP(RIGHT($I33,2)&"-"&$C33,Rankings!$B:$H,7,FALSE),""),0) -> 0 | G33: =IF($C33>0,VLOOKUP($C33,Μητρώο!$A:$F,4,FALSE),"") -> 2003 | H33: ΑΘΗ | I33: b12
A34: 17 | B34: 1 | C34: 31272 | D34: =IF($C34>0,VLOOKUP($C34,Μητρώο!$A:$F,3,FALSE),"") -> ΣΤΑΝΕΛΛΟΣ ΜΙΧΑΗΛ | E34: =IF($C34>0,VLOOKUP($C34,Μητρώο!$A:$F,5,FALSE),"") -> Α.Ο.ΒΑΡΗΣ ΑΝΑΓΥΡΟΥΣ | F34: =IF(COUNTIF(Rankings!$B:$B,RIGHT($I34,2)&"-"&$C34)>0,IF($C34>0,VLOOKUP(RIGHT($I34,2)&"-"&$C34,Rankings!$B:$H,7,FALSE),""),0) -> 104.0203888 | G34: =IF($C34>0,VLOOKUP($C34,Μητρώο!$A:$F,4,FALSE),"") -> 2001 | H34: ΑΘΗ | I34: b14
A35: =A34+1 -> 18 | B35: 2 | C35: 33379 | D35: =IF($C35>0,VLOOKUP($C35,Μητρώο!$A:$F,3,FALSE),"") -> ΣΤΑΥΡΑΚΑΣ ΑΔΑΜΑΝΤΙΟΣ | E35: =IF($C35>0,VLOOKUP($C35,Μητρώο!$A:$F,5,FALSE),"") -> Α.Σ.ΑΚΡΟΠΟΛΙΣ | F35: =IF(COUNTIF(Rankings!$B:$B,RIGHT($I35,2)&"-"&$C35)>0,IF($C35>0,VLOOKUP(RIGHT($I35,2)&"-"&$C35,Rankings!$B:$H,7,FALSE),""),0) -> 88.01398955 | G35: =IF($C35>0,VLOOKUP($C35,Μητρώο!$A:$F,4,FALSE),"") -> 2003 | H35: ΑΘΗ | I35: b14
A36: 18 | B36: 3 | C36: 35131 | D36: =IF($C36>0,VLOOKUP($C36,Μητρώο!$A:$F,3,FALSE),"") -> ΣΑΚΕΛΛΑΡΙΔΗΣ ΣΤΕΦΑΝΟΣ | E36: =IF($C36>0,VLOOKUP($C36,Μητρώο!$A:$F,5,FALSE),"") -> Ο.Α.ΑΓΙΑΣ ΠΑΡΑΣΚΕΥΗΣ | F36: =IF(COUNTIF(Rankings!$B:$B,RIGHT($I36,2)&"-"&$C36)>0,IF($C36>0,VLOOKUP(RIGHT($I36,2)&"-"&$C36,Rankings!$B:$H,7,FALSE),""),0) -> 74.51289441 | G36: =IF($C36>0,VLOOKUP($C36,Μητρώο!$A:$F,4,FALSE),"") -> 2004 | H36: ΑΘΗ | I36: b14
A37: =A36+1 -> 19 | B37: 4 | C37: 29399 | D37: =IF($C37>0,VLOOKUP($C37,Μητρώο!$A:$F,3,FALSE),"") -> ΑΡΒΑΝΙΤΗΣ ΑΛΕΞΑΝΔΡΟΣ | E37: =IF($C37>0,VLOOKUP($C37,Μητρώο!$A:$F,5,FALSE),"") -> Α.Κ.Α.ΜΑΡΑΘΩΝΑ | F37: =IF(COUNTIF(Rankings!$B:$B,RIGHT($I37,2)&"-"&$C37)>0,IF($C37>0,VLOOKUP(RIGHT($I37,2)&"-"&$C37,Rankings!$B:$H,7,FALSE),""),0) -> 73.0143034 | G37: =IF($C37>0,VLOOKUP($C37,Μητρώο!$A:$F,4,FALSE),"") -> 2001 | H37: ΑΘΗ | I37: b14
A38: 19 | B38: 5 | C38: 31285 | D38: =IF($C38>0,VLOOKUP($C38,Μητρώο!$A:$F,3,FALSE),"") -> ΚΩΣΤΟΥΡΟΣ ΔΗΜΗΤΡΙΟΣ | E38: =IF($C38>0,VLOOKUP($C38,Μητρώο!$A:$F,5,FALSE),"") -> ΠΕΥΚΗ Γ.ΚΑΛΟΒΕΛΩΝΗΣ | F38: =IF(COUNTIF(Rankings!$B:$B,RIGHT($I38,2)&"-"&$C38)>0,IF($C38>0,VLOOKUP(RIGHT($I38,2)&"-"&$C38,Rankings!$B:$H,7,FALSE),""),0) -> 63.02473758 | G38: =IF($C38>0,VLOOKUP($C38,Μητρώο!$A:$F,4,FALSE),"") -> 2002 | H38: ΑΘΗ | I38: b14
A39: =A38+1 -> 20 | B39: 6 | C39: 33898 | D39: =IF($C39>0,VLOOKUP($C39,Μητρώο!$A:$F,3,FALSE),"") -> ΚΩΝΣΤΑΝΕΛΟΣ ΚΩΝΣΤΑΝΤΙΝΟΣ | E39: =IF($C39>0,VLOOKUP($C39,Μητρώο!$A:$F,5,FALSE),"") -> Α.Σ.ΑΚΡΟΠΟΛΙΣ | F39: =IF(COUNTIF(Rankings!$B:$B,RIGHT($I39,2)&"-"&$C39)>0,IF($C39>0,VLOOKUP(RIGHT($I39,2)&"-"&$C39,Rankings!$B:$H,7,FALSE),""),0) -> 46.0151485 | G39: =IF($C39>0,VLOOKUP($C39,Μητρώο!$A:$F,4,FALSE),"") -> 2003 | H39: ΑΘΗ | I39: b14
A40: 20 | B40: 7 | C40: 33919 | D40: =IF($C40>0,VLOOKUP($C40,Μητρώο!$A:$F,3,FALSE),"") -> ΚΑΒΑΛΛΙΕΡΟΣ ΑΛΕΞΙΟΣ | E40: =IF($C40>0,VLOOKUP($C40,Μητρώο!$A:$F,5,FALSE),"") -> Σ.Α.ΡΑΦΗΝΑΣ | F40: =IF(COUNTIF(Rankings!$B:$B,RIGHT($I40,2)&"-"&$C40)>0,IF($C40>0,VLOOKUP(RIGHT($I40,2)&"-"&$C40,Rankings!$B:$H,7,FALSE),""),0) -> 45.00236804 | G40: =IF($C40>0,VLOOKUP($C40,Μητρώο!$A:$F,4,FALSE),"") -> 2002 | H40: ΑΘΗ | I40: b14
A41: =A40+1 -> 21 | B41: 8 | C41: 34256 | D41: =IF($C41>0,VLOOKUP($C41,Μητρώο!$A:$F,3,FALSE),"") -> ΘΗΛΥΖΑΣ ΓΙΩΡΓΟΣ | E41: =IF($C41>0,VLOOKUP($C41,Μητρώο!$A:$F,5,FALSE),"") -> Ο.Α.ΑΘΗΝΩΝ | F41: =IF(COUNTIF(Rankings!$B:$B,RIGHT($I41,2)&"-"&$C41)>0,IF($C41>0,VLOOKUP(RIGHT($I41,2)&"-"&$C41,Rankings!$B:$H,7,FALSE),""),0) -> 35.03783861 | G41: =IF($C41>0,VLOOKUP($C41,Μητρώο!$A:$F,4,FALSE),"") -> 2001 | H41: ΑΘΗ | I41: b14
A42: 21 | B42: 9 | C42: 35647 | D42: =IF($C42>0,VLOOKUP($C42,Μητρώο!$A:$F,3,FALSE),"") -> ΑΓΓΟΥΡΗΣ ΚΩΝΣΤΑΝΤΙΝΟΣ | E42: =IF($C42>0,VLOOKUP($C42,Μητρώο!$A:$F,5,FALSE),"") -> Α.Ο.Α.ΑΤΤΙΚΟΣ ΗΛΙΟΣ | F42: =IF(COUNTIF(Rankings!$B:$B,RIGHT($I42,2)&"-"&$C42)>0,IF($C42>0,VLOOKUP(RIGHT($I42,2)&"-"&$C42,Rankings!$B:$H,7,FALSE),""),0) -> 35.0353392 | G42: =IF($C42>0,VLOOKUP($C42,Μητρώο!$A:$F,4,FALSE),"") -> 2002 | H42: ΑΘΗ | I42: b14
A43: =A42+1 -> 22 | B43: 10 | C43: 31991 | D43: =IF($C43>0,VLOOKUP($C43,Μητρώο!$A:$F,3,FALSE),"") -> ΜΗΤΡΟΠΑΠΑΣ ΗΛΙΑΣ | E43: =IF($C43>0,VLOOKUP($C43,Μητρώο!$A:$F,5,FALSE),"") -> Ο.Α.ΑΘΛΗΤ.ΠΑΙΔΕΙΑ | F43: =IF(COUNTIF(Rankings!$B:$B,RIGHT($I43,2)&"-"&$C43)>0,IF($C43>0,VLOOKUP(RIGHT($I43,2)&"-"&$C43,Rankings!$B:$H,7,FALSE),""),0) -> 31.02241857 | G43: =IF($C43>0,VLOOKUP($C43,Μητρώο!$A:$F,4,FALSE),"") -> 2002 | H43: ΑΘΗ | I43: b14
A44: 22 | B44: 11 | C44: 34747 | D44: =IF($C44>0,VLOOKUP($C44,Μητρώο!$A:$F,3,FALSE),"") -> ΜΠΕΝΟΣ ΑΘΑΝΑΣΙΟΣ | E44: =IF($C44>0,VLOOKUP($C44,Μητρώο!$A:$F,5,FALSE),"") -> Ο.Α.ΑΘΗΝΩΝ | F44: =IF(COUNTIF(Rankings!$B:$B,RIGHT($I44,2)&"-"&$C44)>0,IF($C44>0,VLOOKUP(RIGHT($I44,2)&"-"&$C44,Rankings!$B:$H,7,FALSE),""),0) -> 29.53934294 | G44: =IF($C44>0,VLOOKUP($C44,Μητρώο!$A:$F,4,FALSE),"") -> 2003 | H44: ΑΘΗ | I44: b14
A45: =A44+1 -> 23 | B45: 12 | C45: 35238 | D45: =IF($C45>0,VLOOKUP($C45,Μητρώο!$A:$F,3,FALSE),"") -> ΜΑΝΤΩΝΑΝΑΚΗΣ ΚΩΝΣΤΑΝΤΙΝΟΣ | E45: =IF($C45>0,VLOOKUP($C45,Μητρώο!$A:$F,5,FALSE),"") -> Ο.Α.ΑΘΛΗΤ.ΠΑΙΔΕΙΑ | F45: =IF(COUNTIF(Rankings!$B:$B,RIGHT($I45,2)&"-"&$C45)>0,IF($C45>0,VLOOKUP(RIGHT($I45,2)&"-"&$C45,Rankings!$B:$H,7,FALSE),""),0) -> 29.00333417 | G45: =IF($C45>0,VLOOKUP($C45,Μητρώο!$A:$F,4,FALSE),"") -> 2002 | H45: ΑΘΗ | I45: b14
A46: 23 | B46: 13 | C46: 34350 | D46: =IF($C46>0,VLOOKUP($C46,Μητρώο!$A:$F,3,FALSE),"") -> ΠΑΤΙΝΙΩΤΗΣ ΓΕΩΡΓΙΟΣ | E46: =IF($C46>0,VLOOKUP($C46,Μητρώο!$A:$F,5,FALSE),"") -> Σ.Α.ΡΑΦΗΝΑΣ | F46: =IF(COUNTIF(Rankings!$B:$B,RIGHT($I46,2)&"-"&$C46)>0,IF($C46>0,VLOOKUP(RIGHT($I46,2)&"-"&$C46,Rankings!$B:$H,7,FALSE),""),0) -> 21.53883867 | G46: =IF($C46>0,VLOOKUP($C46,Μητρώο!$A:$F,4,FALSE),"") -> 2002 | H46: ΑΘΗ | I46: b14
A47: =A46+1 -> 24 | B47: 14 | C47: 36774 | D47: =IF($C47>0,VLOOKUP($C47,Μητρώο!$A:$F,3,FALSE),"") -> ΔΗΜΗΤΡΙΑΔΗΣ ΧΡΗΣΤΟΣ | E47: =IF($C47>0,VLOOKUP($C47,Μητρώο!$A:$F,5,FALSE),"") -> Α.Ο.Α.ΑΤΤΙΚΟΣ ΗΛΙΟΣ | F47: =IF(COUNTIF(Rankings!$B:$B,RIGHT($I47,2)&"-"&$C47)>0,IF($C47>0,VLOOKUP(RIGHT($I47,2)&"-"&$C47,Rankings!$B:$H,7,FALSE),""),0) -> 13.50067453 | G47: =IF($C47>0,VLOOKUP($C47,Μητρώο!$A:$F,4,FALSE),"") -> 2003 | H47: ΑΘΗ | I47: b14
A48: 24 | B48: 15 | C48: 34702 | D48: =IF($C48>0,VLOOKUP($C48,Μητρώο!$A:$F,3,FALSE),"") -> ΝΙΚΟΛΕΤΟΣ ΚΩΝΣΤΑΝΤΙΝΟΣ | E48: =IF($C48>0,VLOOKUP($C48,Μητρώο!$A:$F,5,FALSE),"") -> Σ.Α.ΡΑΦΗΝΑΣ | F48: =IF(COUNTIF(Rankings!$B:$B,RIGHT($I48,2)&"-"&$C48)>0,IF($C48>0,VLOOKUP(RIGHT($I48,2)&"-"&$C48,Rankings!$B:$H,7,FALSE),""),0) -> 8.006535726 | G48: =IF($C48>0,VLOOKUP($C48,Μητρώο!$A:$F,4,FALSE),"") -> 2001 | H48: ΑΘΗ | I48: b14
A49: =A48+1 -> 25 | B49: 16 | C49: 35877 | D49: =IF($C49>0,VLOOKUP($C49,Μητρώο!$A:$F,3,FALSE),"") -> ΣΤΑΜΠΟΥΛΙΔΗΣ ΓΙΩΡΓΟΣ | E49: =IF($C49>0,VLOOKUP($C49,Μητρώο!$A:$F,5,FALSE),"") -> Σ.Α.ΡΑΦΗΝΑΣ | F49: =IF(COUNTIF(Rankings!$B:$B,RIGHT($I49,2)&"-"&$C49)>0,IF($C49>0,VLOOKUP(RIGHT($I49,2)&"-"&$C49,Rankings!$B:$H,7,FALSE),""),0) -> 7.03592979 | G49: =IF($C49>0,VLOOKUP($C49,Μητρώο!$A:$F,4,FALSE),"") -> 2001 | H49: ΑΘΗ | I49: b14
A50: 25 | B50: 17 | C50: 37690 | D50: =IF($C50>0,VLOOKUP($C50,Μητρώο!$A:$F,3,FALSE),"") -> ΒΡΟΝΤΟΣ ΔΗΜΗΤΡΗΣ | E50: =IF($C50>0,VLOOKUP($C50,Μητρώο!$A:$F,5,FALSE),"") -> Α.Κ.Α.ΜΑΡΑΘΩΝΑ | F50: =IF(COUNTIF(Rankings!$B:$B,RIGHT($I50,2)&"-"&$C50)>0,IF($C50>0,VLOOKUP(RIGHT($I50,2)&"-"&$C50,Rankings!$B:$H,7,FALSE),""),0) -> 6.010443703 | G50: =IF($C50>0,VLOOKUP($C50,Μητρώο!$A:$F,4,FALSE),"") -> 2002 | H50: ΑΘΗ | I50: b14
A51: =A50+1 -> 26 | B51: 18 | C51: 90108 | D51: =IF($C51>0,VLOOKUP($C51,Μητρώο!$A:$F,3,FALSE),"") -> ΤΣΙΒΙΛΙ ΜΙΡΚΟ | E51: =IF($C51>0,VLOOKUP($C51,Μητρώο!$A:$F,5,FALSE),"") -> Α.Κ.Α.ΜΑΡΑΘΩΝΑ | F51: =IF(COUNTIF(Rankings!$B:$B,RIGHT($I51,2)&"-"&$C51)>0,IF($C51>0,VLOOKUP(RIGHT($I51,2)&"-"&$C51,Rankings!$B:$H,7,FALSE),""),0) -> 6.020500319 | G51: =IF($C51>0,VLOOKUP($C51,Μητρώο!$A:$F,4,FALSE),"") -> 2002 | H51: ΑΘΗ | I51: b14
A52: 26 | B52: 19 | C52: 33849 | D52: =IF($C52>0,VLOOKUP($C52,Μητρώο!$A:$F,3,FALSE),"") -> ΟΞΥΖΟΓΛΟΥ ΑΝΤΩΝΗΣ | E52: =IF($C52>0,VLOOKUP($C52,Μητρώο!$A:$F,5,FALSE),"") -> Α.Κ.Α.ΜΑΡΑΘΩΝΑ | F52: =IF(COUNTIF(Rankings!$B:$B,RIGHT($I52,2)&"-"&$C52)>0,IF($C52>0,VLOOKUP(RIGHT($I52,2)&"-"&$C52,Rankings!$B:$H,7,FALSE),""),0) -> 6.020607893 | G52: =IF($C52>0,VLOOKUP($C52,Μητρώο!$A:$F,4,FALSE),"") -> 2001 | H52: ΑΘΗ | I52: b14
A53: =A52+1 -> 27 | B53: 20 | C53: 37610 | D53: =IF($C53>0,VLOOKUP($C53,Μητρώο!$A:$F,3,FALSE),"") -> ΑΝΑΓΝΩΣΤΟΠΟΥΛΟΣ ΣΩΤΗΡΙΟΣ | E53: =IF($C53>0,VLOOKUP($C53,Μητρώο!$A:$F,5,FALSE),"") -> Α.Μ.Ε.Σ.Ν.ΕΡΥΘΡΑΙΑΣ | F53: =IF(COUNTIF(Rankings!$B:$B,RIGHT($I53,2)&"-"&$C53)>0,IF($C53>0,VLOOKUP(RIGHT($I53,2)&"-"&$C53,Rankings!$B:$H,7,FALSE),""),0) -> 4.02586082 | G53: =IF($C53>0,VLOOKUP($C53,Μητρώο!$A:$F,4,FALSE),"") -> 2001 | H53: ΑΘΗ | I53: b14
A54: 27 | B54: 21 | C54: 37668 | D54: =IF($C54>0,VLOOKUP($C54,Μητρώο!$A:$F,3,FALSE),"") -> ΜΟΥΡΙΚΗΣ ΕΜΜΑΝΟΥΗΛ | E54: =IF($C54>0,VLOOKUP($C54,Μητρώο!$A:$F,5,FALSE),"") -> Α.Ο.ΒΑΡΗΣ ΑΝΑΓΥΡΟΥΣ | F54: =IF(COUNTIF(Rankings!$B:$B,RIGHT($I54,2)&"-"&$C54)>0,IF($C54>0,VLOOKUP(RIGHT($I54,2)&"-"&$C54,Rankings!$B:$H,7,FALSE),""),0) -> 0 | G54: =IF($C54>0,VLOOKUP($C54,Μητρώο!$A:$F,4,FALSE),"") -> 2001 | H54: ΑΘΗ | I54: b14
A55: =A54+1 -> 28 | B55: 22 | C55: 35368 | D55: =IF($C55>0,VLOOKUP($C55,Μητρώο!$A:$F,3,FALSE),"") -> ΛΟΥΚΗΣ ΧΡΗΣΤΟΣ | E55: =IF($C55>0,VLOOKUP($C55,Μητρώο!$A:$F,5,FALSE),"") -> Α.Ο.ΒΑΡΗΣ ΑΝΑΓΥΡΟΥΣ | F55: =IF(COUNTIF(Rankings!$B:$B,RIGHT($I55,2)&"-"&$C55)>0,IF($C55>0,VLOOKUP(RIGHT($I55,2)&"-"&$C55,Rankings!$B:$H,7,FALSE),""),0) -> 0 | G55: =IF($C55>0,VLOOKUP($C55,Μητρώο!$A:$F,4,FALSE),"") -> 2001 | H55: ΑΘΗ | I55: b14
A56: 28 | B56: 23 | C56: 37277 | D56: =IF($C56>0,VLOOKUP($C56,Μητρώο!$A:$F,3,FALSE),"") -> ΔΕΛΗΣ ΚΩΝΣΤΑΝΤΙΝΟΣ | E56: =IF($C56>0,VLOOKUP($C56,Μητρώο!$A:$F,5,FALSE),"") -> Α.Σ.ΚΟΛΛΕΓΙΟΥ ΝΤΕΡΗ | F56: =IF(COUNTIF(Rankings!$B:$B,RIGHT($I56,2)&"-"&$C56)>0,IF($C56>0,VLOOKUP(RIGHT($I56,2)&"-"&$C56,Rankings!$B:$H,7,FALSE),""),0) -> 0 | G56: =IF($C56>0,VLOOKUP($C56,Μητρώο!$A:$F,4,FALSE),"") -> 2002 | H56: ΑΘΗ | I56: b14
A57: =A56+1 -> 29 | B57: 24 | C57: 35155 | D57: =IF($C57>0,VLOOKUP($C57,Μητρώο!$A:$F,3,FALSE),"") -> ΤΖΩΡΤΖΗΣ ΚΥΡΙΑΚΟΣ | E57: =IF($C57>0,VLOOKUP($C57,Μητρώο!$A:$F,5,FALSE),"") -> Α.Ο.ΒΑΡΗΣ ΑΝΑΓΥΡΟΥΣ | F57: =IF(COUNTIF(Rankings!$B:$B,RIGHT($I57,2)&"-"&$C57)>0,IF($C57>0,VLOOKUP(RIGHT($I57,2)&"-"&$C57,Rankings!$B:$H,7,FALSE),""),0) -> 0 | G57: =IF($C57>0,VLOOKUP($C57,Μητρώο!$A:$F,4,FALSE),"") -> 2001 | H57: ΑΘΗ | I57: b14
A58: 29 | B58: 25 | C58: 28363 | D58: =IF($C58>0,VLOOKUP($C58,Μητρώο!$A:$F,3,FALSE),"") -> ΤΡΟΧΟΠΟΥΛΟΣ ΓΕΩΡΓΙΟΣ | E58: =IF($C58>0,VLOOKUP($C58,Μητρώο!$A:$F,5,FALSE),"") -> Ο.Α.ΑΓΙΑΣ ΠΑΡΑΣΚΕΥΗΣ | F58: =IF(COUNTIF(Rankings!$B:$B,RIGHT($I58,2)&"-"&$C58)>0,IF($C58>0,VLOOKUP(RIGHT($I58,2)&"-"&$C58,Rankings!$B:$H,7,FALSE),""),0) -> 0 | G58: =IF($C58>0,VLOOKUP($C58,Μητρώο!$A:$F,4,FALSE),"") -> 2001 | H58: ΑΘΗ | I58: b14
A59: =A58+1 -> 30 | B59: 1 | C59: 26190 | D59: =IF($C59>0,VLOOKUP($C59,Μητρώο!$A:$F,3,FALSE),"") -> ΑΝΔΡΩΝΗΣ ΙΩΑΝΝΗΣ | E59: =IF($C59>0,VLOOKUP($C59,Μητρώο!$A:$F,5,FALSE),"") -> Ο.Α.ΑΓΙΑΣ ΠΑΡΑΣΚΕΥΗΣ | F59: =IF(COUNTIF(Rankings!$B:$B,RIGHT($I59,2)&"-"&$C59)>0,IF($C59>0,VLOOKUP(RIGHT($I59,2)&"-"&$C59,Rankings!$B:$H,7,FALSE),""),0) -> 226.0124581 | G59: =IF($C59>0,VLOOKUP($C59,Μητρώο!$A:$F,4,FALSE),"") -> 1999 | H59: ΑΘΗ | I59: b16
A60: 30 | B60: 2 | C60: 29372 | D60: =IF($C60>0,VLOOKUP($C60,Μητρώο!$A:$F,3,FALSE),"") -> ΚΟΤΖΑΜΑΝΗΣ ΝΙΚΟΛΑΟΣ | E60: =IF($C60>0,VLOOKUP($C60,Μητρώο!$A:$F,5,FALSE),"") -> ΠΕΥΚΗ Γ.ΚΑΛΟΒΕΛΩΝΗΣ | F60: =IF(COUNTIF(Rankings!$B:$B,RIGHT($I60,2)&"-"&$C60)>0,IF($C60>0,VLOOKUP(RIGHT($I60,2)&"-"&$C60,Rankings!$B:$H,7,FALSE),""),0) -> 203.0184742 | G60: =IF($C60>0,VLOOKUP($C60,Μητρώο!$A:$F,4,FALSE),"") -> 2000 | H60: ΑΘΗ | I60: b16
A61: =A60+1 -> 31 | B61: 3 | C61: 32212 | D61: =IF($C61>0,VLOOKUP($C61,Μητρώο!$A:$F,3,FALSE),"") -> ΡΑΠΤΗΣ ΚΩΝΣΤΑΝΤΙΝΟΣ | E61: =IF($C61>0,VLOOKUP($C61,Μητρώο!$A:$F,5,FALSE),"") -> Σ.Α.ΡΑΦΗΝΑΣ | F61: =IF(COUNTIF(Rankings!$B:$B,RIGHT($I61,2)&"-"&$C61)>0,IF($C61>0,VLOOKUP(RIGHT($I61,2)&"-"&$C61,Rankings!$B:$H,7,FALSE),""),0) -> 132.001485 | G61: =IF($C61>0,VLOOKUP($C61,Μητρώο!$A:$F,4,FALSE),"") -> 2001 | H61: ΑΘΗ | I61: b16
A62: 31 | B62: 4 | C62: 33917 | D62: =IF($C62>0,VLOOKUP($C62,Μητρώο!$A:$F,3,FALSE),"") -> ΚΑΒΑΛΛΙΕΡΟΣ ΚΩΝΣΤΑΝΤΙΝΟΣ | E62: =IF($C62>0,VLOOKUP($C62,Μητρώο!$A:$F,5,FALSE),"") -> Σ.Α.ΡΑΦΗΝΑΣ | F62: =IF(COUNTIF(Rankings!$B:$B,RIGHT($I62,2)&"-"&$C62)>0,IF($C62>0,VLOOKUP(RIGHT($I62,2)&"-"&$C62,Rankings!$B:$H,7,FALSE),""),0) -> 124.0257125 | G62: =IF($C62>0,VLOOKUP($C62,Μητρώο!$A:$F,4,FALSE),"") -> 2000 | H62: ΑΘΗ | I62: b16
A63: =A62+1 -> 32 | B63: 5 | C63: 28879 | D63: =IF($C63>0,VLOOKUP($C63,Μητρώο!$A:$F,3,FALSE),"") -> ΜΠΑΛΤΑΣ ΜΑΞΙΜΟΣ | E63: =IF($C63>0,VLOOKUP($C63,Μητρώο!$A:$F,5,FALSE),"") -> Σ.Α.ΡΑΦΗΝΑΣ | F63: =IF(COUNTIF(Rankings!$B:$B,RIGHT($I63,2)&"-"&$C63)>0,IF($C63>0,VLOOKUP(RIGHT($I63,2)&"-"&$C63,Rankings!$B:$H,7,FALSE),""),0) -> 105.0075093 | G63: =IF($C63>0,VLOOKUP($C63,Μητρώο!$A:$F,4,FALSE),"") -> 2001 | H63: ΑΘΗ | I63: b16
A64: 32 | B64: 6 | C64: 28873 | D64: =IF($C64>0,VLOOKUP($C64,Μητρώο!$A:$F,3,FALSE),"") -> ΒΡΕΤΤΟΣ ΓΙΩΡΓΟΣ | E64: =IF($C64>0,VLOOKUP($C64,Μητρώο!$A:$F,5,FALSE),"") -> Α.Ο.Α.ΦΙΛΟΘΕΗΣ | F64: =IF(COUNTIF(Rankings!$B:$B,RIGHT($I64,2)&"-"&$C64)>0,IF($C64>0,VLOOKUP(RIGHT($I64,2)&"-"&$C64,Rankings!$B:$H,7,FALSE),""),0) -> 103.0026769 | G64: =IF($C64>0,VLOOKUP($C64,Μητρώο!$A:$F,4,FALSE),"") -> 2000 | H64: ΑΘΗ | I64: b16
A65: =A64+1 -> 33 | B65: 7 | C65: 28874 | D65: =IF($C65>0,VLOOKUP($C65,Μητρώο!$A:$F,3,FALSE),"") -> ΒΡΕΤΤΟΣ ΣΤΕΦΑΝΟΣ | E65: =IF($C65>0,VLOOKUP($C65,Μητρώο!$A:$F,5,FALSE),"") -> Α.Ο.Α.ΦΙΛΟΘΕΗΣ | F65: =IF(COUNTIF(Rankings!$B:$B,RIGHT($I65,2)&"-"&$C65)>0,IF($C65>0,VLOOKUP(RIGHT($I65,2)&"-"&$C65,Rankings!$B:$H,7,FALSE),""),0) -> 97.03181697 | G65: =IF($C65>0,VLOOKUP($C65,Μητρώο!$A:$F,4,FALSE),"") -> 2000 | H65: ΑΘΗ | I65: b16
A66: 33 | B66: 8 | C66: 32761 | D66: =IF($C66>0,VLOOKUP($C66,Μητρώο!$A:$F,3,FALSE),"") -> ΜΙΝΤΑΣ ΝΙΚΟΛΑΟΣ | E66: =IF($C66>0,VLOOKUP($C66,Μητρώο!$A:$F,5,FALSE),"") -> ΠΕΥΚΗ Γ.ΚΑΛΟΒΕΛΩΝΗΣ | F66: =IF(COUNTIF(Rankings!$B:$B,RIGHT($I66,2)&"-"&$C66)>0,IF($C66>0,VLOOKUP(RIGHT($I66,2)&"-"&$C66,Rankings!$B:$H,7,FALSE),""),0) -> 85.0035649 | G66: =IF($C66>0,VLOOKUP($C66,Μητρώο!$A:$F,4,FALSE),"") -> 2000 | H66: ΑΘΗ | I66: b16
A67: =A66+1 -> 34 | B67: =IF(H67&I67=H66&I66,B66+1,1) -> 9 | C67: 30312 | D67: =IF($C67>0,VLOOKUP($C67,Μητρώο!$A:$F,3,FALSE),"") -> ΜΕΝΕΞΕΛΗΣ ΟΔΥΣΣΕΑΣ | E67: =IF($C67>0,VLOOKUP($C67,Μητρώο!$A:$F,5,FALSE),"") -> ΠΕΥΚΗ Γ.ΚΑΛΟΒΕΛΩΝΗΣ | F67: =IF(COUNTIF(Rankings!$B:$B,RIGHT($I67,2)&"-"&$C67)>0,IF($C67>0,VLOOKUP(RIGHT($I67,2)&"-"&$C67,Rankings!$B:$H,7,FALSE),""),0) -> 78.01364576 | G67: =IF($C67>0,VLOOKUP($C67,Μητρώο!$A:$F,4,FALSE),"") -> 2001 | H67: ΑΘΗ | I67: b16
A68: 34 | B68: 10 | C68: 28971 | D68: =IF($C68>0,VLOOKUP($C68,Μητρώο!$A:$F,3,FALSE),"") -> ΕΥΤΥΧΙΟΥ ΧΑΡΑΛΑΜΠΟΣ | E68: =IF($C68>0,VLOOKUP($C68,Μητρώο!$A:$F,5,FALSE),"") -> Ο.Α.ΑΘΗΝΩΝ | F68: =IF(COUNTIF(Rankings!$B:$B,RIGHT($I68,2)&"-"&$C68)>0,IF($C68>0,VLOOKUP(RIGHT($I68,2)&"-"&$C68,Rankings!$B:$H,7,FALSE),""),0) -> 71.00999383 | G68: =IF($C68>0,VLOOKUP($C68,Μητρώο!$A:$F,4,FALSE),"") -> 2001 | H68: ΑΘΗ | I68: b16
A69: =A68+1 -> 35 | B69: 11 | C69: 28689 | D69: =IF($C69>0,VLOOKUP($C69,Μητρώο!$A:$F,3,FALSE),"") -> ΚΑΛΛΙΤΣΗΣ ΚΩΝΣΤΑΝΤΙΝΟΣ | E69: =IF($C69>0,VLOOKUP($C69,Μητρώο!$A:$F,5,FALSE),"") -> Ο.Α.ΑΓΙΑΣ ΠΑΡΑΣΚΕΥΗΣ | F69: =IF(COUNTIF(Rankings!$B:$B,RIGHT($I69,2)&"-"&$C69)>0,IF($C69>0,VLOOKUP(RIGHT($I69,2)&"-"&$C69,Rankings!$B:$H,7,FALSE),""),0) -> 56.02476197 | G69: =IF($C69>0,VLOOKUP($C69,Μητρώο!$A:$F,4,FALSE),"") -> 1999 | H69: ΑΘΗ | I69: b16
A70: 35 | B70: 12 | C70: 28486 | D70: =IF($C70>0,VLOOKUP($C70,Μητρώο!$A:$F,3,FALSE),"") -> ΜΠΑΡΜΠΑΡΗΣ ΣΤΥΛΙΑΝΟΣ | E70: =IF($C70>0,VLOOKUP($C70,Μητρώο!$A:$F,5,FALSE),"") -> Ο.Α.ΠΑΡΟΥ | F70: =IF(COUNTIF(Rankings!$B:$B,RIGHT($I70,2)&"-"&$C70)>0,IF($C70>0,VLOOKUP(RIGHT($I70,2)&"-"&$C70,Rankings!$B:$H,7,FALSE),""),0) -> 50.03897034 | G70: =IF($C70>0,VLOOKUP($C70,Μητρώο!$A:$F,4,FALSE),"") -> 2000 | H70: ΑΘΗ | I70: b16
A71: =A70+1 -> 36 | B71: 13 | C71: 29933 | D71: =IF($C71>0,VLOOKUP($C71,Μητρώο!$A:$F,3,FALSE),"") -> ΚΟΥΦΟΠΟΥΛΟΣ ΕΜΜΑΝΟΥΗΛ | E71: =IF($C71>0,VLOOKUP($C71,Μητρώο!$A:$F,5,FALSE),"") -> Α.Κ.Α.ΜΑΡΑΘΩΝΑ | F71: =IF(COUNTIF(Rankings!$B:$B,RIGHT($I71,2)&"-"&$C71)>0,IF($C71>0,VLOOKUP(RIGHT($I71,2)&"-"&$C71,Rankings!$B:$H,7,FALSE),""),0) -> 50.03490722 | G71: =IF($C71>0,VLOOKUP($C71,Μητρώο!$A:$F,4,FALSE),"") -> 2001 | H71: ΑΘΗ | I71: b16
A72: 36 | B72: 14 | C72: 31693 | D72: =IF($C72>0,VLOOKUP($C72,Μητρώο!$A:$F,3,FALSE),"") -> ΕΣΚΙΟΓΛΟΥ ΣΤΕΦΑΝΟΣ | E72: =IF($C72>0,VLOOKUP($C72,Μητρώο!$A:$F,5,FALSE),"") -> Α.Π.Ο.ΣΑΝΝΥ ΣΠΟΡΤΣ ΚΛΑΜΠ | F72: =IF(COUNTIF(Rankings!$B:$B,RIGHT($I72,2)&"-"&$C72)>0,IF($C72>0,VLOOKUP(RIGHT($I72,2)&"-"&$C72,Rankings!$B:$H,7,FALSE),""),0) -> 38.03132589 | G72: =IF($C72>0,VLOOKUP($C72,Μητρώο!$A:$F,4,FALSE),"") -> 1999 | H72: ΑΘΗ | I72: b16
A73: =A72+1 -> 37 | B73: 15 | C73: 31990 | D73: =IF($C73>0,VLOOKUP($C73,Μητρώο!$A:$F,3,FALSE),"") -> ΜΠΑΜΠΑΡΟΥΤΣΗΣ ΦΩΤΙΟΣ | E73: =IF($C73>0,VLOOKUP($C73,Μητρώο!$A:$F,5,FALSE),"") -> Α.Ο.ΑΤΛΑΝΤΙΣ | F73: =IF(COUNTIF(Rankings!$B:$B,RIGHT($I73,2)&"-"&$C73)>0,IF($C73>0,VLOOKUP(RIGHT($I73,2)&"-"&$C73,Rankings!$B:$H,7,FALSE),""),0) -> 23.00365811 | G73: =IF($C73>0,VLOOKUP($C73,Μητρώο!$A:$F,4,FALSE),"") -> 2001 | H73: ΑΘΗ | I73: b16
A74: 37 | B74: 16 | C74: 31989 | D74: =IF($C74>0,VLOOKUP($C74,Μητρώο!$A:$F,3,FALSE),"") -> ΜΠΑΜΠΑΡΟΥΤΣΗΣ ΓΕΩΡΓΙΟΣ | E74: =IF($C74>0,VLOOKUP($C74,Μητρώο!$A:$F,5,FALSE),"") -> Α.Ο.ΑΤΛΑΝΤΙΣ | F74: =IF(COUNTIF(Rankings!$B:$B,RIGHT($I74,2)&"-"&$C74)>0,IF($C74>0,VLOOKUP(RIGHT($I74,2)&"-"&$C74,Rankings!$B:$H,7,FALSE),""),0) -> 17.01922161 | G74: =IF($C74>0,VLOOKUP($C74,Μητρώο!$A:$F,4,FALSE),"") -> 2001 | H74: ΑΘΗ | I74: b16
A75: =A74+1 -> 38 | B75: 17 | C75: 29828 | D75: =IF($C75>0,VLOOKUP($C75,Μητρώο!$A:$F,3,FALSE),"") -> ΚΑΖΑΝΤΖΗΣ ΓΕΡΑΣΙΜΟΣ | E75: =IF($C75>0,VLOOKUP($C75,Μητρώο!$A:$F,5,FALSE),"") -> Ο.Α.ΑΘΗΝΩΝ | F75: =IF(COUNTIF(Rankings!$B:$B,RIGHT($I75,2)&"-"&$C75)>0,IF($C75>0,VLOOKUP(RIGHT($I75,2)&"-"&$C75,Rankings!$B:$H,7,FALSE),""),0) -> 15.0054832 | G75: =IF($C75>0,VLOOKUP($C75,Μητρώο!$A:$F,4,FALSE),"") -> 2001 | H75: ΑΘΗ | I75: b16
A76: 38 | B76: 1 | C76: 34515 | D76: =IF($C76>0,VLOOKUP($C76,Μητρώο!$A:$F,3,FALSE),"") -> ΜΕϊΔΑΝΗ ΧΑΡΑ | E76: =IF($C76>0,VLOOKUP($C76,Μητρώο!$A:$F,5,FALSE),"") -> ΠΕΥΚΗ Γ.ΚΑΛΟΒΕΛΩΝΗΣ | F76: =IF(COUNTIF(Rankings!$B:$B,RIGHT($I76,2)&"-"&$C76)>0,IF($C76>0,VLOOKUP(RIGHT($I76,2)&"-"&$C76,Rankings!$B:$H,7,FALSE),""),0) -> 62.5073288 | G76: =IF($C76>0,VLOOKUP($C76,Μητρώο!$A:$F,4,FALSE),"") -> 2004 | H76: ΑΘΗ | I76: g12
A77: =A76+1 -> 39 | B77: 2 | C77: 35698 | D77: =IF($C77>0,VLOOKUP($C77,Μητρώο!$A:$F,3,FALSE),"") -> ΜΑΣΤΡΟΔΗΜΑ ΔΕΣΠΟΙΝΑ | E77: =IF($C77>0,VLOOKUP($C77,Μητρώο!$A:$F,5,FALSE),"") -> Α.Κ.Α.ΜΑΡΑΘΩΝΑ | F77: =IF(COUNTIF(Rankings!$B:$B,RIGHT($I77,2)&"-"&$C77)>0,IF($C77>0,VLOOKUP(RIGHT($I77,2)&"-"&$C77,Rankings!$B:$H,7,FALSE),""),0) -> 56.00671046 | G77: =IF($C77>0,VLOOKUP($C77,Μητρώο!$A:$F,4,FALSE),"") -> 2004 | H77: ΑΘΗ | I77: g12
A78: 39 | B78: 3 | C78: 33920 | D78: =IF($C78>0,VLOOKUP($C78,Μητρώο!$A:$F,3,FALSE),"") -> ΠΛΑΤΣΙΩΤΑ ΡΑΦΑΕΛΑ | E78: =IF($C78>0,VLOOKUP($C78,Μητρώο!$A:$F,5,FALSE),"") -> Α.Ο.Α.ΑΤΤΙΚΟΣ ΗΛΙΟΣ | F78: =IF(COUNTIF(Rankings!$B:$B,RIGHT($I78,2)&"-"&$C78)>0,IF($C78>0,VLOOKUP(RIGHT($I78,2)&"-"&$C78,Rankings!$B:$H,7,FALSE),""),0) -> 46.00241692 | G78: =IF($C78>0,VLOOKUP($C78,Μητρώο!$A:$F,4,FALSE),"") -> 2003 | H78: ΑΘΗ | I78: g12
A79: =A78+1 -> 40 | B79: 4 | C79: 35699 | D79: =IF($C79>0,VLOOKUP($C79,Μητρώο!$A:$F,3,FALSE),"") -> ΚΩΛΕΤΣΗ ΑΙΚΑΤΕΡΙΝΗ | E79: =IF($C79>0,VLOOKUP($C79,Μητρώο!$A:$F,5,FALSE),"") -> Α.Κ.Α.ΜΑΡΑΘΩΝΑ | F79: =IF(COUNTIF(Rankings!$B:$B,RIGHT($I79,2)&"-"&$C79)>0,IF($C79>0,VLOOKUP(RIGHT($I79,2)&"-"&$C79,Rankings!$B:$H,7,FALSE),""),0) -> 39.53900335 | G79: =IF($C79>0,VLOOKUP($C79,Μητρώο!$A:$F,4,FALSE),"") -> 2004 | H79: ΑΘΗ | I79: g12
A80: 40 | B80: 5 | C80: 34254 | D80: =IF($C80>0,VLOOKUP($C80,Μητρώο!$A:$F,3,FALSE),"") -> ΖΑΦΕΙΡΗ ΛΥΔΙΑ | E80: =IF($C80>0,VLOOKUP($C80,Μητρώο!$A:$F,5,FALSE),"") -> Ο.Α.ΑΘΗΝΩΝ | F80: =IF(COUNTIF(Rankings!$B:$B,RIGHT($I80,2)&"-"&$C80)>0,IF($C80>0,VLOOKUP(RIGHT($I80,2)&"-"&$C80,Rankings!$B:$H,7,FALSE),""),0) -> 35.53618543 | G80: =IF($C80>0,VLOOKUP($C80,Μητρώο!$A:$F,4,FALSE),"") -> 2003 | H80: ΑΘΗ | I80: g12
A81: =A80+1 -> 41 | B81: 6 | C81: 32770 | D81: =IF($C81>0,VLOOKUP($C81,Μητρώο!$A:$F,3,FALSE),"") -> ΤΖΑΜΠΑΖΙΔΗ ΦΡΕΙΔΕΡΙΚΗ | E81: =IF($C81>0,VLOOKUP($C81,Μητρώο!$A:$F,5,FALSE),"") -> Α.Ο.ΒΑΡΗΣ ΑΝΑΓΥΡΟΥΣ | F81: =IF(COUNTIF(Rankings!$B:$B,RIGHT($I81,2)&"-"&$C81)>0,IF($C81>0,VLOOKUP(RIGHT($I81,2)&"-"&$C81,Rankings!$B:$H,7,FALSE),""),0) -> 34.52358121 | G81: =IF($C81>0,VLOOKUP($C81,Μητρώο!$A:$F,4,FALSE),"") -> 2004 | H81: ΑΘΗ | I81: g12
A82: 41 | B82: 7 | C82: 34303 | D82: =IF($C82>0,VLOOKUP($C82,Μητρώο!$A:$F,3,FALSE),"") -> ΚΟΥΡΟΥΚΛΗ ΑΝΝΑ | E82: =IF($C82>0,VLOOKUP($C82,Μητρώο!$A:$F,5,FALSE),"") -> Ο.Α.ΑΘΗΝΩΝ | F82: =IF(COUNTIF(Rankings!$B:$B,RIGHT($I82,2)&"-"&$C82)>0,IF($C82>0,VLOOKUP(RIGHT($I82,2)&"-"&$C82,Rankings!$B:$H,7,FALSE),""),0) -> 28.01956901 | G82: =IF($C82>0,VLOOKUP($C82,Μητρώο!$A:$F,4,FALSE),"") -> 2004 | H82: ΑΘΗ | I82: g12
A83: =A82+1 -> 42 | B83: 8 | C83: 31896 | D83: =IF($C83>0,VLOOKUP($C83,Μητρώο!$A:$F,3,FALSE),"") -> ΣΤΕΡΓΙΟΠΟΥΛΟΥ ΑΘΗΝΑ | E83: =IF($C83>0,VLOOKUP($C83,Μητρώο!$A:$F,5,FALSE),"") -> Ο.Α.ΑΓΙΑΣ ΠΑΡΑΣΚΕΥΗΣ | F83: =IF(COUNTIF(Rankings!$B:$B,RIGHT($I83,2)&"-"&$C83)>0,IF($C83>0,VLOOKUP(RIGHT($I83,2)&"-"&$C83,Rankings!$B:$H,7,FALSE),""),0) -> 26.03566034 | G83: =IF($C83>0,VLOOKUP($C83,Μητρώο!$A:$F,4,FALSE),"") -> 2003 | H83: ΑΘΗ | I83: g12
A84: 42 | B84: 9 | C84: 35252 | D84: =IF($C84>0,VLOOKUP($C84,Μητρώο!$A:$F,3,FALSE),"") -> ΣΙΛΙΝΤΖΙΡΗ ΕΛΙΣΑΒΕΤ | E84: =IF($C84>0,VLOOKUP($C84,Μητρώο!$A:$F,5,FALSE),"") -> Α.Σ.ΚΟΛΛΕΓΙΟΥ ΝΤΕΡΗ | F84: =IF(COUNTIF(Rankings!$B:$B,RIGHT($I84,2)&"-"&$C84)>0,IF($C84>0,VLOOKUP(RIGHT($I84,2)&"-"&$C84,Rankings!$B:$H,7,FALSE),""),0) -> 25.52864901 | G84: =IF($C84>0,VLOOKUP($C84,Μητρώο!$A:$F,4,FALSE),"") -> 2004 | H84: ΑΘΗ | I84: g12
A85: =A84+1 -> 43 | B85: 10 | C85: 34304 | D85: =IF($C85>0,VLOOKUP($C85,Μητρώο!$A:$F,3,FALSE),"") -> ΚΟΥΡΟΥΚΛΗ ΑΛΕΞΑΝΔΡΑ | E85: =IF($C85>0,VLOOKUP($C85,Μητρώο!$A:$F,5,FALSE),"") -> Ο.Α.ΑΘΗΝΩΝ | F85: =IF(COUNTIF(Rankings!$B:$B,RIGHT($I85,2)&"-"&$C85)>0,IF($C85>0,VLOOKUP(RIGHT($I85,2)&"-"&$C85,Rankings!$B:$H,7,FALSE),""),0) -> 22.00165591 | G85: =IF($C85>0,VLOOKUP($C85,Μητρώο!$A:$F,4,FALSE),"") -> 2004 | H85: ΑΘΗ | I85: g12
A86: 43 | B86: 11 | C86: 34244 | D86: =IF($C86>0,VLOOKUP($C86,Μητρώο!$A:$F,3,FALSE),"") -> ΜΑΥΡΟΜΑΤΗ ΜΑΡΙΑ | E86: =IF($C86>0,VLOOKUP($C86,Μητρώο!$A:$F,5,FALSE),"") -> Σ.Φ.Α.ΜΕΛΙΣΣΙΩΝ Ο ΦΟΙΒΟΣ | F86: =IF(COUNTIF(Rankings!$B:$B,RIGHT($I86,2)&"-"&$C86)>0,IF($C86>0,VLOOKUP(RIGHT($I86,2)&"-"&$C86,Rankings!$B:$H,7,FALSE),""),0) -> 14.51807124 | G86: =IF($C86>0,VLOOKUP($C86,Μητρώο!$A:$F,4,FALSE),"") -> 2004 | H86: ΑΘΗ | I86: g12
A87: =A86+1 -> 44 | B87: 12 | C87: 35150 | D87: =IF($C87>0,VLOOKUP($C87,Μητρώο!$A:$F,3,FALSE),"") -> ΠΙΣΛΗ ΕΙΡΗΝΗ | E87: =IF($C87>0,VLOOKUP($C87,Μητρώο!$A:$F,5,FALSE),"") -> Α.Ο.Α.ΑΤΤΙΚΟΣ ΗΛΙΟΣ | F87: =IF(COUNTIF(Rankings!$B:$B,RIGHT($I87,2)&"-"&$C87)>0,IF($C87>0,VLOOKUP(RIGHT($I87,2)&"-"&$C87,Rankings!$B:$H,7,FALSE),""),0) -> 13.00641832 | G87: =IF($C87>0,VLOOKUP($C87,Μητρώο!$A:$F,4,FALSE),"") -> 2004 | H87: ΑΘΗ | I87: g12
A88: 44 | B88: 13 | C88: 34938 | D88: =IF($C88>0,VLOOKUP($C88,Μητρώο!$A:$F,3,FALSE),"") -> ΚΑΡΑΟΥΖΑ ΣΙΜΟΝ-ΜΑΡΙΑ | E88: =IF($C88>0,VLOOKUP($C88,Μητρώο!$A:$F,5,FALSE),"") -> Σ.Α.ΡΑΦΗΝΑΣ | F88: =IF(COUNTIF(Rankings!$B:$B,RIGHT($I88,2)&"-"&$C88)>0,IF($C88>0,VLOOKUP(RIGHT($I88,2)&"-"&$C88,Rankings!$B:$H,7,FALSE),""),0) -> 13.03420901 | G88: =IF($C88>0,VLOOKUP($C88,Μητρώο!$A:$F,4,FALSE),"") -> 2005 | H88: ΑΘΗ | I88: g12
A89: =A88+1 -> 45 | B89: 14 | C89: 35916 | D89: =IF($C89>0,VLOOKUP($C89,Μητρώο!$A:$F,3,FALSE),"") -> ΚΕΦΑΛΑ ΑΝΝΑ | E89: =IF($C89>0,VLOOKUP($C89,Μητρώο!$A:$F,5,FALSE),"") -> Ο.Α.ΑΓΙΑΣ ΠΑΡΑΣΚΕΥΗΣ | F89: =IF(COUNTIF(Rankings!$B:$B,RIGHT($I89,2)&"-"&$C89)>0,IF($C89>0,VLOOKUP(RIGHT($I89,2)&"-"&$C89,Rankings!$B:$H,7,FALSE),""),0) -> 10.51611887 | G89: =IF($C89>0,VLOOKUP($C89,Μητρώο!$A:$F,4,FALSE),"") -> 2004 | H89: ΑΘΗ | I89: g12
A90: 45 | B90: 15 | C90: 35159 | D90: =IF($C90>0,VLOOKUP($C90,Μητρώο!$A:$F,3,FALSE),"") -> ΕΥΘΥΜΙΑΔΗ ΝΤΟΡΙΑΝΝΑ | E90: =IF($C90>0,VLOOKUP($C90,Μητρώο!$A:$F,5,FALSE),"") -> Α.Ο.Α.ΑΤΤΙΚΟΣ ΗΛΙΟΣ | F90: =IF(COUNTIF(Rankings!$B:$B,RIGHT($I90,2)&"-"&$C90)>0,IF($C90>0,VLOOKUP(RIGHT($I90,2)&"-"&$C90,Rankings!$B:$H,7,FALSE),""),0) -> 6.032542161 | G90: =IF($C90>0,VLOOKUP($C90,Μητρώο!$A:$F,4,FALSE),"") -> 2003 | H90: ΑΘΗ | I90: g12
A91: =A90+1 -> 46 | B91: 16 | C91: 37721 | D91: =IF($C91>0,VLOOKUP($C91,Μητρώο!$A:$F,3,FALSE),"") -> ΑΜΠΡΑΒΑΝΕΛ ΛΙΝΑ | E91: =IF($C91>0,VLOOKUP($C91,Μητρώο!$A:$F,5,FALSE),"") -> Α.Σ.ΚΟΛΛΕΓΙΟΥ ΝΤΕΡΗ | F91: =IF(COUNTIF(Rankings!$B:$B,RIGHT($I91,2)&"-"&$C91)>0,IF($C91>0,VLOOKUP(RIGHT($I91,2)&"-"&$C91,Rankings!$B:$H,7,FALSE),""),0) -> 5.02527912 | G91: =IF($C91>0,VLOOKUP($C91,Μητρώο!$A:$F,4,FALSE),"") -> 2003 | H91: ΑΘΗ | I91: g12
A92: 46 | B92: 17 | C92: 34051 | D92: =IF($C92>0,VLOOKUP($C92,Μητρώο!$A:$F,3,FALSE),"") -> ΚΩΣΤΟΥΡΟΥ ΑΝΑΣΤΑΣΙΑ-ΗΛΙΑ | E92: =IF($C92>0,VLOOKUP($C92,Μητρώο!$A:$F,5,FALSE),"") -> ΠΕΥΚΗ Γ.ΚΑΛΟΒΕΛΩΝΗΣ | F92: =IF(COUNTIF(Rankings!$B:$B,RIGHT($I92,2)&"-"&$C92)>0,IF($C92>0,VLOOKUP(RIGHT($I92,2)&"-"&$C92,Rankings!$B:$H,7,FALSE),""),0) -> 0.5035008352 | G92: =IF($C92>0,VLOOKUP($C92,Μητρώο!$A:$F,4,FALSE),"") -> 2005 | H92: ΑΘΗ | I92: g12
A93: =A92+1 -> 47 | B93: 18 | C93: 37969 | D93: =IF($C93>0,VLOOKUP($C93,Μητρώο!$A:$F,3,FALSE),"") -> ΔΗΜΗΤΡΙΟΥ ΔΗΜΗΤΡΑ | E93: =IF($C93>0,VLOOKUP($C93,Μητρώο!$A:$F,5,FALSE),"") -> Α.Κ.Α.ΜΑΡΑΘΩΝΑ | F93: =IF(COUNTIF(Rankings!$B:$B,RIGHT($I93,2)&"-"&$C93)>0,IF($C93>0,VLOOKUP(RIGHT($I93,2)&"-"&$C93,Rankings!$B:$H,7,FALSE),""),0) -> 0 | G93: =IF($C93>0,VLOOKUP($C93,Μητρώο!$A:$F,4,FALSE),"") -> 2003 | H93: ΑΘΗ | I93: g12
A94: 47 | B94: 1 | C94: 34427 | D94: =IF($C94>0,VLOOKUP($C94,Μητρώο!$A:$F,3,FALSE),"") -> ΣΑΚΕΛΛΑΡΙΔΗ ΣΑΠΦΩ | E94: =IF($C94>0,VLOOKUP($C94,Μητρώο!$A:$F,5,FALSE),"") -> Ο.Α.ΑΓΙΑΣ ΠΑΡΑΣΚΕΥΗΣ | F94: =IF(COUNTIF(Rankings!$B:$B,RIGHT($I94,2)&"-"&$C94)>0,IF($C94>0,VLOOKUP(RIGHT($I94,2)&"-"&$C94,Rankings!$B:$H,7,FALSE),""),0) -> 214.0305864 | G94: =IF($C94>0,VLOOKUP($C94,Μητρώο!$A:$F,4,FALSE),"") -> 2003 | H94: ΑΘΗ | I94: g14
A95: =A94+1 -> 48 | B95: 2 | C95: 30773 | D95: =IF($C95>0,VLOOKUP($C95,Μητρώο!$A:$F,3,FALSE),"") -> ΡΕΝΤΟΥΜΗ ΧΡΥΣΟΥΛΑ | E95: =IF($C95>0,VLOOKUP($C95,Μητρώο!$A:$F,5,FALSE),"") -> Α.Κ.Α.ΜΑΡΑΘΩΝΑ | F95: =IF(COUNTIF(Rankings!$B:$B,RIGHT($I95,2)&"-"&$C95)>0,IF($C95>0,VLOOKUP(RIGHT($I95,2)&"-"&$C95,Rankings!$B:$H,7,FALSE),""),0) -> 107.0081537 | G95: =IF($C95>0,VLOOKUP($C95,Μητρώο!$A:$F,4,FALSE),"") -> 2003 | H95: ΑΘΗ | I95: g14
A96: 48 | B96: 3 | C96: 34255 | D96: =IF($C96>0,VLOOKUP($C96,Μητρώο!$A:$F,3,FALSE),"") -> ΖΑΦΕΙΡΗ ΝΕΦΕΛΗ | E96: =IF($C96>0,VLOOKUP($C96,Μητρώο!$A:$F,5,FALSE),"") -> Ο.Α.ΑΘΗΝΩΝ | F96: =IF(COUNTIF(Rankings!$B:$B,RIGHT($I96,2)&"-"&$C96)>0,IF($C96>0,VLOOKUP(RIGHT($I96,2)&"-"&$C96,Rankings!$B:$H,7,FALSE),""),0) -> 100.0380413 | G96: =IF($C96>0,VLOOKUP($C96,Μητρώο!$A:$F,4,FALSE),"") -> 2002 | H96: ΑΘΗ | I96: g14
A97: =A96+1 -> 49 | B97: 4 | C97: 30785 | D97: =IF($C97>0,VLOOKUP($C97,Μητρώο!$A:$F,3,FALSE),"") -> ΧΟΥΛΙΑΡΑ ΜΑΡΓΑΡΙΤΑ | E97: =IF($C97>0,VLOOKUP($C97,Μητρώο!$A:$F,5,FALSE),"") -> Α.Ο.Α.ΑΤΤΙΚΟΣ ΗΛΙΟΣ | F97: =IF(COUNTIF(Rankings!$B:$B,RIGHT($I97,2)&"-"&$C97)>0,IF($C97>0,VLOOKUP(RIGHT($I97,2)&"-"&$C97,Rankings!$B:$H,7,FALSE),""),0) -> 90.03683171 | G97: =IF($C97>0,VLOOKUP($C97,Μητρώο!$A:$F,4,FALSE),"") -> 2002 | H97: ΑΘΗ | I97: g14
A98: 49 | B98: 5 | C98: 33437 | D98: =IF($C98>0,VLOOKUP($C98,Μητρώο!$A:$F,3,FALSE),"") -> ΓΡΑΜΜΑΤΙΚΑΚΗ ΧΑΡΑΛΑΜΠΙΑ | E98: =IF($C98>0,VLOOKUP($C98,Μητρώο!$A:$F,5,FALSE),"") -> ΠΕΥΚΗ Γ.ΚΑΛΟΒΕΛΩΝΗΣ | F98: =IF(COUNTIF(Rankings!$B:$B,RIGHT($I98,2)&"-"&$C98)>0,IF($C98>0,VLOOKUP(RIGHT($I98,2)&"-"&$C98,Rankings!$B:$H,7,FALSE),""),0) -> 73.53507402 | G98: =IF($C98>0,VLOOKUP($C98,Μητρώο!$A:$F,4,FALSE),"") -> 2003 | H98: ΑΘΗ | I98: g14
A99: =A98+1 -> 50 | B99: 6 | C99: 34936 | D99: =IF($C99>0,VLOOKUP($C99,Μητρώο!$A:$F,3,FALSE),"") -> ΖΕΡΒΑ ΣΤΥΛΙΑΝΗ-ΕΥΑΓΓΕΛΙΑ | E99: =IF($C99>0,VLOOKUP($C99,Μητρώο!$A:$F,5,FALSE),"") -> Α.Κ.Α.ΜΑΡΑΘΩΝΑ | F99: =IF(COUNTIF(Rankings!$B:$B,RIGHT($I99,2)&"-"&$C99)>0,IF($C99>0,VLOOKUP(RIGHT($I99,2)&"-"&$C99,Rankings!$B:$H,7,FALSE),""),0) -> 66.5395104 | G99: =IF($C99>0,VLOOKUP($C99,Μητρώο!$A:$F,4,FALSE),"") -> 2003 | H99: ΑΘΗ | I99: g14
A100: 50 | B100: 7 | C100: 35900 | D100: =IF($C100>0,VLOOKUP($C100,Μητρώο!$A:$F,3,FALSE),"") -> ΜΑΚΑΝΤΑΣΗ ΜΑΡΘΑ | E100: =IF($C100>0,VLOOKUP($C100,Μητρώο!$A:$F,5,FALSE),"") -> ΠΕΥΚΗ Γ.ΚΑΛΟΒΕΛΩΝΗΣ | F100: =IF(COUNTIF(Rankings!$B:$B,RIGHT($I100,2)&"-"&$C100)>0,IF($C100>0,VLOOKUP(RIGHT($I100,2)&"-"&$C100,Rankings!$B:$H,7,FALSE),""),0) -> 64.50851474 | G100: =IF($C100>0,VLOOKUP($C100,Μητρώο!$A:$F,4,FALSE),"") -> 2002 | H100: ΑΘΗ | I100: g14
A101: =A100+1 -> 51 | B101: 8 | C101: 90158 | D101: =IF($C101>0,VLOOKUP($C101,Μητρώο!$A:$F,3,FALSE),"") -> ΤΟΝΤΟΡΟΒΑ ΓΚΑΜΠΡΙΕΛΑ | E101: =IF($C101>0,VLOOKUP($C101,Μητρώο!$A:$F,5,FALSE),"") -> Α.Ο.Α.ΦΙΛΟΘΕΗΣ | F101: =IF(COUNTIF(Rankings!$B:$B,RIGHT($I101,2)&"-"&$C101)>0,IF($C101>0,VLOOKUP(RIGHT($I101,2)&"-"&$C101,Rankings!$B:$H,7,FALSE),""),0) -> 60.51677663 | G101: =IF($C101>0,VLOOKUP($C101,Μητρώο!$A:$F,4,FALSE),"") -> 2003 | H101: ΑΘΗ | I101: g14
A102: 51 | B102: 9 | C102: 35237 | D102: =IF($C102>0,VLOOKUP($C102,Μητρώο!$A:$F,3,FALSE),"") -> ΜΑΝΤΩΝΑΝΑΚΗ ΑΝΝΑ-ΜΙΚΑΕΛΑ | E102: =IF($C102>0,VLOOKUP($C102,Μητρώο!$A:$F,5,FALSE),"") -> Ο.Α.ΑΘΛΗΤ.ΠΑΙΔΕΙΑ | F102: =IF(COUNTIF(Rankings!$B:$B,RIGHT($I102,2)&"-"&$C102)>0,IF($C102>0,VLOOKUP(RIGHT($I102,2)&"-"&$C102,Rankings!$B:$H,7,FALSE),""),0) -> 58.02481255 | G102: =IF($C102>0,VLOOKUP($C102,Μητρώο!$A:$F,4,FALSE),"") -> 2002 | H102: ΑΘΗ | I102: g14
A103: =A102+1 -> 52 | B103: 10 | C103: 31045 | D103: =IF($C103>0,VLOOKUP($C103,Μητρώο!$A:$F,3,FALSE),"") -> ΤΣΟΥΤΣΟΥΡΑ ΚΩΝΣΤΑΝΤΙΝΑ | E103: =IF($C103>0,VLOOKUP($C103,Μητρώο!$A:$F,5,FALSE),"") -> Α.Σ.Ν.ΒΟΥΤΖΑ ΡΑΦΗΝΑΣ Η ΠΡΟΟΔΟΣ | F103: =IF(COUNTIF(Rankings!$B:$B,RIGHT($I103,2)&"-"&$C103)>0,IF($C103>0,VLOOKUP(RIGHT($I103,2)&"-"&$C103,Rankings!$B:$H,7,FALSE),""),0) -> 54.02047926 | G103: =IF($C103>0,VLOOKUP($C103,Μητρώο!$A:$F,4,FALSE),"") -> 2002 | H103: ΑΘΗ | I103: g14
A104: 52 | B104: 11 | C104: 31047 | D104: =IF($C104>0,VLOOKUP($C104,Μητρώο!$A:$F,3,FALSE),"") -> ΠΟΛΥΓΕΝΗ ΠΑΝΑΓΙΩΤΑ | E104: =IF($C104>0,VLOOKUP($C104,Μητρώο!$A:$F,5,FALSE),"") -> Α.Σ.Ν.ΒΟΥΤΖΑ ΡΑΦΗΝΑΣ Η ΠΡΟΟΔΟΣ | F104: =IF(COUNTIF(Rankings!$B:$B,RIGHT($I104,2)&"-"&$C104)>0,IF($C104>0,VLOOKUP(RIGHT($I104,2)&"-"&$C104,Rankings!$B:$H,7,FALSE),""),0) -> 49.03941001 | G104: =IF($C104>0,VLOOKUP($C104,Μητρώο!$A:$F,4,FALSE),"") -> 2002 | H104: ΑΘΗ | I104: g14
A105: =A104+1 -> 53 | B105: 12 | C105: 33089 | D105: =IF($C105>0,VLOOKUP($C105,Μητρώο!$A:$F,3,FALSE),"") -> ΚΩΤΣΙΟΥ ΜΑΡΙΑ-ΑΣΠΑΣΙΑ | E105: =IF($C105>0,VLOOKUP($C105,Μητρώο!$A:$F,5,FALSE),"") -> Α.Ο.Α.ΦΙΛΟΘΕΗΣ | F105: =IF(COUNTIF(Rankings!$B:$B,RIGHT($I105,2)&"-"&$C105)>0,IF($C105>0,VLOOKUP(RIGHT($I105,2)&"-"&$C105,Rankings!$B:$H,7,FALSE),""),0) -> 43.0116968 | G105: =IF($C105>0,VLOOKUP($C105,Μητρώο!$A:$F,4,FALSE),"") -> 2002 | H105: ΑΘΗ | I105: g14
A106: 53 | B106: 13 | C106: 36184 | D106: =IF($C106>0,VLOOKUP($C106,Μητρώο!$A:$F,3,FALSE),"") -> ΓΚΡΕΚΑ ΓΕΩΡΓΙΑ-ΕΙΡΗΝΗ | E106: =IF($C106>0,VLOOKUP($C106,Μητρώο!$A:$F,5,FALSE),"") -> Ο.Α.ΑΓΙΑΣ ΠΑΡΑΣΚΕΥΗΣ | F106: =IF(COUNTIF(Rankings!$B:$B,RIGHT($I106,2)&"-"&$C106)>0,IF($C106>0,VLOOKUP(RIGHT($I106,2)&"-"&$C106,Rankings!$B:$H,7,FALSE),""),0) -> 40.03667728 | G106: =IF($C106>0,VLOOKUP($C106,Μητρώο!$A:$F,4,FALSE),"") -> 2001 | H106: ΑΘΗ | I106: g14
A107: =A106+1 -> 54 | B107: 14 | C107: 34979 | D107: =IF($C107>0,VLOOKUP($C107,Μητρώο!$A:$F,3,FALSE),"") -> ΝΑΟΥΜ ΝΕΦΕΛΗ-ΙΦΙΓΕΝΕΙΑ | E107: =IF($C107>0,VLOOKUP($C107,Μητρώο!$A:$F,5,FALSE),"") -> Ο.Α.ΑΓΙΑΣ ΠΑΡΑΣΚΕΥΗΣ | F107: =IF(COUNTIF(Rankings!$B:$B,RIGHT($I107,2)&"-"&$C107)>0,IF($C107>0,VLOOKUP(RIGHT($I107,2)&"-"&$C107,Rankings!$B:$H,7,FALSE),""),0) -> 37.01574821 | G107: =IF($C107>0,VLOOKUP($C107,Μητρώο!$A:$F,4,FALSE),"") -> 2001 | H107: ΑΘΗ | I107: g14
A108: 54 | B108: 15 | C108: 33367 | D108: =IF($C108>0,VLOOKUP($C108,Μητρώο!$A:$F,3,FALSE),"") -> ΚΑΤΣΟΥΔΑ ΑΣΠΑΣΙΑ | E108: =IF($C108>0,VLOOKUP($C108,Μητρώο!$A:$F,5,FALSE),"") -> Ο.Α.ΣΥΡΟΥ | F108: =IF(COUNTIF(Rankings!$B:$B,RIGHT($I108,2)&"-"&$C108)>0,IF($C108>0,VLOOKUP(RIGHT($I108,2)&"-"&$C108,Rankings!$B:$H,7,FALSE),""),0) -> 32.03657936 | G108: =IF($C108>0,VLOOKUP($C108,Μητρώο!$A:$F,4,FALSE),"") -> 2002 | H108: ΑΘΗ | I108: g14
A109: =A108+1 -> 55 | B109: 16 | C109: 36895 | D109: =IF($C109>0,VLOOKUP($C109,Μητρώο!$A:$F,3,FALSE),"") -> ΣΑΡΡΗ ΑΝΝΑ-ΜΑΡΙΑ | E109: =IF($C109>0,VLOOKUP($C109,Μητρώο!$A:$F,5,FALSE),"") -> Α.Κ.Α.ΜΑΡΑΘΩΝΑ | F109: =IF(COUNTIF(Rankings!$B:$B,RIGHT($I109,2)&"-"&$C109)>0,IF($C109>0,VLOOKUP(RIGHT($I109,2)&"-"&$C109,Rankings!$B:$H,7,FALSE),""),0) -> 10.03728345 | G109: =IF($C109>0,VLOOKUP($C109,Μητρώο!$A:$F,4,FALSE),"") -> 2001 | H109: ΑΘΗ | I109: g14
A110: 55 | B110: 17 | C110: 36279 | D110: =IF($C110>0,VLOOKUP($C110,Μητρώο!$A:$F,3,FALSE),"") -> ΚΟΥΓΙΟΥΜΤΖΗ ΕΛΙΣΑΒΕΤ | E110: =IF($C110>0,VLOOKUP($C110,Μητρώο!$A:$F,5,FALSE),"") -> Α.Κ.Α.ΜΑΡΑΘΩΝΑ | F110: =IF(COUNTIF(Rankings!$B:$B,RIGHT($I110,2)&"-"&$C110)>0,IF($C110>0,VLOOKUP(RIGHT($I110,2)&"-"&$C110,Rankings!$B:$H,7,FALSE),""),0) -> 9.011774274 | G110: =IF($C110>0,VLOOKUP($C110,Μητρώο!$A:$F,4,FALSE),"") -> 2002 | H110: ΑΘΗ | I110: g14
A111: =A110+1 -> 56 | B111: 18 | C111: 34729 | D111: =IF($C111>0,VLOOKUP($C111,Μητρώο!$A:$F,3,FALSE),"") -> ΜΑΡΚΟΥ ΘΕΟΔΩΡΑ | E111: =IF($C111>0,VLOOKUP($C111,Μητρώο!$A:$F,5,FALSE),"") -> Α.Κ.Α.ΜΑΡΑΘΩΝΑ | F111: =IF(COUNTIF(Rankings!$B:$B,RIGHT($I111,2)&"-"&$C111)>0,IF($C111>0,VLOOKUP(RIGHT($I111,2)&"-"&$C111,Rankings!$B:$H,7,FALSE),""),0) -> 5.03914989 | G111: =IF($C111>0,VLOOKUP($C111,Μητρώο!$A:$F,4,FALSE),"") -> 2001 | H111: ΑΘΗ | I111: g14
A112: 56 | B112: 19 | C112: 34776 | D112: =IF($C112>0,VLOOKUP($C112,Μητρώο!$A:$F,3,FALSE),"") -> ΜΠΑΡΜΠΙΚΑ ΔΑΝΑΗ | E112: =IF($C112>0,VLOOKUP($C112,Μητρώο!$A:$F,5,FALSE),"") -> Α.Κ.Α.ΜΑΡΑΘΩΝΑ | F112: =IF(COUNTIF(Rankings!$B:$B,RIGHT($I112,2)&"-"&$C112)>0,IF($C112>0,VLOOKUP(RIGHT($I112,2)&"-"&$C112,Rankings!$B:$H,7,FALSE),""),0) -> 3.010719864 | G112: =IF($C112>0,VLOOKUP($C112,Μητρώο!$A:$F,4,FALSE),"") -> 2002 | H112: ΑΘΗ | I112: g14
A113: =A112+1 -> 57 | B113: 20 | C113: 35154 | D113: =IF($C113>0,VLOOKUP($C113,Μητρώο!$A:$F,3,FALSE),"") -> ΤΖΩΡΤΖΗ ΧΡΙΣΤΙΑΝΝΑ | E113: =IF($C113>0,VLOOKUP($C113,Μητρώο!$A:$F,5,FALSE),"") -> Α.Ο.ΒΑΡΗΣ ΑΝΑΓΥΡΟΥΣ | F113: =IF(COUNTIF(Rankings!$B:$B,RIGHT($I113,2)&"-"&$C113)>0,IF($C113>0,VLOOKUP(RIGHT($I113,2)&"-"&$C113,Rankings!$B:$H,7,FALSE),""),0) -> 0 | G113: =IF($C113>0,VLOOKUP($C113,Μητρώο!$A:$F,4,FALSE),"") -> 2001 | H113: ΑΘΗ | I113: g14
A114: 57 | B114: 1 | C114: 31873 | D114: =IF($C114>0,VLOOKUP($C114,Μητρώο!$A:$F,3,FALSE),"") -> ΓΡΙΒΑ ΒΑΣΙΛΕΙΑ | E114: =IF($C114>0,VLOOKUP($C114,Μητρώο!$A:$F,5,FALSE),"") -> Α.Σ.ΚΟΛΛΕΓΙΟΥ ΝΤΕΡΗ | F114: =IF(COUNTIF(Rankings!$B:$B,RIGHT($I114,2)&"-"&$C114)>0,IF($C114>0,VLOOKUP(RIGHT($I114,2)&"-"&$C114,Rankings!$B:$H,7,FALSE),""),0) -> 223.0206981 | G114: =IF($C114>0,VLOOKUP($C114,Μητρώο!$A:$F,4,FALSE),"") -> 2002 | H114: ΑΘΗ | I114: g16
A115: =A114+1 -> 58 | B115: 2 | C115: 29223 | D115: =IF($C115>0,VLOOKUP($C115,Μητρώο!$A:$F,3,FALSE),"") -> ΜΕΤΑΞΟΠΟΥΛΟΥ ΣΤΕΦΑΝΙΑ-ΕΛΕΝΑ | E115: =IF($C115>0,VLOOKUP($C115,Μητρώο!$A:$F,5,FALSE),"") -> Σ.Α.ΡΑΦΗΝΑΣ | F115: =IF(COUNTIF(Rankings!$B:$B,RIGHT($I115,2)&"-"&$C115)>0,IF($C115>0,VLOOKUP(RIGHT($I115,2)&"-"&$C115,Rankings!$B:$H,7,FALSE),""),0) -> 220.0325907 | G115: =IF($C115>0,VLOOKUP($C115,Μητρώο!$A:$F,4,FALSE),"") -> 2000 | H115: ΑΘΗ | I115: g16
A116: 58 | B116: 3 | C116: 26982 | D116: =IF($C116>0,VLOOKUP($C116,Μητρώο!$A:$F,3,FALSE),"") -> ΚΑΝΕΛΛΟΠΟΥΛΟΥ ΜΑΡΙΛΗ | E116: =IF($C116>0,VLOOKUP($C116,Μητρώο!$A:$F,5,FALSE),"") -> Α.Ο.ΤΑΤΟΪΟΥ | F116: =IF(COUNTIF(Rankings!$B:$B,RIGHT($I116,2)&"-"&$C116)>0,IF($C116>0,VLOOKUP(RIGHT($I116,2)&"-"&$C116,Rankings!$B:$H,7,FALSE),""),0) -> 182.0082488 | G116: =IF($C116>0,VLOOKUP($C116,Μητρώο!$A:$F,4,FALSE),"") -> 2000 | H116: ΑΘΗ | I116: g16
A117: =A116+1 -> 59 | B117: 4 | C117: 30774 | D117: =IF($C117>0,VLOOKUP($C117,Μητρώο!$A:$F,3,FALSE),"") -> ΡΕΝΤΟΥΜΗ ΜΑΡΙΑ | E117: =IF($C117>0,VLOOKUP($C117,Μητρώο!$A:$F,5,FALSE),"") -> Α.Κ.Α.Κ.Α.ΜΑΡΑΘΩΝΑ | F117: =IF(COUNTIF(Rankings!$B:$B,RIGHT($I117,2)&"-"&$C117)>0,IF($C117>0,VLOOKUP(RIGHT($I117,2)&"-"&$C117,Rankings!$B:$H,7,FALSE),""),0) -> 176.0076569 | G117: =IF($C117>0,VLOOKUP($C117,Μητρώο!$A:$F,4,FALSE),"") -> 2001 | H117: ΑΘΗ | I117: g16
A118: 59 | B118: 5 | C118: 31641 | D118: =IF($C118>0,VLOOKUP($C118,Μητρώο!$A:$F,3,FALSE),"") -> ΒΑΣΙΛΕΙΑΔΗ ΔΕΣΠΟΙΝΑ | E118: =IF($C118>0,VLOOKUP($C118,Μητρώο!$A:$F,5,FALSE),"") -> Α.Σ.ΚΟΛΛΕΓΙΟΥ ΝΤΕΡΗ | F118: =IF(COUNTIF(Rankings!$B:$B,RIGHT($I118,2)&"-"&$C118)>0,IF($C118>0,VLOOKUP(RIGHT($I118,2)&"-"&$C118,Rankings!$B:$H,7,FALSE),""),0) -> 112.0159916 | G118: =IF($C118>0,VLOOKUP($C118,Μητρώο!$A:$F,4,FALSE),"") -> 2001 | H118: ΑΘΗ | I118: g16
A119: =A118+1 -> 60 | B119: 6 | C119: 30709 | D119: =IF($C119>0,VLOOKUP($C119,Μητρώο!$A:$F,3,FALSE),"") -> ΣΜΥΡΛΟΓΛΟΥ ΧΡΙΣΤΙΝΑ-ΙΩΑΝΝΑ | E119: =IF($C119>0,VLOOKUP($C119,Μητρώο!$A:$F,5,FALSE),"") -> Σ.Α.ΡΑΦΗΝΑΣ | F119: =IF(COUNTIF(Rankings!$B:$B,RIGHT($I119,2)&"-"&$C119)>0,IF($C119>0,VLOOKUP(RIGHT($I119,2)&"-"&$C119,Rankings!$B:$H,7,FALSE),""),0) -> 106.0151832 | G119: =IF($C119>0,VLOOKUP($C119,Μητρώο!$A:$F,4,FALSE),"") -> 2000 | H119: ΑΘΗ | I119: g16
A120: 60 | B120: 7 | C120: 28420 | D120: =IF($C120>0,VLOOKUP($C120,Μητρώο!$A:$F,3,FALSE),"") -> ΣΙΑΪΝΗ ΑΘΑΝΑΣΙΑ | E120: =IF($C120>0,VLOOKUP($C120,Μητρώο!$A:$F,5,FALSE),"") -> Σ.Α.ΡΑΦΗΝΑΣ | F120: =IF(COUNTIF(Rankings!$B:$B,RIGHT($I120,2)&"-"&$C120)>0,IF($C120>0,VLOOKUP(RIGHT($I120,2)&"-"&$C120,Rankings!$B:$H,7,FALSE),""),0) -> 34.03536951 | G120: =IF($C120>0,VLOOKUP($C120,Μητρώο!$A:$F,4,FALSE),"") -> 2000 | H120: ΑΘΗ | I120: g16
A121: =A120+1 -> 61 | B121: 8 | C121: 32201 | D121: =IF($C121>0,VLOOKUP($C121,Μητρώο!$A:$F,3,FALSE),"") -> ΚΟΚΚΟΡΗ ΕΙΡΗΝΗ-ΕΛΕΝΗ | E121: =IF($C121>0,VLOOKUP($C121,Μητρώο!$A:$F,5,FALSE),"") -> Ο.Α.ΣΥΡΟΥ | F121: =IF(COUNTIF(Rankings!$B:$B,RIGHT($I121,2)&"-"&$C121)>0,IF($C121>0,VLOOKUP(RIGHT($I121,2)&"-"&$C121,Rankings!$B:$H,7,FALSE),""),0) -> 17.01252693 | G121: =IF($C121>0,VLOOKUP($C121,Μητρώο!$A:$F,4,FALSE),"") -> 2000 | H121: ΑΘΗ | I121: g16
A122: 61 | B122: 9 | C122: 30941 | D122: =IF($C122>0,VLOOKUP($C122,Μητρώο!$A:$F,3,FALSE),"") -> ΒΕΛΙΣΣΑΡΙΟΥ ΜΑΡΙΑ | E122: =IF($C122>0,VLOOKUP($C122,Μητρώο!$A:$F,5,FALSE),"") -> Α.Κ.Α.ΜΑΡΑΘΩΝΑ | F122: =IF(COUNTIF(Rankings!$B:$B,RIGHT($I122,2)&"-"&$C122)>0,IF($C122>0,VLOOKUP(RIGHT($I122,2)&"-"&$C122,Rankings!$B:$H,7,FALSE),""),0) -> 0 | G122: =IF($C122>0,VLOOKUP($C122,Μητρώο!$A:$F,4,FALSE),"") -> 2000 | H122: ΑΘΗ | I122: g16
A123: =A122+1 -> 62 | B123: 10 | C123: 37256 | D123: =IF($C123>0,VLOOKUP($C123,Μητρώο!$A:$F,3,FALSE),"") -> ΠΑΝΑΓΙΩΤΟΠΟΥΛΟΥ ΚΛΕΑΝΘΗ-ΑΓΓΕΛΙΚΗ | E123: =IF($C123>0,VLOOKUP($C123,Μητρώο!$A:$F,5,FALSE),"") -> Α.Σ.ΚΟΛΛΕΓΙΟΥ ΝΤΕΡΗ | F123: =IF(COUNTIF(Rankings!$B:$B,RIGHT($I123,2)&"-"&$C123)>0,IF($C123>0,VLOOKUP(RIGHT($I123,2)&"-"&$C123,Rankings!$B:$H,7,FALSE),""),0) -> 0 | G123: =IF($C123>0,VLOOKUP($C123,Μητρώο!$A:$F,4,FALSE),"") -> 2001 | H123: ΑΘΗ | I123: g16
A124: 62 | B124: 1 | D124: =IF($C124>0,VLOOKUP($C124,Μητρώο!$A:$F,3,FALSE),"") ->  | E124: =IF($C124>0,VLOOKUP($C124,Μητρώο!$A:$F,5,FALSE),"") ->  | F124: =IF(COUNTIF(Rankings!$B:$B,RIGHT($I124,2)&"-"&$C124)>0,IF($C124>0,VLOOKUP(RIGHT($I124,2)&"-"&$C124,Rankings!$B:$H,7,FALSE),""),0) -> 0 | G124: =IF($C124>0,VLOOKUP($C124,Μητρώο!$A:$F,4,FALSE),"") -> 
A125: =A124+1 -> 63 | B125: 2 | D125: =IF($C125>0,VLOOKUP($C125,Μητρώο!$A:$F,3,FALSE),"") ->  | E125: =IF($C125>0,VLOOKUP($C125,Μητρώο!$A:$F,5,FALSE),"") ->  | F125: =IF(COUNTIF(Rankings!$B:$B,RIGHT($I125,2)&"-"&$C125)>0,IF($C125>0,VLOOKUP(RIGHT($I125,2)&"-"&$C125,Rankings!$B:$H,7,FALSE),""),0) -> 0 | G125: =IF($C125>0,VLOOKUP($C125,Μητρώο!$A:$F,4,FALSE),"") -> 
A126: 63 | B126: 3 | D126: =IF($C126>0,VLOOKUP($C126,Μητρώο!$A:$F,3,FALSE),"") ->  | E126: =IF($C126>0,VLOOKUP($C126,Μητρώο!$A:$F,5,FALSE),"") ->  | F126: =IF(COUNTIF(Rankings!$B:$B,RIGHT($I126,2)&"-"&$C126)>0,IF($C126>0,VLOOKUP(RIGHT($I126,2)&"-"&$C126,Rankings!$B:$H,7,FALSE),""),0) -> 0 | G126: =IF($C126>0,VLOOKUP($C126,Μητρώο!$A:$F,4,FALSE),"") -> 
A127: =A126+1 -> 64 | B127: 4 | D127: =IF($C127>0,VLOOKUP($C127,Μητρώο!$A:$F,3,FALSE),"") ->  | E127: =IF($C127>0,VLOOKUP($C127,Μητρώο!$A:$F,5,FALSE),"") ->  | F127: =IF(COUNTIF(Rankings!$B:$B,RIGHT($I127,2)&"-"&$C127)>0,IF($C127>0,VLOOKUP(RIGHT($I127,2)&"-"&$C127,Rankings!$B:$H,7,FALSE),""),0) -> 0 | G127: =IF($C127>0,VLOOKUP($C127,Μητρώο!$A:$F,4,FALSE),"") -> 
A128: 64 | B128: 5 | D128: =IF($C128>0,VLOOKUP($C128,Μητρώο!$A:$F,3,FALSE),"") ->  | E128: =IF($C128>0,VLOOKUP($C128,Μητρώο!$A:$F,5,FALSE),"") ->  | F128: =IF(COUNTIF(Rankings!$B:$B,RIGHT($I128,2)&"-"&$C128)>0,IF($C128>0,VLOOKUP(RIGHT($I128,2)&"-"&$C128,Rankings!$B:$H,7,FALSE),""),0) -> 0 | G128: =IF($C128>0,VLOOKUP($C128,Μητρώο!$A:$F,4,FALSE),"") -> 
A129: =A128+1 -> 65 | B129: 6 | D129: =IF($C129>0,VLOOKUP($C129,Μητρώο!$A:$F,3,FALSE),"") ->  | E129: =IF($C129>0,VLOOKUP($C129,Μητρώο!$A:$F,5,FALSE),"") ->  | F129: =IF(COUNTIF(Rankings!$B:$B,RIGHT($I129,2)&"-"&$C129)>0,IF($C129>0,VLOOKUP(RIGHT($I129,2)&"-"&$C129,Rankings!$B:$H,7,FALSE),""),0) -> 0 | G129: =IF($C129>0,VLOOKUP($C129,Μητρώο!$A:$F,4,FALSE),"") -> 
A130: 65 | B130: 7 | D130: =IF($C130>0,VLOOKUP($C130,Μητρώο!$A:$F,3,FALSE),"") ->  | E130: =IF($C130>0,VLOOKUP($C130,Μητρώο!$A:$F,5,FALSE),"") ->  | F130: =IF(COUNTIF(Rankings!$B:$B,RIGHT($I130,2)&"-"&$C130)>0,IF($C130>0,VLOOKUP(RIGHT($I130,2)&"-"&$C130,Rankings!$B:$H,7,FALSE),""),0) -> 0 | G130: =IF($C130>0,VLOOKUP($C130,Μητρώο!$A:$F,4,FALSE),"") -> 
A131: =A130+1 -> 66 | B131: =IF(H131&I131=H130&I130,B130+1,1) -> 8 | D131: =IF($C131>0,VLOOKUP($C131,Μητρώο!$A:$F,3,FALSE),"") ->  | E131: =IF($C131>0,VLOOKUP($C131,Μητρώο!$A:$F,5,FALSE),"") ->  | F131: =IF(COUNTIF(Rankings!$B:$B,RIGHT($I131,2)&"-"&$C131)>0,IF($C131>0,VLOOKUP(RIGHT($I131,2)&"-"&$C131,Rankings!$B:$H,7,FALSE),""),0) -> 0 | G131: =IF($C131>0,VLOOKUP($C131,Μητρώο!$A:$F,4,FALSE),"") -> 
A132: 66 | B132: 9 | D132: =IF($C132>0,VLOOKUP($C132,Μητρώο!$A:$F,3,FALSE),"") ->  | E132: =IF($C132>0,VLOOKUP($C132,Μητρώο!$A:$F,5,FALSE),"") ->  | F132: =IF(COUNTIF(Rankings!$B:$B,RIGHT($I132,2)&"-"&$C132)>0,IF($C132>0,VLOOKUP(RIGHT($I132,2)&"-"&$C132,Rankings!$B:$H,7,FALSE),""),0) -> 0 | G132: =IF($C132>0,VLOOKUP($C132,Μητρώο!$A:$F,4,FALSE),"") -> 
A133: =A132+1 -> 67 | B133: 10 | D133: =IF($C133>0,VLOOKUP($C133,Μητρώο!$A:$F,3,FALSE),"") ->  | E133: =IF($C133>0,VLOOKUP($C133,Μητρώο!$A:$F,5,FALSE),"") ->  | F133: =IF(COUNTIF(Rankings!$B:$B,RIGHT($I133,2)&"-"&$C133)>0,IF($C133>0,VLOOKUP(RIGHT($I133,2)&"-"&$C133,Rankings!$B:$H,7,FALSE),""),0) -> 0 | G133: =IF($C133>0,VLOOKUP($C133,Μητρώο!$A:$F,4,FALSE),"") -> 
A134: 67 | B134: 11 | D134: =IF($C134>0,VLOOKUP($C134,Μητρώο!$A:$F,3,FALSE),"") ->  | E134: =IF($C134>0,VLOOKUP($C134,Μητρώο!$A:$F,5,FALSE),"") ->  | F134: =IF(COUNTIF(Rankings!$B:$B,RIGHT($I134,2)&"-"&$C134)>0,IF($C134>0,VLOOKUP(RIGHT($I134,2)&"-"&$C134,Rankings!$B:$H,7,FALSE),""),0) -> 0 | G134: =IF($C134>0,VLOOKUP($C134,Μητρώο!$A:$F,4,FALSE),"") -> 
A135: =A134+1 -> 68 | B135: 12 | D135: =IF($C135>0,VLOOKUP($C135,Μητρώο!$A:$F,3,FALSE),"") ->  | E135: =IF($C135>0,VLOOKUP($C135,Μητρώο!$A:$F,5,FALSE),"") ->  | F135: =IF(COUNTIF(Rankings!$B:$B,RIGHT($I135,2)&"-"&$C135)>0,IF($C135>0,VLOOKUP(RIGHT($I135,2)&"-"&$C135,Rankings!$B:$H,7,FALSE),""),0) -> 0 | G135: =IF($C135>0,VLOOKUP($C135,Μητρώο!$A:$F,4,FALSE),"") -> 
A136: 68 | B136: 13 | D136: =IF($C136>0,VLOOKUP($C136,Μητρώο!$A:$F,3,FALSE),"") ->  | E136: =IF($C136>0,VLOOKUP($C136,Μητρώο!$A:$F,5,FALSE),"") ->  | F136: =IF(COUNTIF(Rankings!$B:$B,RIGHT($I136,2)&"-"&$C136)>0,IF($C136>0,VLOOKUP(RIGHT($I136,2)&"-"&$C136,Rankings!$B:$H,7,FALSE),""),0) -> 0 | G136: =IF($C136>0,VLOOKUP($C136,Μητρώο!$A:$F,4,FALSE),"") -> 
A137: =A136+1 -> 69 | B137: 14 | D137: =IF($C137>0,VLOOKUP($C137,Μητρώο!$A:$F,3,FALSE),"") ->  | E137: =IF($C137>0,VLOOKUP($C137,Μητρώο!$A:$F,5,FALSE),"") ->  | F137: =IF(COUNTIF(Rankings!$B:$B,RIGHT($I137,2)&"-"&$C137)>0,IF($C137>0,VLOOKUP(RIGHT($I137,2)&"-"&$C137,Rankings!$B:$H,7,FALSE),""),0) -> 0 | G137: =IF($C137>0,VLOOKUP($C137,Μητρώο!$A:$F,4,FALSE),"") -> 
A138: 69 | B138: 15 | D138: =IF($C138>0,VLOOKUP($C138,Μητρώο!$A:$F,3,FALSE),"") ->  | E138: =IF($C138>0,VLOOKUP($C138,Μητρώο!$A:$F,5,FALSE),"") ->  | F138: =IF(COUNTIF(Rankings!$B:$B,RIGHT($I138,2)&"-"&$C138)>0,IF($C138>0,VLOOKUP(RIGHT($I138,2)&"-"&$C138,Rankings!$B:$H,7,FALSE),""),0) -> 0 | G138: =IF($C138>0,VLOOKUP($C138,Μητρώο!$A:$F,4,FALSE),"") -> 
A139: =A138+1 -> 70 | B139: 16 | D139: =IF($C139>0,VLOOKUP($C139,Μητρώο!$A:$F,3,FALSE),"") ->  | E139: =IF($C139>0,VLOOKUP($C139,Μητρώο!$A:$F,5,FALSE),"") ->  | F139: =IF(COUNTIF(Rankings!$B:$B,RIGHT($I139,2)&"-"&$C139)>0,IF($C139>0,VLOOKUP(RIGHT($I139,2)&"-"&$C139,Rankings!$B:$H,7,FALSE),""),0) -> 0 | G139: =IF($C139>0,VLOOKUP($C139,Μητρώο!$A:$F,4,FALSE),"") -> 
A140: 70 | B140: 17 | D140: =IF($C140>0,VLOOKUP($C140,Μητρώο!$A:$F,3,FALSE),"") ->  | E140: =IF($C140>0,VLOOKUP($C140,Μητρώο!$A:$F,5,FALSE),"") ->  | F140: =IF(COUNTIF(Rankings!$B:$B,RIGHT($I140,2)&"-"&$C140)>0,IF($C140>0,VLOOKUP(RIGHT($I140,2)&"-"&$C140,Rankings!$B:$H,7,FALSE),""),0) -> 0 | G140: =IF($C140>0,VLOOKUP($C140,Μητρώο!$A:$F,4,FALSE),"") -> 
A141: =A140+1 -> 71 | B141: 18 | D141: =IF($C141>0,VLOOKUP($C141,Μητρώο!$A:$F,3,FALSE),"") ->  | E141: =IF($C141>0,VLOOKUP($C141,Μητρώο!$A:$F,5,FALSE),"") ->  | F141: =IF(COUNTIF(Rankings!$B:$B,RIGHT($I141,2)&"-"&$C141)>0,IF($C141>0,VLOOKUP(RIGHT($I141,2)&"-"&$C141,Rankings!$B:$H,7,FALSE),""),0) -> 0 | G141: =IF($C141>0,VLOOKUP($C141,Μητρώο!$A:$F,4,FALSE),"") -> 
A142: 71 | B142: 19 | D142: =IF($C142>0,VLOOKUP($C142,Μητρώο!$A:$F,3,FALSE),"") ->  | E142: =IF($C142>0,VLOOKUP($C142,Μητρώο!$A:$F,5,FALSE),"") ->  | F142: =IF(COUNTIF(Rankings!$B:$B,RIGHT($I142,2)&"-"&$C142)>0,IF($C142>0,VLOOKUP(RIGHT($I142,2)&"-"&$C142,Rankings!$B:$H,7,FALSE),""),0) -> 0 | G142: =IF($C142>0,VLOOKUP($C142,Μητρώο!$A:$F,4,FALSE),"") -> 
A143: =A142+1 -> 72 | B143: 20 | D143: =IF($C143>0,VLOOKUP($C143,Μητρώο!$A:$F,3,FALSE),"") ->  | E143: =IF($C143>0,VLOOKUP($C143,Μητρώο!$A:$F,5,FALSE),"") ->  | F143: =IF(COUNTIF(Rankings!$B:$B,RIGHT($I143,2)&"-"&$C143)>0,IF($C143>0,VLOOKUP(RIGHT($I143,2)&"-"&$C143,Rankings!$B:$H,7,FALSE),""),0) -> 0 | G143: =IF($C143>0,VLOOKUP($C143,Μητρώο!$A:$F,4,FALSE),"") -> 
A144: 72 | B144: 21 | D144: =IF($C144>0,VLOOKUP($C144,Μητρώο!$A:$F,3,FALSE),"") ->  | E144: =IF($C144>0,VLOOKUP($C144,Μητρώο!$A:$F,5,FALSE),"") ->  | F144: =IF(COUNTIF(Rankings!$B:$B,RIGHT($I144,2)&"-"&$C144)>0,IF($C144>0,VLOOKUP(RIGHT($I144,2)&"-"&$C144,Rankings!$B:$H,7,FALSE),""),0) -> 0 | G144: =IF($C144>0,VLOOKUP($C144,Μητρώο!$A:$F,4,FALSE),"") -> 
A145: =A144+1 -> 73 | B145: 22 | D145: =IF($C145>0,VLOOKUP($C145,Μητρώο!$A:$F,3,FALSE),"") ->  | E145: =IF($C145>0,VLOOKUP($C145,Μητρώο!$A:$F,5,FALSE),"") ->  | F145: =IF(COUNTIF(Rankings!$B:$B,RIGHT($I145,2)&"-"&$C145)>0,IF($C145>0,VLOOKUP(RIGHT($I145,2)&"-"&$C145,Rankings!$B:$H,7,FALSE),""),0) -> 0 | G145: =IF($C145>0,VLOOKUP($C145,Μητρώο!$A:$F,4,FALSE),"") -> 
A146: 73 | B146: 23 | D146: =IF($C146>0,VLOOKUP($C146,Μητρώο!$A:$F,3,FALSE),"") ->  | E146: =IF($C146>0,VLOOKUP($C146,Μητρώο!$A:$F,5,FALSE),"") ->  | F146: =IF(COUNTIF(Rankings!$B:$B,RIGHT($I146,2)&"-"&$C146)>0,IF($C146>0,VLOOKUP(RIGHT($I146,2)&"-"&$C146,Rankings!$B:$H,7,FALSE),""),0) -> 0 | G146: =IF($C146>0,VLOOKUP($C146,Μητρώο!$A:$F,4,FALSE),"") -> 
A147: =A146+1 -> 74 | B147: 24 | D147: =IF($C147>0,VLOOKUP($C147,Μητρώο!$A:$F,3,FALSE),"") ->  | E147: =IF($C147>0,VLOOKUP($C147,Μητρώο!$A:$F,5,FALSE),"") ->  | F147: =IF(COUNTIF(Rankings!$B:$B,RIGHT($I147,2)&"-"&$C147)>0,IF($C147>0,VLOOKUP(RIGHT($I147,2)&"-"&$C147,Rankings!$B:$H,7,FALSE),""),0) -> 0 | G147: =IF($C147>0,VLOOKUP($C147,Μητρώο!$A:$F,4,FALSE),"") -> 
A148: 74 | B148: 25 | D148: =IF($C148>0,VLOOKUP($C148,Μητρώο!$A:$F,3,FALSE),"") ->  | E148: =IF($C148>0,VLOOKUP($C148,Μητρώο!$A:$F,5,FALSE),"") ->  | F148: =IF(COUNTIF(Rankings!$B:$B,RIGHT($I148,2)&"-"&$C148)>0,IF($C148>0,VLOOKUP(RIGHT($I148,2)&"-"&$C148,Rankings!$B:$H,7,FALSE),""),0) -> 0 | G148: =IF($C148>0,VLOOKUP($C148,Μητρώο!$A:$F,4,FALSE),"") -> 
A149: =A148+1 -> 75 | B149: 26 | D149: =IF($C149>0,VLOOKUP($C149,Μητρώο!$A:$F,3,FALSE),"") ->  | E149: =IF($C149>0,VLOOKUP($C149,Μητρώο!$A:$F,5,FALSE),"") ->  | F149: =IF(COUNTIF(Rankings!$B:$B,RIGHT($I149,2)&"-"&$C149)>0,IF($C149>0,VLOOKUP(RIGHT($I149,2)&"-"&$C149,Rankings!$B:$H,7,FALSE),""),0) -> 0 | G149: =IF($C149>0,VLOOKUP($C149,Μητρώο!$A:$F,4,FALSE),"") -> 
A150: 75 | B150: 27 | D150: =IF($C150>0,VLOOKUP($C150,Μητρώο!$A:$F,3,FALSE),"") ->  | E150: =IF($C150>0,VLOOKUP($C150,Μητρώο!$A:$F,5,FALSE),"") ->  | F150: =IF(COUNTIF(Rankings!$B:$B,RIGHT($I150,2)&"-"&$C150)>0,IF($C150>0,VLOOKUP(RIGHT($I150,2)&"-"&$C150,Rankings!$B:$H,7,FALSE),""),0) -> 0 | G150: =IF($C150>0,VLOOKUP($C150,Μητρώο!$A:$F,4,FALSE),"") -> 
A151: =A150+1 -> 76 | B151: 28 | D151: =IF($C151>0,VLOOKUP($C151,Μητρώο!$A:$F,3,FALSE),"") ->  | E151: =IF($C151>0,VLOOKUP($C151,Μητρώο!$A:$F,5,FALSE),"") ->  | F151: =IF(COUNTIF(Rankings!$B:$B,RIGHT($I151,2)&"-"&$C151)>0,IF($C151>0,VLOOKUP(RIGHT($I151,2)&"-"&$C151,Rankings!$B:$H,7,FALSE),""),0) -> 0 | G151: =IF($C151>0,VLOOKUP($C151,Μητρώο!$A:$F,4,FALSE),"") -> 
A152: 76 | B152: 29 | D152: =IF($C152>0,VLOOKUP($C152,Μητρώο!$A:$F,3,FALSE),"") ->  | E152: =IF($C152>0,VLOOKUP($C152,Μητρώο!$A:$F,5,FALSE),"") ->  | F152: =IF(COUNTIF(Rankings!$B:$B,RIGHT($I152,2)&"-"&$C152)>0,IF($C152>0,VLOOKUP(RIGHT($I152,2)&"-"&$C152,Rankings!$B:$H,7,FALSE),""),0) -> 0 | G152: =IF($C152>0,VLOOKUP($C152,Μητρώο!$A:$F,4,FALSE),"") -> 
A153: =A152+1 -> 77 | B153: 30 | D153: =IF($C153>0,VLOOKUP($C153,Μητρώο!$A:$F,3,FALSE),"") ->  | E153: =IF($C153>0,VLOOKUP($C153,Μητρώο!$A:$F,5,FALSE),"") ->  | F153: =IF(COUNTIF(Rankings!$B:$B,RIGHT($I153,2)&"-"&$C153)>0,IF($C153>0,VLOOKUP(RIGHT($I153,2)&"-"&$C153,Rankings!$B:$H,7,FALSE),""),0) -> 0 | G153: =IF($C153>0,VLOOKUP($C153,Μητρώο!$A:$F,4,FALSE),"") -> 
A154: 77 | B154: 31 | D154: =IF($C154>0,VLOOKUP($C154,Μητρώο!$A:$F,3,FALSE),"") ->  | E154: =IF($C154>0,VLOOKUP($C154,Μητρώο!$A:$F,5,FALSE),"") ->  | F154: =IF(COUNTIF(Rankings!$B:$B,RIGHT($I154,2)&"-"&$C154)>0,IF($C154>0,VLOOKUP(RIGHT($I154,2)&"-"&$C154,Rankings!$B:$H,7,FALSE),""),0) -> 0 | G154: =IF($C154>0,VLOOKUP($C154,Μητρώο!$A:$F,4,FALSE),"") -> 
A155: =A154+1 -> 78 | B155: 32 | D155: =IF($C155>0,VLOOKUP($C155,Μητρώο!$A:$F,3,FALSE),"") ->  | E155: =IF($C155>0,VLOOKUP($C155,Μητρώο!$A:$F,5,FALSE),"") ->  | F155: =IF(COUNTIF(Rankings!$B:$B,RIGHT($I155,2)&"-"&$C155)>0,IF($C155>0,VLOOKUP(RIGHT($I155,2)&"-"&$C155,Rankings!$B:$H,7,FALSE),""),0) -> 0 | G155: =IF($C155>0,VLOOKUP($C155,Μητρώο!$A:$F,4,FALSE),"") -> 
A156: 78 | B156: 33 | D156: =IF($C156>0,VLOOKUP($C156,Μητρώο!$A:$F,3,FALSE),"") ->  | E156: =IF($C156>0,VLOOKUP($C156,Μητρώο!$A:$F,5,FALSE),"") ->  | F156: =IF(COUNTIF(Rankings!$B:$B,RIGHT($I156,2)&"-"&$C156)>0,IF($C156>0,VLOOKUP(RIGHT($I156,2)&"-"&$C156,Rankings!$B:$H,7,FALSE),""),0) -> 0 | G156: =IF($C156>0,VLOOKUP($C156,Μητρώο!$A:$F,4,FALSE),"") -> 
A157: =A156+1 -> 79 | B157: 34 | D157: =IF($C157>0,VLOOKUP($C157,Μητρώο!$A:$F,3,FALSE),"") ->  | E157: =IF($C157>0,VLOOKUP($C157,Μητρώο!$A:$F,5,FALSE),"") ->  | F157: =IF(COUNTIF(Rankings!$B:$B,RIGHT($I157,2)&"-"&$C157)>0,IF($C157>0,VLOOKUP(RIGHT($I157,2)&"-"&$C157,Rankings!$B:$H,7,FALSE),""),0) -> 0 | G157: =IF($C157>0,VLOOKUP($C157,Μητρώο!$A:$F,4,FALSE),"") -> 
A158: 79 | B158: 35 | D158: =IF($C158>0,VLOOKUP($C158,Μητρώο!$A:$F,3,FALSE),"") ->  | E158: =IF($C158>0,VLOOKUP($C158,Μητρώο!$A:$F,5,FALSE),"") ->  | F158: =IF(COUNTIF(Rankings!$B:$B,RIGHT($I158,2)&"-"&$C158)>0,IF($C158>0,VLOOKUP(RIGHT($I158,2)&"-"&$C158,Rankings!$B:$H,7,FALSE),""),0) -> 0 | G158: =IF($C158>0,VLOOKUP($C158,Μητρώο!$A:$F,4,FALSE),"") -> 
A159: =A158+1 -> 80 | B159: 36 | D159: =IF($C159>0,VLOOKUP($C159,Μητρώο!$A:$F,3,FALSE),"") ->  | E159: =IF($C159>0,VLOOKUP($C159,Μητρώο!$A:$F,5,FALSE),"") ->  | F159: =IF(COUNTIF(Rankings!$B:$B,RIGHT($I159,2)&"-"&$C159)>0,IF($C159>0,VLOOKUP(RIGHT($I159,2)&"-"&$C159,Rankings!$B:$H,7,FALSE),""),0) -> 0 | G159: =IF($C159>0,VLOOKUP($C159,Μητρώο!$A:$F,4,FALSE),"") -> 
A160: 80 | B160: 37 | D160: =IF($C160>0,VLOOKUP($C160,Μητρώο!$A:$F,3,FALSE),"") ->  | E160: =IF($C160>0,VLOOKUP($C160,Μητρώο!$A:$F,5,FALSE),"") ->  | F160: =IF(COUNTIF(Rankings!$B:$B,RIGHT($I160,2)&"-"&$C160)>0,IF($C160>0,VLOOKUP(RIGHT($I160,2)&"-"&$C160,Rankings!$B:$H,7,FALSE),""),0) -> 0 | G160: =IF($C160>0,VLOOKUP($C160,Μητρώο!$A:$F,4,FALSE),"") -> 
A161: =A160+1 -> 81 | B161: 38 | D161: =IF($C161>0,VLOOKUP($C161,Μητρώο!$A:$F,3,FALSE),"") ->  | E161: =IF($C161>0,VLOOKUP($C161,Μητρώο!$A:$F,5,FALSE),"") ->  | F161: =IF(COUNTIF(Rankings!$B:$B,RIGHT($I161,2)&"-"&$C161)>0,IF($C161>0,VLOOKUP(RIGHT($I161,2)&"-"&$C161,Rankings!$B:$H,7,FALSE),""),0) -> 0 | G161: =IF($C161>0,VLOOKUP($C161,Μητρώο!$A:$F,4,FALSE),"") -> 
A162: 81 | B162: 39 | D162: =IF($C162>0,VLOOKUP($C162,Μητρώο!$A:$F,3,FALSE),"") ->  | E162: =IF($C162>0,VLOOKUP($C162,Μητρώο!$A:$F,5,FALSE),"") ->  | F162: =IF(COUNTIF(Rankings!$B:$B,RIGHT($I162,2)&"-"&$C162)>0,IF($C162>0,VLOOKUP(RIGHT($I162,2)&"-"&$C162,Rankings!$B:$H,7,FALSE),""),0) -> 0 | G162: =IF($C162>0,VLOOKUP($C162,Μητρώο!$A:$F,4,FALSE),"") -> 
A163: =A162+1 -> 82 | B163: 40 | D163: =IF($C163>0,VLOOKUP($C163,Μητρώο!$A:$F,3,FALSE),"") ->  | E163: =IF($C163>0,VLOOKUP($C163,Μητρώο!$A:$F,5,FALSE),"") ->  | F163: =IF(COUNTIF(Rankings!$B:$B,RIGHT($I163,2)&"-"&$C163)>0,IF($C163>0,VLOOKUP(RIGHT($I163,2)&"-"&$C163,Rankings!$B:$H,7,FALSE),""),0) -> 0 | G163: =IF($C163>0,VLOOKUP($C163,Μητρώο!$A:$F,4,FALSE),"") -> 
A164: 82 | B164: 41 | D164: =IF($C164>0,VLOOKUP($C164,Μητρώο!$A:$F,3,FALSE),"") ->  | E164: =IF($C164>0,VLOOKUP($C164,Μητρώο!$A:$F,5,FALSE),"") ->  | F164: =IF(COUNTIF(Rankings!$B:$B,RIGHT($I164,2)&"-"&$C164)>0,IF($C164>0,VLOOKUP(RIGHT($I164,2)&"-"&$C164,Rankings!$B:$H,7,FALSE),""),0) -> 0 | G164: =IF($C164>0,VLOOKUP($C164,Μητρώο!$A:$F,4,FALSE),"") -> 
A165: =A164+1 -> 83 | B165: 42 | D165: =IF($C165>0,VLOOKUP($C165,Μητρώο!$A:$F,3,FALSE),"") ->  | E165: =IF($C165>0,VLOOKUP($C165,Μητρώο!$A:$F,5,FALSE),"") ->  | F165: =IF(COUNTIF(Rankings!$B:$B,RIGHT($I165,2)&"-"&$C165)>0,IF($C165>0,VLOOKUP(RIGHT($I165,2)&"-"&$C165,Rankings!$B:$H,7,FALSE),""),0) -> 0 | G165: =IF($C165>0,VLOOKUP($C165,Μητρώο!$A:$F,4,FALSE),"") -> 
A166: 83 | B166: 43 | D166: =IF($C166>0,VLOOKUP($C166,Μητρώο!$A:$F,3,FALSE),"") ->  | E166: =IF($C166>0,VLOOKUP($C166,Μητρώο!$A:$F,5,FALSE),"") ->  | F166: =IF(COUNTIF(Rankings!$B:$B,RIGHT($I166,2)&"-"&$C166)>0,IF($C166>0,VLOOKUP(RIGHT($I166,2)&"-"&$C166,Rankings!$B:$H,7,FALSE),""),0) -> 0 | G166: =IF($C166>0,VLOOKUP($C166,Μητρώο!$A:$F,4,FALSE),"") -> 
A167: =A166+1 -> 84 | B167: 44 | D167: =IF($C167>0,VLOOKUP($C167,Μητρώο!$A:$F,3,FALSE),"") ->  | E167: =IF($C167>0,VLOOKUP($C167,Μητρώο!$A:$F,5,FALSE),"") ->  | F167: =IF(COUNTIF(Rankings!$B:$B,RIGHT($I167,2)&"-"&$C167)>0,IF($C167>0,VLOOKUP(RIGHT($I167,2)&"-"&$C167,Rankings!$B:$H,7,FALSE),""),0) -> 0 | G167: =IF($C167>0,VLOOKUP($C167,Μητρώο!$A:$F,4,FALSE),"") -> 
A168: 84 | B168: 45 | D168: =IF($C168>0,VLOOKUP($C168,Μητρώο!$A:$F,3,FALSE),"") ->  | E168: =IF($C168>0,VLOOKUP($C168,Μητρώο!$A:$F,5,FALSE),"") ->  | F168: =IF(COUNTIF(Rankings!$B:$B,RIGHT($I168,2)&"-"&$C168)>0,IF($C168>0,VLOOKUP(RIGHT($I168,2)&"-"&$C168,Rankings!$B:$H,7,FALSE),""),0) -> 0 | G168: =IF($C168>0,VLOOKUP($C168,Μητρώο!$A:$F,4,FALSE),"") -> 
A169: =A168+1 -> 85 | B169: 46 | D169: =IF($C169>0,VLOOKUP($C169,Μητρώο!$A:$F,3,FALSE),"") ->  | E169: =IF($C169>0,VLOOKUP($C169,Μητρώο!$A:$F,5,FALSE),"") ->  | F169: =IF(COUNTIF(Rankings!$B:$B,RIGHT($I169,2)&"-"&$C169)>0,IF($C169>0,VLOOKUP(RIGHT($I169,2)&"-"&$C169,Rankings!$B:$H,7,FALSE),""),0) -> 0 | G169: =IF($C169>0,VLOOKUP($C169,Μητρώο!$A:$F,4,FALSE),"") -> 
A170: 85 | B170: 47 | D170: =IF($C170>0,VLOOKUP($C170,Μητρώο!$A:$F,3,FALSE),"") ->  | E170: =IF($C170>0,VLOOKUP($C170,Μητρώο!$A:$F,5,FALSE),"") ->  | F170: =IF(COUNTIF(Rankings!$B:$B,RIGHT($I170,2)&"-"&$C170)>0,IF($C170>0,VLOOKUP(RIGHT($I170,2)&"-"&$C170,Rankings!$B:$H,7,FALSE),""),0) -> 0 | G170: =IF($C170>0,VLOOKUP($C170,Μητρώο!$A:$F,4,FALSE),"") -> 
A171: =A170+1 -> 86 | B171: 48 | D171: =IF($C171>0,VLOOKUP($C171,Μητρώο!$A:$F,3,FALSE),"") ->  | E171: =IF($C171>0,VLOOKUP($C171,Μητρώο!$A:$F,5,FALSE),"") ->  | F171: =IF(COUNTIF(Rankings!$B:$B,RIGHT($I171,2)&"-"&$C171)>0,IF($C171>0,VLOOKUP(RIGHT($I171,2)&"-"&$C171,Rankings!$B:$H,7,FALSE),""),0) -> 0 | G171: =IF($C171>0,VLOOKUP($C171,Μητρώο!$A:$F,4,FALSE),"") -> 
A172: 86 | B172: 49 | D172: =IF($C172>0,VLOOKUP($C172,Μητρώο!$A:$F,3,FALSE),"") ->  | E172: =IF($C172>0,VLOOKUP($C172,Μητρώο!$A:$F,5,FALSE),"") ->  | F172: =IF(COUNTIF(Rankings!$B:$B,RIGHT($I172,2)&"-"&$C172)>0,IF($C172>0,VLOOKUP(RIGHT($I172,2)&"-"&$C172,Rankings!$B:$H,7,FALSE),""),0) -> 0 | G172: =IF($C172>0,VLOOKUP($C172,Μητρώο!$A:$F,4,FALSE),"") -> 
A173: =A172+1 -> 87 | B173: 50 | D173: =IF($C173>0,VLOOKUP($C173,Μητρώο!$A:$F,3,FALSE),"") ->  | E173: =IF($C173>0,VLOOKUP($C173,Μητρώο!$A:$F,5,FALSE),"") ->  | F173: =IF(COUNTIF(Rankings!$B:$B,RIGHT($I173,2)&"-"&$C173)>0,IF($C173>0,VLOOKUP(RIGHT($I173,2)&"-"&$C173,Rankings!$B:$H,7,FALSE),""),0) -> 0 | G173: =IF($C173>0,VLOOKUP($C173,Μητρώο!$A:$F,4,FALSE),"") -> 
A174: 87 | B174: 51 | D174: =IF($C174>0,VLOOKUP($C174,Μητρώο!$A:$F,3,FALSE),"") ->  | E174: =IF($C174>0,VLOOKUP($C174,Μητρώο!$A:$F,5,FALSE),"") ->  | F174: =IF(COUNTIF(Rankings!$B:$B,RIGHT($I174,2)&"-"&$C174)>0,IF($C174>0,VLOOKUP(RIGHT($I174,2)&"-"&$C174,Rankings!$B:$H,7,FALSE),""),0) -> 0 | G174: =IF($C174>0,VLOOKUP($C174,Μητρώο!$A:$F,4,FALSE),"") -> 
A175: =A174+1 -> 88 | B175: 52 | D175: =IF($C175>0,VLOOKUP($C175,Μητρώο!$A:$F,3,FALSE),"") ->  | E175: =IF($C175>0,VLOOKUP($C175,Μητρώο!$A:$F,5,FALSE),"") ->  | F175: =IF(COUNTIF(Rankings!$B:$B,RIGHT($I175,2)&"-"&$C175)>0,IF($C175>0,VLOOKUP(RIGHT($I175,2)&"-"&$C175,Rankings!$B:$H,7,FALSE),""),0) -> 0 | G175: =IF($C175>0,VLOOKUP($C175,Μητρώο!$A:$F,4,FALSE),"") -> 
A176: 88 | B176: 53 | D176: =IF($C176>0,VLOOKUP($C176,Μητρώο!$A:$F,3,FALSE),"") ->  | E176: =IF($C176>0,VLOOKUP($C176,Μητρώο!$A:$F,5,FALSE),"") ->  | F176: =IF(COUNTIF(Rankings!$B:$B,RIGHT($I176,2)&"-"&$C176)>0,IF($C176>0,VLOOKUP(RIGHT($I176,2)&"-"&$C176,Rankings!$B:$H,7,FALSE),""),0) -> 0 | G176: =IF($C176>0,VLOOKUP($C176,Μητρώο!$A:$F,4,FALSE),"") -> 
A177: =A176+1 -> 89 | B177: 54 | D177: =IF($C177>0,VLOOKUP($C177,Μητρώο!$A:$F,3,FALSE),"") ->  | E177: =IF($C177>0,VLOOKUP($C177,Μητρώο!$A:$F,5,FALSE),"") ->  | F177: =IF(COUNTIF(Rankings!$B:$B,RIGHT($I177,2)&"-"&$C177)>0,IF($C177>0,VLOOKUP(RIGHT($I177,2)&"-"&$C177,Rankings!$B:$H,7,FALSE),""),0) -> 0 | G177: =IF($C177>0,VLOOKUP($C177,Μητρώο!$A:$F,4,FALSE),"") -> 
A178: 89 | B178: 55 | D178: =IF($C178>0,VLOOKUP($C178,Μητρώο!$A:$F,3,FALSE),"") ->  | E178: =IF($C178>0,VLOOKUP($C178,Μητρώο!$A:$F,5,FALSE),"") ->  | F178: =IF(COUNTIF(Rankings!$B:$B,RIGHT($I178,2)&"-"&$C178)>0,IF($C178>0,VLOOKUP(RIGHT($I178,2)&"-"&$C178,Rankings!$B:$H,7,FALSE),""),0) -> 0 | G178: =IF($C178>0,VLOOKUP($C178,Μητρώο!$A:$F,4,FALSE),"") -> 
A179: =A178+1 -> 90 | B179: 56 | D179: =IF($C179>0,VLOOKUP($C179,Μητρώο!$A:$F,3,FALSE),"") ->  | E179: =IF($C179>0,VLOOKUP($C179,Μητρώο!$A:$F,5,FALSE),"") ->  | F179: =IF(COUNTIF(Rankings!$B:$B,RIGHT($I179,2)&"-"&$C179)>0,IF($C179>0,VLOOKUP(RIGHT($I179,2)&"-"&$C179,Rankings!$B:$H,7,FALSE),""),0) -> 0 | G179: =IF($C179>0,VLOOKUP($C179,Μητρώο!$A:$F,4,FALSE),"") -> 
A180: 90 | B180: 57 | D180: =IF($C180>0,VLOOKUP($C180,Μητρώο!$A:$F,3,FALSE),"") ->  | E180: =IF($C180>0,VLOOKUP($C180,Μητρώο!$A:$F,5,FALSE),"") ->  | F180: =IF(COUNTIF(Rankings!$B:$B,RIGHT($I180,2)&"-"&$C180)>0,IF($C180>0,VLOOKUP(RIGHT($I180,2)&"-"&$C180,Rankings!$B:$H,7,FALSE),""),0) -> 0 | G180: =IF($C180>0,VLOOKUP($C180,Μητρώο!$A:$F,4,FALSE),"") -> 
A181: =A180+1 -> 91 | B181: 58 | D181: =IF($C181>0,VLOOKUP($C181,Μητρώο!$A:$F,3,FALSE),"") ->  | E181: =IF($C181>0,VLOOKUP($C181,Μητρώο!$A:$F,5,FALSE),"") ->  | F181: =IF(COUNTIF(Rankings!$B:$B,RIGHT($I181,2)&"-"&$C181)>0,IF($C181>0,VLOOKUP(RIGHT($I181,2)&"-"&$C181,Rankings!$B:$H,7,FALSE),""),0) -> 0 | G181: =IF($C181>0,VLOOKUP($C181,Μητρώο!$A:$F,4,FALSE),"") -> 
A182: 91 | B182: 59 | D182: =IF($C182>0,VLOOKUP($C182,Μητρώο!$A:$F,3,FALSE),"") ->  | E182: =IF($C182>0,VLOOKUP($C182,Μητρώο!$A:$F,5,FALSE),"") ->  | F182: =IF(COUNTIF(Rankings!$B:$B,RIGHT($I182,2)&"-"&$C182)>0,IF($C182>0,VLOOKUP(RIGHT($I182,2)&"-"&$C182,Rankings!$B:$H,7,FALSE),""),0) -> 0 | G182: =IF($C182>0,VLOOKUP($C182,Μητρώο!$A:$F,4,FALSE),"") -> 
A183: =A182+1 -> 92 | B183: 60 | D183: =IF($C183>0,VLOOKUP($C183,Μητρώο!$A:$F,3,FALSE),"") ->  | E183: =IF($C183>0,VLOOKUP($C183,Μητρώο!$A:$F,5,FALSE),"") ->  | F183: =IF(COUNTIF(Rankings!$B:$B,RIGHT($I183,2)&"-"&$C183)>0,IF($C183>0,VLOOKUP(RIGHT($I183,2)&"-"&$C183,Rankings!$B:$H,7,FALSE),""),0) -> 0 | G183: =IF($C183>0,VLOOKUP($C183,Μητρώο!$A:$F,4,FALSE),"") -> 
A184: 92 | B184: 61 | D184: =IF($C184>0,VLOOKUP($C184,Μητρώο!$A:$F,3,FALSE),"") ->  | E184: =IF($C184>0,VLOOKUP($C184,Μητρώο!$A:$F,5,FALSE),"") ->  | F184: =IF(COUNTIF(Rankings!$B:$B,RIGHT($I184,2)&"-"&$C184)>0,IF($C184>0,VLOOKUP(RIGHT($I184,2)&"-"&$C184,Rankings!$B:$H,7,FALSE),""),0) -> 0 | G184: =IF($C184>0,VLOOKUP($C184,Μητρώο!$A:$F,4,FALSE),"") -> 
A185: =A184+1 -> 93 | B185: 62 | D185: =IF($C185>0,VLOOKUP($C185,Μητρώο!$A:$F,3,FALSE),"") ->  | E185: =IF($C185>0,VLOOKUP($C185,Μητρώο!$A:$F,5,FALSE),"") ->  | F185: =IF(COUNTIF(Rankings!$B:$B,RIGHT($I185,2)&"-"&$C185)>0,IF($C185>0,VLOOKUP(RIGHT($I185,2)&"-"&$C185,Rankings!$B:$H,7,FALSE),""),0) -> 0 | G185: =IF($C185>0,VLOOKUP($C185,Μητρώο!$A:$F,4,FALSE),"") -> 
A186: 93 | B186: 63 | D186: =IF($C186>0,VLOOKUP($C186,Μητρώο!$A:$F,3,FALSE),"") ->  | E186: =IF($C186>0,VLOOKUP($C186,Μητρώο!$A:$F,5,FALSE),"") ->  | F186: =IF(COUNTIF(Rankings!$B:$B,RIGHT($I186,2)&"-"&$C186)>0,IF($C186>0,VLOOKUP(RIGHT($I186,2)&"-"&$C186,Rankings!$B:$H,7,FALSE),""),0) -> 0 | G186: =IF($C186>0,VLOOKUP($C186,Μητρώο!$A:$F,4,FALSE),"") -> 
A187: =A186+1 -> 94 | B187: 64 | D187: =IF($C187>0,VLOOKUP($C187,Μητρώο!$A:$F,3,FALSE),"") ->  | E187: =IF($C187>0,VLOOKUP($C187,Μητρώο!$A:$F,5,FALSE),"") ->  | F187: =IF(COUNTIF(Rankings!$B:$B,RIGHT($I187,2)&"-"&$C187)>0,IF($C187>0,VLOOKUP(RIGHT($I187,2)&"-"&$C187,Rankings!$B:$H,7,FALSE),""),0) -> 0 | G187: =IF($C187>0,VLOOKUP($C187,Μητρώο!$A:$F,4,FALSE),"") -> 
A188: 94 | B188: 65 | D188: =IF($C188>0,VLOOKUP($C188,Μητρώο!$A:$F,3,FALSE),"") ->  | E188: =IF($C188>0,VLOOKUP($C188,Μητρώο!$A:$F,5,FALSE),"") ->  | F188: =IF(COUNTIF(Rankings!$B:$B,RIGHT($I188,2)&"-"&$C188)>0,IF($C188>0,VLOOKUP(RIGHT($I188,2)&"-"&$C188,Rankings!$B:$H,7,FALSE),""),0) -> 0 | G188: =IF($C188>0,VLOOKUP($C188,Μητρώο!$A:$F,4,FALSE),"") -> 
A189: =A188+1 -> 95 | B189: 66 | D189: =IF($C189>0,VLOOKUP($C189,Μητρώο!$A:$F,3,FALSE),"") ->  | E189: =IF($C189>0,VLOOKUP($C189,Μητρώο!$A:$F,5,FALSE),"") ->  | F189: =IF(COUNTIF(Rankings!$B:$B,RIGHT($I189,2)&"-"&$C189)>0,IF($C189>0,VLOOKUP(RIGHT($I189,2)&"-"&$C189,Rankings!$B:$H,7,FALSE),""),0) -> 0 | G189: =IF($C189>0,VLOOKUP($C189,Μητρώο!$A:$F,4,FALSE),"") -> 
A190: 95 | B190: 67 | D190: =IF($C190>0,VLOOKUP($C190,Μητρώο!$A:$F,3,FALSE),"") ->  | E190: =IF($C190>0,VLOOKUP($C190,Μητρώο!$A:$F,5,FALSE),"") ->  | F190: =IF(COUNTIF(Rankings!$B:$B,RIGHT($I190,2)&"-"&$C190)>0,IF($C190>0,VLOOKUP(RIGHT($I190,2)&"-"&$C190,Rankings!$B:$H,7,FALSE),""),0) -> 0 | G190: =IF($C190>0,VLOOKUP($C190,Μητρώο!$A:$F,4,FALSE),"") -> 
A191: =A190+1 -> 96 | B191: 68 | D191: =IF($C191>0,VLOOKUP($C191,Μητρώο!$A:$F,3,FALSE),"") ->  | E191: =IF($C191>0,VLOOKUP($C191,Μητρώο!$A:$F,5,FALSE),"") ->  | F191: =IF(COUNTIF(Rankings!$B:$B,RIGHT($I191,2)&"-"&$C191)>0,IF($C191>0,VLOOKUP(RIGHT($I191,2)&"-"&$C191,Rankings!$B:$H,7,FALSE),""),0) -> 0 | G191: =IF($C191>0,VLOOKUP($C191,Μητρώο!$A:$F,4,FALSE),"") -> 
A192: 96 | B192: 69 | D192: =IF($C192>0,VLOOKUP($C192,Μητρώο!$A:$F,3,FALSE),"") ->  | E192: =IF($C192>0,VLOOKUP($C192,Μητρώο!$A:$F,5,FALSE),"") ->  | F192: =IF(COUNTIF(Rankings!$B:$B,RIGHT($I192,2)&"-"&$C192)>0,IF($C192>0,VLOOKUP(RIGHT($I192,2)&"-"&$C192,Rankings!$B:$H,7,FALSE),""),0) -> 0 | G192: =IF($C192>0,VLOOKUP($C192,Μητρώο!$A:$F,4,FALSE),"") -> 
A193: =A192+1 -> 97 | B193: 70 | D193: =IF($C193>0,VLOOKUP($C193,Μητρώο!$A:$F,3,FALSE),"") ->  | E193: =IF($C193>0,VLOOKUP($C193,Μητρώο!$A:$F,5,FALSE),"") ->  | F193: =IF(COUNTIF(Rankings!$B:$B,RIGHT($I193,2)&"-"&$C193)>0,IF($C193>0,VLOOKUP(RIGHT($I193,2)&"-"&$C193,Rankings!$B:$H,7,FALSE),""),0) -> 0 | G193: =IF($C193>0,VLOOKUP($C193,Μητρώο!$A:$F,4,FALSE),"") -> 
A194: 97 | B194: 71 | D194: =IF($C194>0,VLOOKUP($C194,Μητρώο!$A:$F,3,FALSE),"") ->  | E194: =IF($C194>0,VLOOKUP($C194,Μητρώο!$A:$F,5,FALSE),"") ->  | F194: =IF(COUNTIF(Rankings!$B:$B,RIGHT($I194,2)&"-"&$C194)>0,IF($C194>0,VLOOKUP(RIGHT($I194,2)&"-"&$C194,Rankings!$B:$H,7,FALSE),""),0) -> 0 | G194: =IF($C194>0,VLOOKUP($C194,Μητρώο!$A:$F,4,FALSE),"") -> 
A195: =A194+1 -> 98 | B195: =IF(H195&I195=H194&I194,B194+1,1) -> 72 | D195: =IF($C195>0,VLOOKUP($C195,Μητρώο!$A:$F,3,FALSE),"") ->  | E195: =IF($C195>0,VLOOKUP($C195,Μητρώο!$A:$F,5,FALSE),"") ->  | F195: =IF(COUNTIF(Rankings!$B:$B,RIGHT($I195,2)&"-"&$C195)>0,IF($C195>0,VLOOKUP(RIGHT($I195,2)&"-"&$C195,Rankings!$B:$H,7,FALSE),""),0) -> 0 | G195: =IF($C195>0,VLOOKUP($C195,Μητρώο!$A:$F,4,FALSE),"") -> 
A196: 98 | B196: 73 | D196: =IF($C196>0,VLOOKUP($C196,Μητρώο!$A:$F,3,FALSE),"") ->  | E196: =IF($C196>0,VLOOKUP($C196,Μητρώο!$A:$F,5,FALSE),"") ->  | F196: =IF(COUNTIF(Rankings!$B:$B,RIGHT($I196,2)&"-"&$C196)>0,IF($C196>0,VLOOKUP(RIGHT($I196,2)&"-"&$C196,Rankings!$B:$H,7,FALSE),""),0) -> 0 | G196: =IF($C196>0,VLOOKUP($C196,Μητρώο!$A:$F,4,FALSE),"") -> 
A197: =A196+1 -> 99 | B197: 74 | D197: =IF($C197>0,VLOOKUP($C197,Μητρώο!$A:$F,3,FALSE),"") ->  | E197: =IF($C197>0,VLOOKUP($C197,Μητρώο!$A:$F,5,FALSE),"") ->  | F197: =IF(COUNTIF(Rankings!$B:$B,RIGHT($I197,2)&"-"&$C197)>0,IF($C197>0,VLOOKUP(RIGHT($I197,2)&"-"&$C197,Rankings!$B:$H,7,FALSE),""),0) -> 0 | G197: =IF($C197>0,VLOOKUP($C197,Μητρώο!$A:$F,4,FALSE),"") -> 
A198: 99 | B198: 75 | D198: =IF($C198>0,VLOOKUP($C198,Μητρώο!$A:$F,3,FALSE),"") ->  | E198: =IF($C198>0,VLOOKUP($C198,Μητρώο!$A:$F,5,FALSE),"") ->  | F198: =IF(COUNTIF(Rankings!$B:$B,RIGHT($I198,2)&"-"&$C198)>0,IF($C198>0,VLOOKUP(RIGHT($I198,2)&"-"&$C198,Rankings!$B:$H,7,FALSE),""),0) -> 0 | G198: =IF($C198>0,VLOOKUP($C198,Μητρώο!$A:$F,4,FALSE),"") -> 
A199: =A198+1 -> 100 | B199: 76 | D199: =IF($C199>0,VLOOKUP($C199,Μητρώο!$A:$F,3,FALSE),"") ->  | E199: =IF($C199>0,VLOOKUP($C199,Μητρώο!$A:$F,5,FALSE),"") ->  | F199: =IF(COUNTIF(Rankings!$B:$B,RIGHT($I199,2)&"-"&$C199)>0,IF($C199>0,VLOOKUP(RIGHT($I199,2)&"-"&$C199,Rankings!$B:$H,7,FALSE),""),0) -> 0 | G199: =IF($C199>0,VLOOKUP($C199,Μητρώο!$A:$F,4,FALSE),"") -> 
A200: 100 | B200: 77 | D200: =IF($C200>0,VLOOKUP($C200,Μητρώο!$A:$F,3,FALSE),"") ->  | E200: =IF($C200>0,VLOOKUP($C200,Μητρώο!$A:$F,5,FALSE),"") ->  | F200: =IF(COUNTIF(Rankings!$B:$B,RIGHT($I200,2)&"-"&$C200)>0,IF($C200>0,VLOOKUP(RIGHT($I200,2)&"-"&$C200,Rankings!$B:$H,7,FALSE),""),0) -> 0 | G200: =IF($C200>0,VLOOKUP($C200,Μητρώο!$A:$F,4,FALSE),"") -> 
... 399 more rows

Sheet Validations
A1: Groups | C1: Valid Towns | E1: All Towns | H1: All Clubs
E2: ΣΕΡ | F2: ΣΑ ΣΕΡΡΩΝ | H2: ΠΑΠ | I2: Παπάγου
A3: b12 | C3: ΛΑΡ | E3: ΣΟΥ | F3: ΣΟΥΔΑ | H3: ΗΛΙ | I3: Ηλιούπολη
A4: b14 | C4: ΝΙΚ | E4: ΗΡΑ | F4: ΗΡΑΚΛΕΙΟ | H4: ΑΟΑΦ | I4: ΑΟΑ Φιλοθέης
A5: b16 | C5: ΑΘΗ | E5: ΘΕΣ | F5: ΘΕΣΣΑΛΟΝΙΚΗ | H5: ΡΑΦ | I5: Ραφήνα
A6: g12 | E6: ΛΑΡ | F6: ΛΑΡΙΣΑ | H6: ΒΑΡ | I6: ΑΟ Βάρης
A7: g14 | E7: ΝΙΚ | F7: ΝΙΚΑΙΑ | H7: ΧΑΙ | I7: Χαϊδάρι
A8: g16 | B8: b10 | H8: ΞΑΝ | I8: ΟΑ Ξάνθης
B9: b18 | H9: ΜΑΓ | I9: ΟΑ Μαγνησίας
B10: g10 | E10: ΠΡΕ | F10: ΠΡΕΒΕΖΑ | H10: ΔΡΟ | I10: Δροσιά-Λε Ρακέτ
B11: g18 | E11: ΦΙΛ | F11: ΦΙΛΙΠΠΙΑΔΑ | H11: ΜΙΚ | I11: Μίκρα
H12: ΠΟΣ | I12: Ποσειδώνιο
H13: ΑΕΤ | I13: ΑΕΤ Νίκη
H14: ΦΘΙ | I14: Φθιωτικός
H15: ΘΕΣ
H16: ΦΙΛ | I16: ΑΓΟ Φιλιππιάδας
H17: ΑΡΤ | I17: ΟΑ Άρτας

Sheet Rankings
A1: Α.Μ. | B1: Ηλ+ΑΜ | C1: Ονοματεπώνυμο | D1: Έτος | E1: Σύλλογος | F1: Εν | G1: w42 | H1: +random
A2: 37876 | B2: 14-37876 | C2: ΑΒΑΓΙΑΝΟΥ ΜΑΡΙΑ | D2: 2001 | E2: Α.Ο.ΜΕΓΑΣ ΑΛΕΞΑΝΔΡΟΣ | F2: Β | G2: 1 | H2: =G2+RAND()/25 -> 1.026008841
A3: 37876 | B3: 16-37876 | C3: ΑΒΑΓΙΑΝΟΥ ΜΑΡΙΑ | D3: 2001 | E3: Α.Ο.ΜΕΓΑΣ ΑΛΕΞΑΝΔΡΟΣ | F3: ΙΑ | G3: 1 | H3: =G3+RAND()/25 -> 1.014587041
A4: 37876 | B4: 18-37876 | C4: ΑΒΑΓΙΑΝΟΥ ΜΑΡΙΑ | D4: 2001 | E4: Α.Ο.ΜΕΓΑΣ ΑΛΕΞΑΝΔΡΟΣ | F4: ΙΑ | G4: 1 | H4: 1.016130925
A5: 34867 | B5: 12-34867 | C5: ΑΒΡΑΜΙΔΗΣ ΓΕΩΡΓΙΟΣ | D5: 2005 | E5: Α.Ο.Α.ΣΤΑΥΡΟΥΠΟΛΗΣ ΙΦΙΤΟΣ | F5: Β | G5: 1.5 | H5: 1.503323503
A6: 34867 | B6: 14-34867 | C6: ΑΒΡΑΜΙΔΗΣ ΓΕΩΡΓΙΟΣ | D6: 2005 | E6: Α.Ο.Α.ΣΤΑΥΡΟΥΠΟΛΗΣ ΙΦΙΤΟΣ | F6: Β | G6: 1.5 | H6: 1.505835567
A7: 37370 | B7: 14-37370 | C7: ΑΓΑΘΑΓΓΕΛΟΥ ΜΑΡΙΑ | D7: 0 | E7: Α.Σ.Α.ΖΕΦΥΡΟΣ | F7: Γ | G7: 5 | H7: 5.019902456
A8: 37370 | B8: 16-37370 | C8: ΑΓΑΘΑΓΓΕΛΟΥ ΜΑΡΙΑ | D8: 2001 | E8: Α.Σ.Α.ΖΕΦΥΡΟΣ | F8: Γ | G8: 5 | H8: 5.008229717
A9: 37370 | B9: 18-37370 | C9: ΑΓΑΘΑΓΓΕΛΟΥ ΜΑΡΙΑ | D9: 2001 | E9: Α.Σ.Α.ΖΕΦΥΡΟΣ | F9: Γ | G9: 5 | H9: 5.02888172
A10: 30702 | B10: 12-30702 | C10: ΑΓΑΛΙΑΝΟΣ ΝΙΚΟΛΑΟΣ | D10: 2004 | E10: ΦΙΛΑΘΛ.ΟΜΙΛΟΣ ΠΥΡΓΟΥ | F10: ΣΤ | G10: 2.5 | H10: 2.501202625
A11: 30702 | B11: 14-30702 | C11: ΑΓΑΛΙΑΝΟΣ ΝΙΚΟΛΑΟΣ | D11: 2004 | E11: ΦΙΛΑΘΛ.ΟΜΙΛΟΣ ΠΥΡΓΟΥ | F11: ΣΤ | G11: 2.5 | H11: 2.512980408
A12: 24748 | B12: 14-24748 | C12: ΑΓΓΕΛΑΚΗ ΝΙΚΟΛΕΤΤΑ | D12: 2001 | E12: Ο.Α.ΝΙΚΑΙΑ ΛΑΡΙΣΑΣ | F12: Ε | G12: 250 | H12: 250.0298423
A13: 24748 | B13: 16-24748 | C13: ΑΓΓΕΛΑΚΗ ΝΙΚΟΛΕΤΤΑ | D13: 2001 | E13: Ο.Α.ΝΙΚΑΙΑ ΛΑΡΙΣΑΣ | F13: Ε | G13: 250 | H13: 250.0221435
A14: 24748 | B14: 18-24748 | C14: ΑΓΓΕΛΑΚΗ ΝΙΚΟΛΕΤΤΑ | D14: 2001 | E14: Ο.Α.ΝΙΚΑΙΑ ΛΑΡΙΣΑΣ | F14: Ε | G14: 148 | H14: 148.0128972
A15: 25681 | B15: 16-25681 | C15: ΑΓΓΕΛΑΤΟΥ-ΡΑΦΤΟΠΟΥΛΟΥ ΑΝΑΣΤΑΣΙΑ | D15: 1999 | E15: Α.Ο.Α.ΗΛΙΟΥΠΟΛΗΣ | F15: ΙΑ | G15: 320 | H15: 320.0245576
A16: 25681 | B16: 18-25681 | C16: ΑΓΓΕΛΑΤΟΥ-ΡΑΦΤΟΠΟΥΛΟΥ ΑΝΑΣΤΑΣΙΑ | D16: 1999 | E16: Α.Ο.Α.ΗΛΙΟΥΠΟΛΗΣ | F16: ΙΑ | G16: 214 | H16: 214.0374392
A17: 34371 | B17: 14-34371 | C17: ΑΓΓΕΛΗΣ ΜΙΧΑΗΛ | D17: 2002 | E17: Α.Ο.Α.ΑΙΓΑΛΕΩ 92 | F17: Θ | G17: 5 | H17: 5.031756763
A18: 34371 | B18: 16-34371 | C18: ΑΓΓΕΛΗΣ ΜΙΧΑΗΛ | D18: 2002 | E18: Α.Ο.Α.ΑΙΓΑΛΕΩ 92 | F18: Θ | G18: 5 | H18: 5.035603353
A19: 34371 | B19: 18-34371 | C19: ΑΓΓΕΛΗΣ ΜΙΧΑΗΛ | D19: 2002 | E19: Α.Ο.Α.ΑΙΓΑΛΕΩ 92 | F19: Θ | G19: 5 | H19: 5.00170302
A20: 32459 | B20: 16-32459 | C20: ΑΓΓΕΛΟΠΟΥΛΟΣ ΙΩΑΝΝΗΣ-ΒΛΑΣΙΟΣ | D20: 1999 | E20: Α.Ο.Π.ΦΑΛΗΡΟΥ | F20: ΙΑ | G20: 8 | H20: 8.032297281
A21: 32459 | B21: 18-32459 | C21: ΑΓΓΕΛΟΠΟΥΛΟΣ ΙΩΑΝΝΗΣ-ΒΛΑΣΙΟΣ | D21: 1999 | E21: Α.Ο.Π.ΦΑΛΗΡΟΥ | F21: ΙΑ | G21: 8 | H21: 8.037631537
A22: 35647 | B22: 14-35647 | C22: ΑΓΓΟΥΡΗΣ ΚΩΝΣΤΑΝΤΙΝΟΣ | D22: 2002 | E22: Α.Ο.Α.ΑΤΤΙΚΟΣ ΗΛΙΟΣ | F22: Η | G22: 35 | H22: 35.0353392
A23: 35647 | B23: 16-35647 | C23: ΑΓΓΟΥΡΗΣ ΚΩΝΣΤΑΝΤΙΝΟΣ | D23: 2002 | E23: Α.Ο.Α.ΑΤΤΙΚΟΣ ΗΛΙΟΣ | F23: Η | G23: 33 | H23: 33.03436241
A24: 35647 | B24: 18-35647 | C24: ΑΓΓΟΥΡΗΣ ΚΩΝΣΤΑΝΤΙΝΟΣ | D24: 2002 | E24: Α.Ο.Α.ΑΤΤΙΚΟΣ ΗΛΙΟΣ | F24: Η | G24: 25 | H24: 25.01880264
A25: 26297 | B25: 16-26297 | C25: ΑΓΙΟΥΣ ΓΕΩΡΓΙΟΣ | D25: 1999 | E25: ΚΕΡΚΥΡΑΪΚΗ Λ.Τ. | F25: Δ | G25: 288 | H25: 288.0148683
A26: 26297 | B26: 18-26297 | C26: ΑΓΙΟΥΣ ΓΕΩΡΓΙΟΣ | D26: 1999 | E26: ΚΕΡΚΥΡΑΪΚΗ Λ.Τ. | F26: Δ | G26: 276 | H26: 276.0104803
A27: 29210 | B27: 16-29210 | C27: ΑΓΙΩΤΗ ΕΛΕΝΗ | D27: 2000 | E27: Ο.Α.ΜΑΓΝΗΣΙΑΣ | F27: Ε | G27: 8 | H27: 8.022848067
A28: 29210 | B28: 18-29210 | C28: ΑΓΙΩΤΗ ΕΛΕΝΗ | D28: 2000 | E28: Ο.Α.ΜΑΓΝΗΣΙΑΣ | F28: Ε | G28: 8 | H28: 8.018419323
A29: 34584 | B29: 12-34584 | C29: ΑΔΑΛΟΓΛΟΥ ΑΧΙΛΛΕΑΣ | D29: 2003 | E29: Γ.Α.Σ.ΚΑΡΑΤΕ ΕΡΜΗΣ | F29: Γ | G29: 37.5 | H29: 37.50244222
A30: 34584 | B30: 14-34584 | C30: ΑΔΑΛΟΓΛΟΥ ΑΧΙΛΛΕΑΣ | D30: 2003 | E30: Γ.Α.Σ.ΚΑΡΑΤΕ ΕΡΜΗΣ | F30: Γ | G30: 37.5 | H30: 37.51403112
A31: 22833 | B31: 16-22833 | C31: ΑΔΑΛΟΓΛΟΥ ΜΑΓΔΑΛΗΝΗ | D31: 1999 | E31: Ε.Σ.Ο.ΕΠΙΚΟΥΡΟΣ ΠΟΛΙΧΝΗΣ | F31: Β | G31: 1040 | H31: 1040.007254
A32: 22833 | B32: 18-22833 | C32: ΑΔΑΛΟΓΛΟΥ ΜΑΓΔΑΛΗΝΗ | D32: 1999 | E32: Ε.Σ.Ο.ΕΠΙΚΟΥΡΟΣ ΠΟΛΙΧΝΗΣ | F32: Β | G32: 625 | H32: 625.0330026
A33: 35178 | B33: 12-35178 | C33: ΑΔΑΜΟΠΟΥΛΟΣ ΝΙΚΟΛΑΟΣ | D33: 2005 | E33: Ο.Α.ΠΕΤΡΟΥΠΟΛΗΣ | F33: Θ | G33: 13 | H33: 13.02397877
A34: 35178 | B34: 14-35178 | C34: ΑΔΑΜΟΠΟΥΛΟΣ ΝΙΚΟΛΑΟΣ | D34: 2005 | E34: Ο.Α.ΠΕΤΡΟΥΠΟΛΗΣ | F34: Θ | G34: 13 | H34: 13.02778209
A35: 33648 | B35: 14-33648 | C35: ΑΔΑΜΟΠΟΥΛΟΥ ΑΝΑΣΤΑΣΙΑ | D35: 2002 | E35: Α.Ο.Α.ΧΑΪΔΑΡΙΟΥ | F35: Θ | G35: 32 | H35: 32.00981823
A36: 33648 | B36: 16-33648 | C36: ΑΔΑΜΟΠΟΥΛΟΥ ΑΝΑΣΤΑΣΙΑ | D36: 2002 | E36: Α.Ο.Α.ΧΑΪΔΑΡΙΟΥ | F36: Θ | G36: 28 | H36: 28.03911533
A37: 33648 | B37: 18-33648 | C37: ΑΔΑΜΟΠΟΥΛΟΥ ΑΝΑΣΤΑΣΙΑ | D37: 2002 | E37: Α.Ο.Α.ΧΑΪΔΑΡΙΟΥ | F37: Θ | G37: 16 | H37: 16.0391109
A38: 33331 | B38: 12-33331 | C38: ΑΔΑΜΟΠΟΥΛΟΥ ΜΑΓΔΑΛΙΝΗ | D38: 2003 | E38: Ο.Α.ΠΕΤΡΟΥΠΟΛΗΣ | F38: Θ | G38: 182 | H38: 182.0004976
A39: 33331 | B39: 14-33331 | C39: ΑΔΑΜΟΠΟΥΛΟΥ ΜΑΓΔΑΛΙΝΗ | D39: 2003 | E39: Ο.Α.ΠΕΤΡΟΥΠΟΛΗΣ | F39: Θ | G39: 182 | H39: 182.0338193
A40: 37043 | B40: 12-37043 | C40: ΑΘΑΝΑΣΟΠΟΥΛΟΥ ΜΑΡΙΑ-ΙΟΥΛΙΑ | D40: 2003 | E40: Ο.Α.ΚΑΛΑΜΑΤΑΣ | F40: ΣΤ | G40: 1.5 | H40: 1.511168537
A41: 37043 | B41: 14-37043 | C41: ΑΘΑΝΑΣΟΠΟΥΛΟΥ ΜΑΡΙΑ-ΙΟΥΛΙΑ | D41: 2003 | E41: Ο.Α.ΚΑΛΑΜΑΤΑΣ | F41: ΣΤ | G41: 1.5 | H41: 1.511025772
A42: 35696 | B42: 16-35696 | C42: ΑΚΑΡΕΠΗΣ ΑΝΔΡΕΑΣ | D42: 1999 | E42: Ο.Α.ΑΝΑΦΛΥΣΤΟΣ ΣΑΡΩΝΙΔΑΣ | F42: Η | G42: 84 | H42: 84.02718031
A43: 35696 | B43: 18-35696 | C43: ΑΚΑΡΕΠΗΣ ΑΝΔΡΕΑΣ | D43: 1999 | E43: Ο.Α.ΑΝΑΦΛΥΣΤΟΣ ΣΑΡΩΝΙΔΑΣ | F43: Η | G43: 90.5 | H43: 90.53809699
A44: 25914 | B44: 18-25914 | C44: ΑΛΕΒΙΖΟΠΟΥΛΟΣ ΦΙΛΙΠΠΟΣ | D44: 1997 | E44: Ο.Α.ΓΛΥΦΑΔΑΣ | F44: ΙΑ | G44: 132.5 | H44: 132.5058511
A45: 37292 | B45: 12-37292 | C45: ΑΛΕΞΑΝΔΡΗΣ ΙΩΑΝΝΗΣ | D45: 2005 | E45: Α.Ο.Α.ΠΟΣΕΙΔΩΝ ΘΕΣΣΑΛΟΝΙΚΗΣ | F45: Β | G45: 4.5 | H45: 4.504242448
A46: 37292 | B46: 14-37292 | C46: ΑΛΕΞΑΝΔΡΗΣ ΙΩΑΝΝΗΣ | D46: 2005 | E46: Α.Ο.Α.ΠΟΣΕΙΔΩΝ ΘΕΣΣΑΛΟΝΙΚΗΣ | F46: Β | G46: 4.5 | H46: 4.533389453
A47: 29605 | B47: 14-29605 | C47: ΑΛΕΞΑΝΔΡΗΣ ΝΙΚΗΦΟΡΟΣ | D47: 2001 | E47: Α.Ο.Π.ΦΑΛΗΡΟΥ | F47: ΙΑ | G47: 9 | H47: 9.005424764
A48: 29605 | B48: 16-29605 | C48: ΑΛΕΞΑΝΔΡΗΣ ΝΙΚΗΦΟΡΟΣ | D48: 2001 | E48: Α.Ο.Π.ΦΑΛΗΡΟΥ | F48: ΙΑ | G48: 9 | H48: 9.003608015
A49: 29605 | B49: 18-29605 | C49: ΑΛΕΞΑΝΔΡΗΣ ΝΙΚΗΦΟΡΟΣ | D49: 2001 | E49: Α.Ο.Π.ΦΑΛΗΡΟΥ | F49: ΙΑ | G49: 7 | H49: 7.004244939
A50: 30889 | B50: 16-30889 | C50: ΑΛΕΞΑΝΔΡΙΔΗΣ ΕΛΕΥΘΕΡΙΟΣ | D50: 1999 | E50: Α.Ο.ΛΑΤΩ ΑΓ.ΝΙΚΟΛΑΟΥ | F50: Ζ | G50: 44 | H50: 44.01357016
A51: 30889 | B51: 18-30889 | C51: ΑΛΕΞΑΝΔΡΙΔΗΣ ΕΛΕΥΘΕΡΙΟΣ | D51: 1999 | E51: Α.Ο.ΛΑΤΩ ΑΓ.ΝΙΚΟΛΑΟΥ | F51: Ζ | G51: 42 | H51: 42.01134881
A52: 31449 | B52: 12-31449 | C52: ΑΛΕΞΑΝΔΡΙΔΗΣ ΙΩΑΝΝΗΣ | D52: 2004 | E52: Α.Ο.ΛΑΤΩ ΑΓ.ΝΙΚΟΛΑΟΥ | F52: Ζ | G52: 15 | H52: 15.01352834
A53: 31449 | B53: 14-31449 | C53: ΑΛΕΞΑΝΔΡΙΔΗΣ ΙΩΑΝΝΗΣ | D53: 2004 | E53: Α.Ο.ΛΑΤΩ ΑΓ.ΝΙΚΟΛΑΟΥ | F53: Ζ | G53: 15 | H53: 15.01332168
A54: 37187 | B54: 12-37187 | C54: ΑΛΕΞΑΝΔΡΙΔΟΥ ΣΩΤΗΡΙΑ | D54: 2003 | E54: Ο.Α.ΣΚΥΔΡΑΣ | F54: Γ | G54: 1.5 | H54: 1.529758748
A55: 37187 | B55: 14-37187 | C55: ΑΛΕΞΑΝΔΡΙΔΟΥ ΣΩΤΗΡΙΑ | D55: 2003 | E55: Ο.Α.ΣΚΥΔΡΑΣ | F55: Γ | G55: 1.5 | H55: 1.526641619
A56: 37746 | B56: 12-37746 | C56: ΑΛΕΞΙΑΔΟΥ ΑΝΝΑ | D56: 2005 | E56: Α.Σ.ΝΗΡΕΑΣ ΒΕΡΟΙΑΣ | F56: Γ | G56: 1 | H56: 1.023130723
A57: 37746 | B57: 14-37746 | C57: ΑΛΕΞΙΑΔΟΥ ΑΝΝΑ | D57: 2005 | E57: Α.Σ.ΝΗΡΕΑΣ ΒΕΡΟΙΑΣ | F57: Γ | G57: 1 | H57: 1.016751158
A58: 29673 | B58: 14-29673 | C58: ΑΛΕΞΙΟΥ ΓΕΩΡΓΙΟΣ | D58: 2001 | E58: Α.Γ.Ο.ΦΙΛΙΠΠΙΑΔΑΣ | F58: Δ | G58: 5 | H58: 5.016648604
A59: 37878 | B59: 14-37878 | C59: ΑΛΕΞΙΟΥ ΓΕΩΡΓΙΟΣ | D59: 2002 | E59: Α.Σ.ΝΗΡΕΑΣ ΒΕΡΟΙΑΣ | F59: Γ | G59: 3 | H59: 3.030206559
A60: 29673 | B60: 16-29673 | C60: ΑΛΕΞΙΟΥ ΓΕΩΡΓΙΟΣ | D60: 2001 | E60: Α.Γ.Ο.ΦΙΛΙΠΠΙΑΔΑΣ | F60: Δ | G60: 5 | H60: 5.008008549
A61: 37878 | B61: 16-37878 | C61: ΑΛΕΞΙΟΥ ΓΕΩΡΓΙΟΣ | D61: 2002 | E61: Α.Σ.ΝΗΡΕΑΣ ΒΕΡΟΙΑΣ | F61: Γ | G61: 3 | H61: 3.005534634
A62: 29673 | B62: 18-29673 | C62: ΑΛΕΞΙΟΥ ΓΕΩΡΓΙΟΣ | D62: 2001 | E62: Α.Γ.Ο.ΦΙΛΙΠΠΙΑΔΑΣ | F62: Δ | G62: 5 | H62: 5.007705631
A63: 37878 | B63: 18-37878 | C63: ΑΛΕΞΙΟΥ ΓΕΩΡΓΙΟΣ | D63: 2002 | E63: Α.Σ.ΝΗΡΕΑΣ ΒΕΡΟΙΑΣ | F63: Γ | G63: 3 | H63: 3.033546925
A64: 36890 | B64: 12-36890 | C64: ΑΛΕΞΙΟΥ ΔΗΜΗΤΡΑ | D64: 2003 | E64: Α.Α.ΙΩΑΝΝΙΝΩΝ | F64: Δ | G64: 3.5 | H64: 3.534989667
A65: 36890 | B65: 14-36890 | C65: ΑΛΕΞΙΟΥ ΔΗΜΗΤΡΑ | D65: 2003 | E65: Α.Α.ΙΩΑΝΝΙΝΩΝ | F65: Δ | G65: 3.5 | H65: 3.508422666
A66: 32393 | B66: 14-32393 | C66: ΑΛΕΞΙΟΥ ΦΙΛΙΠΠΟΣ | D66: 2002 | E66: Α.Γ.Ο.ΦΙΛΙΠΠΙΑΔΑΣ | F66: Δ | G66: 9 | H66: 9.032563529
A67: 32393 | B67: 16-32393 | C67: ΑΛΕΞΙΟΥ ΦΙΛΙΠΠΟΣ | D67: 2002 | E67: Α.Γ.Ο.ΦΙΛΙΠΠΙΑΔΑΣ | F67: Δ | G67: 6 | H67: =G67+RAND()/25 -> 6.031181279
A68: 32393 | B68: 18-32393 | C68: ΑΛΕΞΙΟΥ ΦΙΛΙΠΠΟΣ | D68: 2002 | E68: Α.Γ.Ο.ΦΙΛΙΠΠΙΑΔΑΣ | F68: Δ | G68: 6 | H68: 6.023887608
A69: 29588 | B69: 14-29588 | C69: ΑΛΕΞΟΠΟΥΛΟΥ ΙΩΑΝΝΑ | D69: 2001 | E69: Ο.Α.ΒΕΡΟΙΑΣ | F69: Γ | G69: 48 | H69: 48.01311759
A70: 29588 | B70: 16-29588 | C70: ΑΛΕΞΟΠΟΥΛΟΥ ΙΩΑΝΝΑ | D70: 2001 | E70: Ο.Α.ΒΕΡΟΙΑΣ | F70: Γ | G70: 68 | H70: 68.01522809
A71: 29588 | B71: 18-29588 | C71: ΑΛΕΞΟΠΟΥΛΟΥ ΙΩΑΝΝΑ | D71: 2001 | E71: Ο.Α.ΒΕΡΟΙΑΣ | F71: Γ | G71: 46 | H71: 46.00845262
A72: 33681 | B72: 14-33681 | C72: ΑΛΕΞΟΠΟΥΛΟΥ ΜΑΡΙΑ | D72: 2002 | E72: Ο.Α.ΙΩΑΝΝΙΝΩΝ | F72: Δ | G72: 3 | H72: 3.002338933
A73: 33681 | B73: 16-33681 | C73: ΑΛΕΞΟΠΟΥΛΟΥ ΜΑΡΙΑ | D73: 2002 | E73: Ο.Α.ΙΩΑΝΝΙΝΩΝ | F73: Δ | G73: 3 | H73: 3.032683772
A74: 33681 | B74: 18-33681 | C74: ΑΛΕΞΟΠΟΥΛΟΥ ΜΑΡΙΑ | D74: 2002 | E74: Ο.Α.ΙΩΑΝΝΙΝΩΝ | F74: Δ | G74: 3 | H74: 3.008653045
A75: 37898 | B75: 12-37898 | C75: ΑΛΕΞ-ΣΤΡΑΒΑΛΕΞΗΣ ΝΙΚΟΛΑΟΣ | D75: 2004 | E75: Α.Ο.ΦΙΛΙΠΠΟΣ ΠΟΛΥΔΡΟΣΟΥ | F75: Η | G75: 2 | H75: 2.006474154
A76: 37898 | B76: 14-37898 | C76: ΑΛΕΞ-ΣΤΡΑΒΑΛΕΞΗΣ ΝΙΚΟΛΑΟΣ | D76: 2004 | E76: Α.Ο.ΦΙΛΙΠΠΟΣ ΠΟΛΥΔΡΟΣΟΥ | F76: Η | G76: 2 | H76: 2.013634437
A77: 33002 | B77: 16-33002 | C77: ΑΛΕΦΑΝΤΟΣ ΣΠΥΡΙΔΩΝ | D77: 1999 | E77: Σ.Α.ΡΑΦΗΝΑΣ | F77: Η | G77: 0 | H77: 0.003247549025
A78: 33002 | B78: 18-33002 | C78: ΑΛΕΦΑΝΤΟΣ ΣΠΥΡΙΔΩΝ | D78: 1999 | E78: Σ.Α.ΡΑΦΗΝΑΣ | F78: Η | G78: 0 | H78: 0.0366869696
A79: 36200 | B79: 12-36200 | C79: ΑΛΠΑΝΤΗ ΑΝΝΑ | D79: 2004 | E79: Ο.Α.ΣΟΥΔΑΣ | F79: Ζ | G79: 7.5 | H79: 7.522552263
A80: 36200 | B80: 14-36200 | C80: ΑΛΠΑΝΤΗ ΑΝΝΑ | D80: 2004 | E80: Ο.Α.ΣΟΥΔΑΣ | F80: Ζ | G80: 7.5 | H80: 7.532836307
A81: 29942 | B81: 16-29942 | C81: ΑΛΦΑΝΤΗ ΑΝΑΣΤΑΣΙΑ | D81: 2000 | E81: Ο.Α.ΠΕΤΡΟΥΠΟΛΗΣ | F81: Θ | G81: 220 | H81: 220.0363783
A82: 29942 | B82: 18-29942 | C82: ΑΛΦΑΝΤΗ ΑΝΑΣΤΑΣΙΑ | D82: 2000 | E82: Ο.Α.ΠΕΤΡΟΥΠΟΛΗΣ | F82: Θ | G82: 142 | H82: 142.0197886
A83: 36679 | B83: 16-36679 | C83: ΑΜΠΕΛΑΣ ΑΛΕΞΙΟΣ | D83: 1999 | E83: Ο.Α.ΤΟΥΜΠΑΣ | F83: Β | G83: 12 | H83: 12.00608834
A84: 36679 | B84: 18-36679 | C84: ΑΜΠΕΛΑΣ ΑΛΕΞΙΟΣ | D84: 1999 | E84: Ο.Α.ΤΟΥΜΠΑΣ | F84: Β | G84: 12 | H84: 12.01457151
A85: 37721 | B85: 12-37721 | C85: ΑΜΠΡΑΒΑΝΕΛ ΛΙΝΑ | D85: 2003 | E85: Α.Σ.ΚΟΛΛΕΓΙΟΥ ΝΤΕΡΗ | F85: Η | G85: 5 | H85: 5.02527912
A86: 37721 | B86: 14-37721 | C86: ΑΜΠΡΑΒΑΝΕΛ ΛΙΝΑ | D86: 2003 | E86: Α.Σ.ΚΟΛΛΕΓΙΟΥ ΝΤΕΡΗ | F86: Η | G86: 5 | H86: 5.038577119
A87: 37283 | B87: 16-37283 | C87: ΑΝΑΓΝΩΣΤΟΠΟΥΛΟΣ ΑΓΓΕΛΟΣ-ΝΙΚΟΛΑΟΣ | D87: 2000 | E87: Α.Ο.ΑΙΓΙΟΥ ΜΟΡΕΑΣ | F87: ΣΤ | G87: 12 | H87: 12.02392907
A88: 37283 | B88: 18-37283 | C88: ΑΝΑΓΝΩΣΤΟΠΟΥΛΟΣ ΑΓΓΕΛΟΣ-ΝΙΚΟΛΑΟΣ | D88: 2000 | E88: Α.Ο.ΑΙΓΙΟΥ ΜΟΡΕΑΣ | F88: ΣΤ | G88: 12 | H88: 12.00853825
A89: 30061 | B89: 14-30061 | C89: ΑΝΑΓΝΩΣΤΟΠΟΥΛΟΣ ΔΗΜΗΤΡΗΣ | D89: 2001 | E89: Ο.Α.ΚΕΡΑΤΣΙΝΙΟΥ | F89: Θ | G89: 200 | H89: 200.0136228
A90: 30061 | B90: 16-30061 | C90: ΑΝΑΓΝΩΣΤΟΠΟΥΛΟΣ ΔΗΜΗΤΡΗΣ | D90: 2001 | E90: Ο.Α.ΚΕΡΑΤΣΙΝΙΟΥ | F90: Θ | G90: 200 | H90: 200.0393593
A91: 30061 | B91: 18-30061 | C91: ΑΝΑΓΝΩΣΤΟΠΟΥΛΟΣ ΔΗΜΗΤΡΗΣ | D91: 2001 | E91: Ο.Α.ΚΕΡΑΤΣΙΝΙΟΥ | F91: Θ | G91: 127 | H91: 127.0351372
A92: 34727 | B92: 12-34727 | C92: ΑΝΑΓΝΩΣΤΟΠΟΥΛΟΣ ΜΑΤΘΑΙΟΣ | D92: 2004 | E92: Α.Ο.Α.ΗΛΙΟΥΠΟΛΗΣ | F92: ΙΑ | G92: 34 | H92: 34.0156293
A93: 34727 | B93: 14-34727 | C93: ΑΝΑΓΝΩΣΤΟΠΟΥΛΟΣ ΜΑΤΘΑΙΟΣ | D93: 2004 | E93: Α.Ο.Α.ΗΛΙΟΥΠΟΛΗΣ | F93: ΙΑ | G93: 34 | H93: 34.0194349
A94: 37610 | B94: 14-37610 | C94: ΑΝΑΓΝΩΣΤΟΠΟΥΛΟΣ ΣΩΤΗΡΙΟΣ | D94: 2001 | E94: Α.Μ.Ε.Σ.Ν.ΕΡΥΘΡΑΙΑΣ | F94: Η | G94: 4 | H94: 4.02586082
A95: 37610 | B95: 16-37610 | C95: ΑΝΑΓΝΩΣΤΟΠΟΥΛΟΣ ΣΩΤΗΡΙΟΣ | D95: 2001 | E95: Α.Μ.Ε.Σ.Ν.ΕΡΥΘΡΑΙΑΣ | F95: Η | G95: 4 | H95: 4.006713288
A96: 37610 | B96: 18-37610 | C96: ΑΝΑΓΝΩΣΤΟΠΟΥΛΟΣ ΣΩΤΗΡΙΟΣ | D96: 2001 | E96: Α.Μ.Ε.Σ.Ν.ΕΡΥΘΡΑΙΑΣ | F96: Η | G96: 4 | H96: 4.028637473
A97: 35296 | B97: 14-35296 | C97: ΑΝΑΓΝΩΣΤΟΠΟΥΛΟΥ ΑΛΙΚΗ | D97: 2002 | E97: Α.Σ.Α.ΩΡΩΠΟΥ | F97: Η | G97: 3 | H97: 3.009087925
A98: 35296 | B98: 16-35296 | C98: ΑΝΑΓΝΩΣΤΟΠΟΥΛΟΥ ΑΛΙΚΗ | D98: 2002 | E98: Α.Σ.Α.ΩΡΩΠΟΥ | F98: Η | G98: 3 | H98: 3.003047461
A99: 35296 | B99: 18-35296 | C99: ΑΝΑΓΝΩΣΤΟΠΟΥΛΟΥ ΑΛΙΚΗ | D99: 2002 | E99: Α.Σ.Α.ΩΡΩΠΟΥ | F99: Η | G99: 3 | H99: 3.037112247
A100: 35563 | B100: 14-35563 | C100: ΑΝΑΓΝΩΣΤΟΠΟΥΛΟΥ ΔΕΣΠΟΙΝΑ | D100: 2002 | E100: Α.Ν.Ο.ΓΛΥΦΑΔΑΣ | F100: ΙΑ | G100: 16.5 | H100: 16.51082452
A101: 35563 | B101: 16-35563 | C101: ΑΝΑΓΝΩΣΤΟΠΟΥΛΟΥ ΔΕΣΠΟΙΝΑ | D101: 2002 | E101: Α.Ν.Ο.ΓΛΥΦΑΔΑΣ | F101: ΙΑ | G101: 9 | H101: 9.028397668
A102: 35563 | B102: 18-35563 | C102: ΑΝΑΓΝΩΣΤΟΠΟΥΛΟΥ ΔΕΣΠΟΙΝΑ | D102: 2002 | E102: Α.Ν.Ο.ΓΛΥΦΑΔΑΣ | F102: ΙΑ | G102: 13 | H102: 13.01421564
A103: 36680 | B103: 12-36680 | C103: ΑΝΑΓΝΩΣΤΟΠΟΥΛΟΥ ΜΥΡΤΩ | D103: 2003 | E103: Ο.Α.ΤΟΥΜΠΑΣ | F103: Β | G103: 2.5 | H103: 2.529791681
A104: 36680 | B104: 14-36680 | C104: ΑΝΑΓΝΩΣΤΟΠΟΥΛΟΥ ΜΥΡΤΩ | D104: 2003 | E104: Ο.Α.ΤΟΥΜΠΑΣ | F104: Β | G104: 2.5 | H104: 2.520820479
A105: 33189 | B105: 12-33189 | C105: ΑΝΑΓΝΩΣΤΟΥ ΑΓΓΕΛΙΚΗ | D105: 2004 | E105: Ο.Α.ΜΑΓΝΗΣΙΑΣ | F105: Ε | G105: 45 | H105: 45.02752097
A106: 33189 | B106: 14-33189 | C106: ΑΝΑΓΝΩΣΤΟΥ ΑΓΓΕΛΙΚΗ | D106: 2004 | E106: Ο.Α.ΜΑΓΝΗΣΙΑΣ | F106: Ε | G106: 45 | H106: 45.01465311
A107: 32883 | B107: 14-32883 | C107: ΑΝΑΓΝΩΣΤΟΥ ΑΙΚΑΤΕΡΙΝΗ | D107: 2002 | E107: ΚΕΡΚΥΡΑΪΚΗ Λ.Τ. | F107: Δ | G107: 80 | H107: 80.01652786
A108: 32883 | B108: 16-32883 | C108: ΑΝΑΓΝΩΣΤΟΥ ΑΙΚΑΤΕΡΙΝΗ | D108: 2002 | E108: ΚΕΡΚΥΡΑΪΚΗ Λ.Τ. | F108: Δ | G108: 43 | H108: 43.030497
A109: 32883 | B109: 18-32883 | C109: ΑΝΑΓΝΩΣΤΟΥ ΑΙΚΑΤΕΡΙΝΗ | D109: 2002 | E109: ΚΕΡΚΥΡΑΪΚΗ Λ.Τ. | F109: Δ | G109: 34 | H109: 34.01068519
A110: 28990 | B110: 14-28990 | C110: ΑΝΑΓΝΩΣΤΟΥ ΕΥΑΓΓΕΛΙΑ | D110: 2001 | E110: Ο.Α.ΜΑΓΝΗΣΙΑΣ | F110: Ε | G110: 341 | H110: 341.0051821
A111: 28990 | B111: 16-28990 | C111: ΑΝΑΓΝΩΣΤΟΥ ΕΥΑΓΓΕΛΙΑ | D111: 2001 | E111: Ο.Α.ΜΑΓΝΗΣΙΑΣ | F111: Ε | G111: 341 | H111: 341.0219852
A112: 28990 | B112: 18-28990 | C112: ΑΝΑΓΝΩΣΤΟΥ ΕΥΑΓΓΕΛΙΑ | D112: 2001 | E112: Ο.Α.ΜΑΓΝΗΣΙΑΣ | F112: Ε | G112: 191 | H112: 191.0077579
A113: 32804 | B113: 14-32804 | C113: ΑΝΑΝΙΑΔΗΣ ΜΙΧΑΛΗΣ | D113: 2002 | E113: Ο.Α.ΑΛΕΞΑΝΔΡΟΣ ΒΕΡΟΙΑΣ | F113: Γ | G113: 40 | H113: 40.03656265
A114: 32804 | B114: 16-32804 | C114: ΑΝΑΝΙΑΔΗΣ ΜΙΧΑΛΗΣ | D114: 2002 | E114: Ο.Α.ΑΛΕΞΑΝΔΡΟΣ ΒΕΡΟΙΑΣ | F114: Γ | G114: 31 | H114: 31.0139929
A115: 32804 | B115: 18-32804 | C115: ΑΝΑΝΙΑΔΗΣ ΜΙΧΑΛΗΣ | D115: 2002 | E115: Ο.Α.ΑΛΕΞΑΝΔΡΟΣ ΒΕΡΟΙΑΣ | F115: Γ | G115: 27 | H115: 27.02972037
A116: 36952 | B116: 12-36952 | C116: ΑΝΑΝΙΑΔΗΣ ΧΡΗΣΤΟΣ | D116: 2003 | E116: Σ.Α.ΣΕΡΡΩΝ | F116: Α | G116: 4.5 | H116: 4.537329422
A117: 36952 | B117: 14-36952 | C117: ΑΝΑΝΙΑΔΗΣ ΧΡΗΣΤΟΣ | D117: 2003 | E117: Σ.Α.ΣΕΡΡΩΝ | F117: Α | G117: 4.5 | H117: 4.526141881
A118: 36954 | B118: 14-36954 | C118: ΑΝΑΣΤΑΣΑΚΗΣ ΠΑΝΑΓΙΩΤΗΣ | D118: 2001 | E118: Α.Π.Μ.Σ.ΑΣΚΗΣΗ ΗΡΑΚΛΕΙΟΥ | F118: Ζ | G118: 15 | H118: 15.00215612
A119: 36954 | B119: 16-36954 | C119: ΑΝΑΣΤΑΣΑΚΗΣ ΠΑΝΑΓΙΩΤΗΣ | D119: 2001 | E119: Α.Π.Μ.Σ.ΑΣΚΗΣΗ ΗΡΑΚΛΕΙΟΥ | F119: Ζ | G119: 13 | H119: 13.0185823
A120: 36954 | B120: 18-36954 | C120: ΑΝΑΣΤΑΣΑΚΗΣ ΠΑΝΑΓΙΩΤΗΣ | D120: 2001 | E120: Α.Π.Μ.Σ.ΑΣΚΗΣΗ ΗΡΑΚΛΕΙΟΥ | F120: Ζ | G120: 15 | H120: 15.03115109
A121: 31408 | B121: 16-31408 | C121: ΑΝΑΣΤΑΣΙΑΔΗΣ ΦΩΤΙΟΣ | D121: 2000 | E121: ΡΟΔΙΑΚΟΣ Ο.Α. | F121: Θ | G121: 78 | H121: 78.00108827
A122: 31408 | B122: 18-31408 | C122: ΑΝΑΣΤΑΣΙΑΔΗΣ ΦΩΤΙΟΣ | D122: 2000 | E122: ΡΟΔΙΑΚΟΣ Ο.Α. | F122: Θ | G122: 78 | H122: 78.02277986
A123: 37781 | B123: 12-37781 | C123: ΑΝΑΣΤΑΣΟΒΙΤΗ ΧΡΥΣΑ-ΕΛΙΣΑΒΕΤ | D123: 2004 | E123: Α.Ο.Α.ΠΑΠΑΓΟΥ | F123: ΙΑ | G123: 1 | H123: 1.019799153
A124: 37781 | B124: 14-37781 | C124: ΑΝΑΣΤΑΣΟΒΙΤΗ ΧΡΥΣΑ-ΕΛΙΣΑΒΕΤ | D124: 2004 | E124: Α.Ο.Α.ΠΑΠΑΓΟΥ | F124: ΙΑ | G124: 1 | H124: 1.032739698
A125: 29321 | B125: 14-29321 | C125: ΑΝΑΣΤΟΠΟΥΛΟΣ ΝΙΚΟΛΑΟΣ | D125: 2002 | E125: Α.Ε.Κ.ΤΡΙΠΟΛΗΣ | F125: ΣΤ | G125: 3 | H125: 3.033268703
A126: 29321 | B126: 16-29321 | C126: ΑΝΑΣΤΟΠΟΥΛΟΣ ΝΙΚΟΛΑΟΣ | D126: 2002 | E126: Α.Ε.Κ.ΤΡΙΠΟΛΗΣ | F126: ΣΤ | G126: 3 | H126: 3.026365921
A127: 29321 | B127: 18-29321 | C127: ΑΝΑΣΤΟΠΟΥΛΟΣ ΝΙΚΟΛΑΟΣ | D127: 2002 | E127: Α.Ε.Κ.ΤΡΙΠΟΛΗΣ | F127: ΣΤ | G127: 3 | H127: 3.005333652
A128: 29322 | B128: 12-29322 | C128: ΑΝΑΣΤΟΠΟΥΛΟΣ ΠΑΝΑΓΙΩΤΗΣ | D128: 2004 | E128: Α.Ε.Κ.ΤΡΙΠΟΛΗΣ | F128: ΣΤ | G128: 6 | H128: 6.039861184
A129: 29322 | B129: 14-29322 | C129: ΑΝΑΣΤΟΠΟΥΛΟΣ ΠΑΝΑΓΙΩΤΗΣ | D129: 2004 | E129: Α.Ε.Κ.ΤΡΙΠΟΛΗΣ | F129: ΣΤ | G129: 6 | H129: 6.000870811
A130: 33409 | B130: 14-33409 | C130: ΑΝΔΡΕΑΝΙΔΗ ΒΑΣΙΛΙΚΗ | D130: 2002 | E130: Α.Γ.Ο.ΦΙΛΙΠΠΙΑΔΑΣ | F130: Δ | G130: 31.5 | H130: 31.5097772
A131: 33409 | B131: 16-33409 | C131: ΑΝΔΡΕΑΝΙΔΗ ΒΑΣΙΛΙΚΗ | D131: 2002 | E131: Α.Γ.Ο.ΦΙΛΙΠΠΙΑΔΑΣ | F131: Δ | G131: 25 | H131: =G131+RAND()/25 -> 25.01029849
A132: 33409 | B132: 18-33409 | C132: ΑΝΔΡΕΑΝΙΔΗ ΒΑΣΙΛΙΚΗ | D132: 2002 | E132: Α.Γ.Ο.ΦΙΛΙΠΠΙΑΔΑΣ | F132: Δ | G132: 22 | H132: 22.01530991
A133: 32267 | B133: 14-32267 | C133: ΑΝΔΡΕΑΣΙΔΟΥ ΦΩΤΕΙΝΗ | D133: 2001 | E133: Φ.Ο.Α.ΝΕΑΠΟΛΗΣ | F133: Β | G133: 128 | H133: 128.0052767
A134: 32267 | B134: 16-32267 | C134: ΑΝΔΡΕΑΣΙΔΟΥ ΦΩΤΕΙΝΗ | D134: 2001 | E134: Φ.Ο.Α.ΝΕΑΠΟΛΗΣ | F134: Β | G134: 128 | H134: 128.0090769
A135: 32267 | B135: 18-32267 | C135: ΑΝΔΡΕΑΣΙΔΟΥ ΦΩΤΕΙΝΗ | D135: 2001 | E135: Φ.Ο.Α.ΝΕΑΠΟΛΗΣ | F135: Β | G135: 58 | H135: 58.00544487
A136: 28455 | B136: 16-28455 | C136: ΑΝΔΡΕΟΠΟΥΛΟΥ ΝΕΦΕΛΗ | D136: 2000 | E136: Α.Ο.Α.ΠΑΠΑΓΟΥ | F136: ΙΑ | G136: 95 | H136: 95.03469485
A137: 28455 | B137: 18-28455 | C137: ΑΝΔΡΕΟΠΟΥΛΟΥ ΝΕΦΕΛΗ | D137: 2000 | E137: Α.Ο.Α.ΠΑΠΑΓΟΥ | F137: ΙΑ | G137: 71 | H137: 71.02478909
A138: 34958 | B138: 12-34958 | C138: ΑΝΔΡΗΣ ΙΩΑΝΝΗΣ | D138: 2004 | E138: Α.Ο.Α.ΑΤΤΙΚΟΣ ΗΛΙΟΣ | F138: Η | G138: 2 | H138: 2.031198307
A139: 34958 | B139: 14-34958 | C139: ΑΝΔΡΗΣ ΙΩΑΝΝΗΣ | D139: 2004 | E139: Α.Ο.Α.ΑΤΤΙΚΟΣ ΗΛΙΟΣ | F139: Η | G139: 2 | H139: 2.001277167
A140: 30563 | B140: 14-30563 | C140: ΑΝΔΡΙΟΠΟΥΛΟΥ ΑΓΓΕΛΙΚΗ-ΑΘΑΝΑΣΙΑ | D140: 2002 | E140: Α.Ε.Τ.ΝΙΚΗ ΠΑΤΡΩΝ | F140: ΣΤ | G140: 87 | H140: 87.02520529
A141: 30563 | B141: 16-30563 | C141: ΑΝΔΡΙΟΠΟΥΛΟΥ ΑΓΓΕΛΙΚΗ-ΑΘΑΝΑΣΙΑ | D141: 2002 | E141: Α.Ε.Τ.ΝΙΚΗ ΠΑΤΡΩΝ | F141: ΣΤ | G141: 87 | H141: 87.02335054
A142: 30563 | B142: 18-30563 | C142: ΑΝΔΡΙΟΠΟΥΛΟΥ ΑΓΓΕΛΙΚΗ-ΑΘΑΝΑΣΙΑ | D142: 2002 | E142: Α.Ε.Τ.ΝΙΚΗ ΠΑΤΡΩΝ | F142: ΣΤ | G142: 42 | H142: 42.01474335
A143: 33069 | B143: 12-33069 | C143: ΑΝΔΡΟΥΤΣΕΛΗΣ ΑΝΔΡΕΑΣ | D143: 2003 | E143: Α.Ο.Α.ΠΑΤΡΩΝ | F143: ΣΤ | G143: 0 | H143: 0.01544886282
A144: 33069 | B144: 14-33069 | C144: ΑΝΔΡΟΥΤΣΕΛΗΣ ΑΝΔΡΕΑΣ | D144: 2003 | E144: Α.Ο.Α.ΠΑΤΡΩΝ | F144: ΣΤ | G144: 0 | H144: 0.02859301533
A145: 35508 | B145: 12-35508 | C145: ΑΝΔΡΩΝΗΣ ΑΛΕΞΑΝΔΡΟΣ | D145: 2003 | E145: Ο.Α.ΑΓΙΑΣ ΠΑΡΑΣΚΕΥΗΣ | F145: Η | G145: 30 | H145: 30.01573713
A146: 35508 | B146: 14-35508 | C146: ΑΝΔΡΩΝΗΣ ΑΛΕΞΑΝΔΡΟΣ | D146: 2003 | E146: Ο.Α.ΑΓΙΑΣ ΠΑΡΑΣΚΕΥΗΣ | F146: Η | G146: 30 | H146: 30.01055041
A147: 26190 | B147: 16-26190 | C147: ΑΝΔΡΩΝΗΣ ΙΩΑΝΝΗΣ | D147: 1999 | E147: Ο.Α.ΑΓΙΑΣ ΠΑΡΑΣΚΕΥΗΣ | F147: Η | G147: 226 | H147: 226.0124581
A148: 26190 | B148: 18-26190 | C148: ΑΝΔΡΩΝΗΣ ΙΩΑΝΝΗΣ | D148: 1999 | E148: Ο.Α.ΑΓΙΑΣ ΠΑΡΑΣΚΕΥΗΣ | F148: Η | G148: 206 | H148: 206.0120675
A149: 31595 | B149: 14-31595 | C149: ΑΝΕΣΙΔΗΣ ΔΗΜΗΤΡΙΟΣ | D149: 2002 | E149: Α.Ο.Α.ΠΑΤΡΩΝ | F149: ΣΤ | G149: 19.5 | H149: 19.5132548
A150: 31595 | B150: 16-31595 | C150: ΑΝΕΣΙΔΗΣ ΔΗΜΗΤΡΙΟΣ | D150: 2002 | E150: Α.Ο.Α.ΠΑΤΡΩΝ | F150: ΣΤ | G150: 18 | H150: 18.01577526
A151: 31595 | B151: 18-31595 | C151: ΑΝΕΣΙΔΗΣ ΔΗΜΗΤΡΙΟΣ | D151: 2002 | E151: Α.Ο.Α.ΠΑΤΡΩΝ | F151: ΣΤ | G151: 3 | H151: 3.022392062
A152: 32537 | B152: 12-32537 | C152: ΑΝΘΟΥΛΑΚΗ ΠΑΝΑΓΙΩΤΑ | D152: 2005 | E152: Ο.Α.ΘΕΣΣΑΛΟΝΙΚΗΣ | F152: Β | G152: 6 | H152: 6.015442007
A153: 32537 | B153: 14-32537 | C153: ΑΝΘΟΥΛΑΚΗ ΠΑΝΑΓΙΩΤΑ | D153: 2005 | E153: Ο.Α.ΘΕΣΣΑΛΟΝΙΚΗΣ | F153: Β | G153: 6 | H153: 6.023468675
A154: 26107 | B154: 16-26107 | C154: ΑΝΤΩΝΑΚΗ ΕΜΜΑΝΟΥΕΛΑ | D154: 2000 | E154: Α.Ο.Α.ΑΤΤΙΚΟΣ ΗΛΙΟΣ | F154: Η | G154: 616 | H154: 616.0192024
A155: 26107 | B155: 18-26107 | C155: ΑΝΤΩΝΑΚΗ ΕΜΜΑΝΟΥΕΛΑ | D155: 2000 | E155: Α.Ο.Α.ΑΤΤΙΚΟΣ ΗΛΙΟΣ | F155: Η | G155: 238 | H155: 238.0051276
A156: 32700 | B156: 16-32700 | C156: ΑΝΤΩΝΑΚΟΣ ΧΑΡΑΛΑΜΠΟΣ | D156: 2000 | E156: Ο.Α.ΚΕΡΑΤΣΙΝΙΟΥ | F156: Θ | G156: 4 | H156: 4.012236456
A157: 32700 | B157: 18-32700 | C157: ΑΝΤΩΝΑΚΟΣ ΧΑΡΑΛΑΜΠΟΣ | D157: 2000 | E157: Ο.Α.ΚΕΡΑΤΣΙΝΙΟΥ | F157: Θ | G157: 4 | H157: 4.036686145
A158: 35208 | B158: 12-35208 | C158: ΑΝΤΩΝΑΤΟΣ ΑΓΓΕΛΟΣ | D158: 2004 | E158: Α.Ο.ΑΡΓΥΡΟΥΠΟΛΗΣ | F158: ΙΑ | G158: 4 | H158: 4.012158336
A159: 35208 | B159: 14-35208 | C159: ΑΝΤΩΝΑΤΟΣ ΑΓΓΕΛΟΣ | D159: 2004 | E159: Α.Ο.ΑΡΓΥΡΟΥΠΟΛΗΣ | F159: ΙΑ | G159: 4 | H159: 4.024162092
A160: 32908 | B160: 16-32908 | C160: ΑΝΤΩΝΙΑΔΗΣ ΑΛΕΞΑΝΔΡΟΣ | D160: 2000 | E160: Ο.Α.ΘΕΣΣΑΛΟΝΙΚΗΣ | F160: Β | G160: 6 | H160: 6.003971402
A161: 32908 | B161: 18-32908 | C161: ΑΝΤΩΝΙΑΔΗΣ ΑΛΕΞΑΝΔΡΟΣ | D161: 2000 | E161: Ο.Α.ΘΕΣΣΑΛΟΝΙΚΗΣ | F161: Β | G161: 6 | H161: 6.011041832
A162: 27809 | B162: 14-27809 | C162: ΑΝΤΩΝΙΑΔΗΣ ΔΗΜΗΤΡΗΣ-ΠΑΝΑΓΙΩΤΗΣ | D162: 2002 | E162: Σ.Α.ΚΑΣΤΟΡΙΑΣ ΠΡΩΤΕΑΣ | F162: Γ | G162: 13 | H162: 13.00925456
A163: 27809 | B163: 16-27809 | C163: ΑΝΤΩΝΙΑΔΗΣ ΔΗΜΗΤΡΗΣ-ΠΑΝΑΓΙΩΤΗΣ | D163: 2002 | E163: Σ.Α.ΚΑΣΤΟΡΙΑΣ ΠΡΩΤΕΑΣ | F163: Γ | G163: 11 | H163: 11.01878834
A164: 27809 | B164: 18-27809 | C164: ΑΝΤΩΝΙΑΔΗΣ ΔΗΜΗΤΡΗΣ-ΠΑΝΑΓΙΩΤΗΣ | D164: 2002 | E164: Σ.Α.ΚΑΣΤΟΡΙΑΣ ΠΡΩΤΕΑΣ | F164: Γ | G164: 13 | H164: 13.03690423
A165: 31689 | B165: 12-31689 | C165: ΑΝΤΩΝΙΑΔΗΣ ΙΑΣΩΝ-ΦΑΝΟΥΡΙΟΣ | D165: 2004 | E165: ΛΑΡΙΣΑΪΚΟΣ Ο.Α. | F165: Ε | G165: 10.5 | H165: 10.53103364
A166: 31689 | B166: 14-31689 | C166: ΑΝΤΩΝΙΑΔΗΣ ΙΑΣΩΝ-ΦΑΝΟΥΡΙΟΣ | D166: 2004 | E166: ΛΑΡΙΣΑΪΚΟΣ Ο.Α. | F166: Ε | G166: 10.5 | H166: 10.52754629
A167: 37804 | B167: 12-37804 | C167: ΑΝΤΩΝΙΑΔΗΣ ΚΙΜΩΝ-ΑΛΕΞΑΝΔΡΟΣ | D167: 2003 | E167: Α.Ο.Α.ΚΑΒΑΛΑΣ | F167: Α | G167: 2 | H167: 2.035179587
A168: 37804 | B168: 14-37804 | C168: ΑΝΤΩΝΙΑΔΗΣ ΚΙΜΩΝ-ΑΛΕΞΑΝΔΡΟΣ | D168: 2003 | E168: Α.Ο.Α.ΚΑΒΑΛΑΣ | F168: Α | G168: 2 | H168: 2.00851681
A169: 33701 | B169: 14-33701 | C169: ΑΝΤΩΝΙΑΔΗΣ ΦΩΤΙΟΣ-ΑΝΔΡΕΑΣ | D169: 2002 | E169: Α.Ν.Ο.ΓΛΥΦΑΔΑΣ | F169: ΙΑ | G169: 93 | H169: 93.03294473
A170: 33701 | B170: 16-33701 | C170: ΑΝΤΩΝΙΑΔΗΣ ΦΩΤΙΟΣ-ΑΝΔΡΕΑΣ | D170: 2002 | E170: Α.Ν.Ο.ΓΛΥΦΑΔΑΣ | F170: ΙΑ | G170: 90 | H170: 90.01969669
A171: 33701 | B171: 18-33701 | C171: ΑΝΤΩΝΙΑΔΗΣ ΦΩΤΙΟΣ-ΑΝΔΡΕΑΣ | D171: 2002 | E171: Α.Ν.Ο.ΓΛΥΦΑΔΑΣ | F171: ΙΑ | G171: 61 | H171: 61.02646848
A172: 29417 | B172: 14-29417 | C172: ΑΝΤΩΝΙΑΔΟΥ ΑΡΙΑΔΝΗ | D172: 2001 | E172: Α.Σ.Α.ΠΑΝΟΡΑΜΑΤΟΣ | F172: Β | G172: 4 | H172: 4.037531803
A173: 29417 | B173: 16-29417 | C173: ΑΝΤΩΝΙΑΔΟΥ ΑΡΙΑΔΝΗ | D173: 2001 | E173: Α.Σ.Α.ΠΑΝΟΡΑΜΑΤΟΣ | F173: Β | G173: 4 | H173: 4.004068123
A174: 29417 | B174: 18-29417 | C174: ΑΝΤΩΝΙΑΔΟΥ ΑΡΙΑΔΝΗ | D174: 2001 | E174: Α.Σ.Α.ΠΑΝΟΡΑΜΑΤΟΣ | F174: Β | G174: 4 | H174: 4.030764197
A175: 32328 | B175: 16-32328 | C175: ΑΝΤΩΝΙΑΔΟΥ-ΣΑΜΑΡΤΖΙΔΟΥ ΣΟΦΙΑ-ΜΑΡΤΙΝΑ | D175: 2000 | E175: Ο.Α.ΤΟΥΜΠΑΣ | F175: Β | G175: 14 | H175: 14.02135437
A176: 32328 | B176: 18-32328 | C176: ΑΝΤΩΝΙΑΔΟΥ-ΣΑΜΑΡΤΖΙΔΟΥ ΣΟΦΙΑ-ΜΑΡΤΙΝΑ | D176: 2000 | E176: Ο.Α.ΤΟΥΜΠΑΣ | F176: Β | G176: 14 | H176: 14.01923094
A177: 22546 | B177: 16-22546 | C177: ΑΝΤΩΝΙΟΥ ΑΝΑΣΤΑΣΙΑ | D177: 1999 | E177: Α.Ε.Κ.ΤΡΙΠΟΛΗΣ | F177: ΣΤ | G177: 66 | H177: 66.01652379
A178: 22546 | B178: 18-22546 | C178: ΑΝΤΩΝΙΟΥ ΑΝΑΣΤΑΣΙΑ | D178: 1999 | E178: Α.Ε.Κ.ΤΡΙΠΟΛΗΣ | F178: ΣΤ | G178: 48 | H178: 48.01566152
A179: 28937 | B179: 16-28937 | C179: ΑΝΤΩΝΙΟΥ ΘΕΟΔΩΡΑ | D179: 1999 | E179: Ο.Α.ΜΑΓΝΗΣΙΑΣ | F179: Ε | G179: 74 | H179: 74.03409387
A180: 28937 | B180: 18-28937 | C180: ΑΝΤΩΝΙΟΥ ΘΕΟΔΩΡΑ | D180: 1999 | E180: Ο.Α.ΜΑΓΝΗΣΙΑΣ | F180: Ε | G180: 90 | H180: 90.00123374
A181: 36655 | B181: 12-36655 | C181: ΑΝΤΩΝΙΟΥΔΑΚΗ ΣΤΕΦΑΝΙΑ | D181: 2003 | E181: Α.Ο.Α.ΗΛΙΟΥΠΟΛΗΣ | F181: ΙΑ | G181: 2 | H181: 2.013001455
A182: 36655 | B182: 14-36655 | C182: ΑΝΤΩΝΙΟΥΔΑΚΗ ΣΤΕΦΑΝΙΑ | D182: 2003 | E182: Α.Ο.Α.ΗΛΙΟΥΠΟΛΗΣ | F182: ΙΑ | G182: 2 | H182: 2.024678023
A183: 31211 | B183: 16-31211 | C183: ΑΝΤΩΝΙΟΥ-ΚΑΡΑΔΕΜΗΤΡΟΥ ΝΙΚΟΛΕΤΑ | D183: 2000 | E183: Ο.Α.ΒΟΛΟΥ | F183: Ε | G183: 446 | H183: 446.0010579
A184: 31211 | B184: 18-31211 | C184: ΑΝΤΩΝΙΟΥ-ΚΑΡΑΔΕΜΗΤΡΟΥ ΝΙΚΟΛΕΤΑ | D184: 2000 | E184: Ο.Α.ΒΟΛΟΥ | F184: Ε | G184: 212 | H184: 212.0210227
A185: 33746 | B185: 16-33746 | C185: ΑΝΤΩΝΟΠΟΥΛΟΣ ΚΩΝΣΤΑΝΤΙΝΟΣ | D185: 2000 | E185: Α.Σ.ΑΚΑΔΗΜΙΕΣ ΠΡΩΤΑΘΛΗΤΩΝ ΠΕΥΚΩΝ | F185: Β | G185: 6 | H185: 6.014633505
A186: 33746 | B186: 18-33746 | C186: ΑΝΤΩΝΟΠΟΥΛΟΣ ΚΩΝΣΤΑΝΤΙΝΟΣ | D186: 2000 | E186: Α.Σ.ΑΚΑΔΗΜΙΕΣ ΠΡΩΤΑΘΛΗΤΩΝ ΠΕΥΚΩΝ | F186: Β | G186: 6 | H186: 6.01114708
A187: 23775 | B187: 18-23775 | C187: ΑΝΤΩΝΟΠΟΥΛΟΣ ΧΡΗΣΤΟΣ | D187: 1998 | E187: Ο.Α.ΚΕΡΑΤΣΙΝΙΟΥ | F187: Θ | G187: 850 | H187: 850.0347772
A188: 32272 | B188: 12-32272 | C188: ΑΝΤΩΝΟΠΟΥΛΟΥ ΑΝΑΣΤΑΣΙΑ | D188: 2003 | E188: Ο.Α.ΚΕΡΑΤΣΙΝΙΟΥ | F188: Θ | G188: 11 | H188: 11.03343393
A189: 32272 | B189: 14-32272 | C189: ΑΝΤΩΝΟΠΟΥΛΟΥ ΑΝΑΣΤΑΣΙΑ | D189: 2003 | E189: Ο.Α.ΚΕΡΑΤΣΙΝΙΟΥ | F189: Θ | G189: 11 | H189: 11.03532735
A190: 36678 | B190: 16-36678 | C190: ΑΝΤΩΝΟΠΟΥΛΟΥ ΕΥΑΓΓΕΛΙΑ | D190: 2000 | E190: Α.Ο.Α.ΧΑΪΔΑΡΙΟΥ | F190: Θ | G190: 39 | H190: 39.00342221
A191: 36678 | B191: 18-36678 | C191: ΑΝΤΩΝΟΠΟΥΛΟΥ ΕΥΑΓΓΕΛΙΑ | D191: 2000 | E191: Α.Ο.Α.ΧΑΪΔΑΡΙΟΥ | F191: Θ | G191: 39 | H191: 39.00468241
A192: 32038 | B192: 16-32038 | C192: ΑΝΤΩΝΟΠΟΥΛΟΥ ΚΩΝΣΤΑΝΤΙΝΑ | D192: 1999 | E192: Ε.Σ.Ο.ΕΠΙΚΟΥΡΟΣ ΠΟΛΙΧΝΗΣ | F192: Β | G192: 14 | H192: 14.01017272
A193: 32038 | B193: 18-32038 | C193: ΑΝΤΩΝΟΠΟΥΛΟΥ ΚΩΝΣΤΑΝΤΙΝΑ | D193: 1999 | E193: Ε.Σ.Ο.ΕΠΙΚΟΥΡΟΣ ΠΟΛΙΧΝΗΣ | F193: Β | G193: 14 | H193: 14.02445263
A194: 35334 | B194: 18-35334 | C194: ΑΠΕΡΓΗΣ ΔΗΜΗΤΡΗΣ | D194: 1998 | E194: Α.Ο.Α.ΑΙΓΑΛΕΩ 92 | F194: Θ | G194: 8 | H194: 8.004724315
A195: 30523 | B195: 16-30523 | C195: ΑΠΕΡΓΗΣ ΚΟΜΝΗΝΟΣ | D195: 1999 | E195: Α.Ο.ΚΑΛΛΙΤΕΧΝΟΥΠΟΛΗΣ | F195: Η | G195: 38 | H195: =G195+RAND()/25 -> 38.02065841
A196: 30523 | B196: 18-30523 | C196: ΑΠΕΡΓΗΣ ΚΟΜΝΗΝΟΣ | D196: 1999 | E196: Α.Ο.ΚΑΛΛΙΤΕΧΝΟΥΠΟΛΗΣ | F196: Η | G196: 36 | H196: 36.02382493
A197: 37532 | B197: 14-37532 | C197: ΑΠΙΔΙΑΝΑΚΗ ΕΥΘΥΜΙΑ | D197: 2001 | E197: Α.Ο.Α.ΗΛΙΟΥΠΟΛΗΣ | F197: ΙΑ | G197: 2 | H197: 2.013782383
A198: 37532 | B198: 16-37532 | C198: ΑΠΙΔΙΑΝΑΚΗ ΕΥΘΥΜΙΑ | D198: 2001 | E198: Α.Ο.Α.ΗΛΙΟΥΠΟΛΗΣ | F198: ΙΑ | G198: 2 | H198: 2.00723925
A199: 37532 | B199: 18-37532 | C199: ΑΠΙΔΙΑΝΑΚΗ ΕΥΘΥΜΙΑ | D199: 2001 | E199: Α.Ο.Α.ΗΛΙΟΥΠΟΛΗΣ | F199: ΙΑ | G199: 2 | H199: 2.03049164
A200: 35980 | B200: 12-35980 | C200: ΑΠΟΣΤΟΛΑΤΟΣ ΕΥΑΓΓΕΛΟΣ-ΚΑΛΕΡΓΗΣ | D200: 2004 | E200: Ο.Α.ΚΕΡΑΤΣΙΝΙΟΥ | F200: Θ | G200: 9.5 | H200: 9.516264594
... 3876 more rows

Sheet Μητρώο
A1: ΑΜ | B1: Φ | C1: Ονοματεπώνυμο | D1: YOB | E1: Σύλλογος | F1: Εν
A2: 33811 | B2: b | C2: ΑΑΡΩΝ ΙΩΣΗΦ | D2: 1999 | E2: Α.Ο.ΤΑΤΟΪΟΥ | F2: Η
A3: 37876 | B3: g | C3: ΑΒΑΓΙΑΝΟΥ ΜΑΡΙΑ | D3: 2001 | E3: Α.Ο.ΜΕΓΑΣ ΑΛΕΞΑΝΔΡΟΣ | F3: ΙΑ
A4: 31383 | B4: b | C4: ΑΒΑΤΑΓΓΕΛΟΣ ΓΕΩΡΓΙΟΣ | D4: 2002 | E4: Σ.Α.ΣΕΡΡΩΝ | F4: Α
A5: 32009 | B5: b | C5: ΑΒΑΤΑΓΓΕΛΟΣ ΧΡΗΣΤΟΣ | D5: 1998 | E5: Σ.Α.ΣΕΡΡΩΝ | F5: Α
A6: 32947 | B6: g | C6: ΑΒΑΤΑΓΓΕΛΟΥ ΑΝΤΩΝΙΝΑ | D6: 2003 | E6: Σ.Α.ΣΕΡΡΩΝ | F6: Α
A7: 34626 | B7: g | C7: ΑΒΔΕΛΑ ΜΑΡΙΑΝΘΗ | D7: 2003 | E7: ΣΕΡΡΑΪΚΟΣ Ο.Α. | F7: Α
A8: 28282 | B8: b | C8: ΑΒΔΗΜΙΩΤΗΣ ΔΗΜΗΤΡΙΟΣ | D8: 1998 | E8: Ο.Α.ΤΟΥΜΠΑΣ | F8: Β
A9: 22676 | B9: b | C9: ΑΒΔΗΜΙΩΤΗΣ ΘΩΜΑΣ | D9: 1997 | E9: Ο.Α.ΤΟΥΜΠΑΣ | F9: Β
A10: 33755 | B10: b | C10: ΑΒΟΥΡΗΣ ΕΥΡΙΠΙΔΗΣ | D10: 1997 | E10: Ο.Α.ΡΙΟΥ | F10: ΣΤ
A11: 30612 | B11: b | C11: ΑΒΡΑΑΜ ΔΗΜΗΤΡΙΟΣ | D11: 2004 | E11: Α.Ο.Α.ΠΡΩΤΑΘΛ.ΚΑΒΑΛΑΣ | F11: Α
A12: 30634 | B12: g | C12: ΑΒΡΑΑΜ ΕΛΕΥΘΕΡΙΑ | D12: 2001 | E12: Α.Ο.Α.ΠΡΩΤΑΘΛ.ΚΑΒΑΛΑΣ | F12: Α
A13: 33543 | B13: b | C13: ΑΒΡΑΜΙΔΗΣ ΑΝΑΣΤΑΣΙΟΣ | D13: 1997 | E13: Ν.Ο.ΘΕΣΣΑΛΟΝΙΚΗΣ | F13: Β
A14: 34867 | B14: b | C14: ΑΒΡΑΜΙΔΗΣ ΓΕΩΡΓΙΟΣ | D14: 2005 | E14: Α.Ο.Α.ΣΤΑΥΡΟΥΠΟΛΗΣ ΙΦΙΤΟΣ | F14: Β
A15: 32805 | B15: b | C15: ΑΒΡΑΜΙΔΗΣ ΙΩΑΝΝΗΣ | D15: 2002 | E15: Ο.Α.ΑΛΕΞΑΝΔΡΟΣ ΒΕΡΟΙΑΣ | F15: Γ
A16: 32800 | B16: g | C16: ΑΒΡΑΜΙΔΟΥ ΑΝΝΑ-ΜΑΡΙΑ | D16: 2005 | E16: Ο.Α.ΑΛΕΞΑΝΔΡΟΣ ΒΕΡΟΙΑΣ | F16: Γ
A17: 32724 | B17: g | C17: ΑΒΡΑΜΙΔΟΥ ΕΛΕΝΗ | D17: 2001 | E17: Ο.Α.ΠΑΝΟΡΑΜΑΤΟΣ | F17: Β
A18: 26619 | B18: g | C18: ΑΒΡΑΜΙΔΟΥ ΜΑΡΙΑ | D18: 1998 | E18: Ο.Α.ΚΑΒΑΛΑΣ ΑΛΕΞΑΝΔΡΟΣ | F18: Α
A19: 34868 | B19: g | C19: ΑΒΡΑΜΙΔΟΥ ΠΑΝΑΓΙΩΤΑ | D19: 2001 | E19: Α.Ο.Α.ΣΤΑΥΡΟΥΠΟΛΗΣ ΙΦΙΤΟΣ | F19: Β
A20: 24893 | B20: g | C20: ΑΒΡΑΜΙΔΟΥ ΣΟΦΙΑ | D20: 1997 | E20: Σ.Α.ΔΡΑΜΑΣ | F20: Α
A21: 31453 | B21: g | C21: ΑΓΑΘΑΓΓΕΛΙΔΟΥ ΖΗΝΟΒΙΑ | D21: 2000 | E21: Γ.Α.Σ.ΚΑΡΑΤΕ ΕΡΜΗΣ | F21: Γ
A22: 37370 | B22: g | C22: ΑΓΑΘΑΓΓΕΛΟΥ ΜΑΡΙΑ | D22: 2001 | E22: Α.Σ.Α.ΖΕΦΥΡΟΣ | F22: Γ
A23: 29661 | B23: b | C23: ΑΓΑΘΟΣ ΙΩΑΝΝΗΣ | D23: 2000 | E23: Ο.Α.ΚΕΡΚΥΡΑΣ | F23: Δ
A24: 34784 | B24: g | C24: ΑΓΑΚΕΧΑΓΙΑ ΑΝΑΣΤΑΣΙΑ | D24: 2003 | E24: Α.Ο.Α.ΣΤΑΥΡΟΥΠΟΛΗΣ ΙΦΙΤΟΣ | F24: Β
A25: 30178 | B25: g | C25: ΑΓΑΚΕΧΑΓΙΑ ΖΩΗ | D25: 2001 | E25: Α.Ο.Α.ΣΤΑΥΡΟΥΠΟΛΗΣ ΙΦΙΤΟΣ | F25: Β
A26: 30702 | B26: b | C26: ΑΓΑΛΙΑΝΟΣ ΝΙΚΟΛΑΟΣ | D26: 2004 | E26: ΦΙΛΑΘΛ.ΟΜΙΛΟΣ ΠΥΡΓΟΥ | F26: ΣΤ
A27: 29987 | B27: g | C27: ΑΓΑΛΙΩΤΗ ΣΟΦΙΑ | D27: 2000 | E27: Α.Ε.Τ.ΝΙΚΗ ΠΑΤΡΩΝ | F27: ΣΤ
A28: 25670 | B28: b | C28: ΑΓΑΛΙΩΤΗΣ ΓΕΡΑΣΙΜΟΣ | D28: 1997 | E28: ΖΑΚΥΝΘΙΝΟΣ Α.Ο. | F28: ΣΤ
A29: 28542 | B29: b | C29: ΑΓΑΛΙΩΤΗΣ ΘΕΟΔΟΣΗΣ | D29: 1999 | E29: Α.Ε.Τ.ΝΙΚΗ ΠΑΤΡΩΝ | F29: ΣΤ
A30: 28008 | B30: b | C30: ΑΓΑΣ ΑΝΤΩΝΗΣ | D30: 1999 | E30: Σ.Φ.Α.ΜΕΛΙΣΣΙΩΝ Ο ΦΟΙΒΟΣ | F30: Η
A31: 24755 | B31: g | C31: ΑΓΓΕΛΑΚΗ ΑΝΝΑ | D31: 1999 | E31: Α.Σ.Α.ΛΑΡΙΣΑΣ | F31: Ε
A32: 35117 | B32: g | C32: ΑΓΓΕΛΑΚΗ ΝΕΦΕΛΗ | D32: 2001 | E32: Α.Ο.ΤΑΤΟΪΟΥ | F32: Η
A33: 24748 | B33: g | C33: ΑΓΓΕΛΑΚΗ ΝΙΚΟΛΕΤΤΑ | D33: 2001 | E33: Ο.Α.ΝΙΚΑΙΑ ΛΑΡΙΣΑΣ | F33: Ε
A34: 35118 | B34: g | C34: ΑΓΓΕΛΑΚΗ ΦΑΙΔΡΑ | D34: 2001 | E34: Α.Ο.ΤΑΤΟΪΟΥ | F34: Η
A35: 28187 | B35: b | C35: ΑΓΓΕΛΑΚΗΣ ΑΓΓΕΛΟΣ-ΣΑΒΒΑΣ | D35: 2000 | E35: Γ.Σ.ΛΙΒΥΚΟΣ ΙΕΡΑΠΕΤΡΑΣ | F35: Ζ
A36: 31175 | B36: b | C36: ΑΓΓΕΛΑΚΗΣ ΑΛΕΞΑΝΔΡΟΣ | D36: 1997 | E36: Α.Μ.Ε.Σ.Ν.ΕΡΥΘΡΑΙΑΣ | F36: Η
A37: 22997 | B37: b | C37: ΑΓΓΕΛΑΚΗΣ ΚΩΝΣΤΑΝΤΙΝΟΣ | D37: 1997 | E37: Α.Κ.Α.ΜΑΡΑΘΩΝΑ | F37: Η
A38: 37073 | B38: b | C38: ΑΓΓΕΛΑΚΟΣ ΓΕΩΡΓΙΟΣ | D38: 2003 | E38: Ο.Α.ΑΛΕΞΑΝΔΡΟΥΠΟΛΗΣ | F38: Α
A39: 25034 | B39: g | C39: ΑΓΓΕΛΑΚΟΥ ΑΙΚΑΤΕΡΙΝΗ | D39: 1999 | E39: Ο.Α.ΠΕΙΡΑΙΑ | F39: Θ
A40: 31891 | B40: g | C40: ΑΓΓΕΛΑΚΟΥ ΠΑΡΑΣΚΕΥΗ | D40: 2001 | E40: Ο.Α.ΣΠΑΡΤΗΣ | F40: ΣΤ
A41: 25681 | B41: g | C41: ΑΓΓΕΛΑΤΟΥ-ΡΑΦΤΟΠΟΥΛΟΥ ΑΝΑΣΤΑΣΙΑ-ΑΛΕΞΑΝΔΡΑ | D41: 1999 | E41: Α.Ο.Α.ΗΛΙΟΥΠΟΛΗΣ | F41: ΙΑ
A42: 24724 | B42: g | C42: ΑΓΓΕΛΗ ΑΛΚΜΗΝΗ | D42: 1999 | E42: Α.Σ.Α.ΛΑΡΙΣΑΣ | F42: Ε
A43: 35061 | B43: g | C43: ΑΓΓΕΛΗ ΓΕΩΡΓΙΑ | D43: 2008 | E43: Ο.Α.ΠΕΤΡΟΥΠΟΛΗΣ | F43: Θ
A44: 32835 | B44: g | C44: ΑΓΓΕΛΗ ΔΑΝΑΗ | D44: 2000 | E44: Ο.Α.ΑΡΤΑΣ | F44: Δ
A45: 34341 | B45: b | C45: ΑΓΓΕΛΗΣ ΑΘΑΝΑΣΙΟΣ | D45: 2005 | E45: Ο.Α.ΑΡΤΑΣ | F45: Δ
A46: 32837 | B46: b | C46: ΑΓΓΕΛΗΣ ΚΩΝΣΤΑΝΤΙΝΟΣ | D46: 2002 | E46: Ο.Α.ΑΡΤΑΣ | F46: Δ
A47: 34371 | B47: b | C47: ΑΓΓΕΛΗΣ ΜΙΧΑΗΛ | D47: 2002 | E47: Α.Ο.Α.ΑΙΓΑΛΕΩ 92 | F47: Θ
A48: 27981 | B48: g | C48: ΑΓΓΕΛΙΔΗ ΕΥΓΕΝΙΑ | D48: 1999 | E48: Γ.Σ.ΙΤΕΑΣ | F48: Ε
A49: 25237 | B49: b | C49: ΑΓΓΕΛΙΔΗΣ ΑΓΓΕΛΟΣ | D49: 1997 | E49: Ο.Α.ΑΘΗΝΩΝ | F49: Η
A50: 33414 | B50: b | C50: ΑΓΓΕΛΙΔΗΣ ΝΙΚΟΛΑΟΣ | D50: 2003 | E50: Α.Ε.Κ.ΤΡΙΠΟΛΗΣ | F50: ΣΤ
A51: 26238 | B51: g | C51: ΑΓΓΕΛΙΔΟΥ ΑΘΗΝΑ | D51: 2008 | E51: Ο.Α.ΒΕΡΟΙΑΣ | F51: Γ
A52: 35059 | B52: g | C52: ΑΓΓΕΛΙΔΟΥ ΑΛΕΞΙΑ | D52: 2003 | E52: Ο.Α.ΠΕΤΡΟΥΠΟΛΗΣ | F52: Θ
A53: 25611 | B53: g | C53: ΑΓΓΕΛΙΔΟΥ ΚΑΛΛΙΟΠΗ | D53: 1999 | E53: Σ.Α.ΔΡΑΜΑΣ | F53: Α
A54: 35058 | B54: g | C54: ΑΓΓΕΛΙΔΟΥ ΛΥΔΙΑ | D54: 2000 | E54: Ο.Α.ΠΕΤΡΟΥΠΟΛΗΣ | F54: Θ
A55: 35772 | B55: g | C55: ΑΓΓΕΛΙΔΟΥ ΜΑΡΙΑ-ΙΩΑΝΝΑ | D55: 2001 | E55: Α.Π.Μ.Σ.ΑΣΚΗΣΗ ΗΡΑΚΛΕΙΟΥ | F55: Ζ
A56: 35060 | B56: g | C56: ΑΓΓΕΛΙΔΟΥ ΝΑΤΑΛΙΑ | D56: 2003 | E56: Ο.Α.ΠΕΤΡΟΥΠΟΛΗΣ | F56: Θ
A57: 30811 | B57: g | C57: ΑΓΓΕΛΙΔΟΥ ΣΟΦΙΑ | D57: 2002 | E57: Α.Ο.Α.ΠΡΩΤΑΘΛ.ΚΑΒΑΛΑΣ | F57: Α
A58: 32514 | B58: b | C58: ΑΓΓΕΛΙΝΑΣ ΑΡΗΣ | D58: 2004 | E58: Α.Π.Ο.ΣΑΝΝΥ ΣΠΟΡΤΣ ΚΛΑΜΠ | F58: Η
A59: 35970 | B59: b | C59: ΑΓΓΕΛΙΝΑΣ ΛΟΥΚΑΣ | D59: 2004 | E59: Α.Κ.Α.ΜΑΡΑΘΩΝΑ | F59: Η
A60: 36281 | B60: b | C60: ΑΓΓΕΛΟΠΟΥΛΟΣ ΔΗΜΗΤΡΗΣ | D60: 1999 | E60: Ο.Α.ΠΕΙΡΑΙΑ | F60: Θ
A61: 35163 | B61: b | C61: ΑΓΓΕΛΟΠΟΥΛΟΣ ΔΗΜΗΤΡΙΟΣ | D61: 1999 | E61: Ο.Α.ΠΕΙΡΑΙΑ | F61: Θ
A62: 33230 | B62: b | C62: ΑΓΓΕΛΟΠΟΥΛΟΣ ΕΥΑΓΓΕΛΟΣ | D62: 1999 | E62: Α.Σ.ΜΑΧΗΤΕΣ ΠΕΥΚΩΝ | F62: Β
A63: 32459 | B63: b | C63: ΑΓΓΕΛΟΠΟΥΛΟΣ ΙΩΑΝΝΗΣ-ΒΛΑΣΙΟΣ | D63: 1999 | E63: Α.Ο.Π.ΦΑΛΗΡΟΥ | F63: ΙΑ
A64: 26765 | B64: b | C64: ΑΓΓΕΛΟΠΟΥΛΟΣ ΚΩΝΣΤΑΝΤΙΝΟΣ | D64: 2001 | E64: Α.Ε.Κ.ΤΡΙΠΟΛΗΣ | F64: ΣΤ
A65: 34376 | B65: b | C65: ΑΓΓΕΛΟΠΟΥΛΟΣ ΚΩΝΣΤΑΝΤΙΝΟΣ | D65: 2004 | E65: Α.Ο.ΣΙΚΥΩΝΟΣ ΚΙΑΤΟΥ | F65: ΣΤ
A66: 28588 | B66: b | C66: ΑΓΓΕΛΟΠΟΥΛΟΣ ΜΙΛΤΙΑΔΗΣ | D66: 1999 | E66: ΠΕΥΚΗ Γ.ΚΑΛΟΒΕΛΩΝΗΣ | F66: Η
A67: 31396 | B67: b | C67: ΑΓΓΕΛΟΠΟΥΛΟΣ ΠΑΝΑΓΙΩΤΗΣ | D67: 2002 | E67: Α.Ο.ΣΙΚΥΩΝΟΣ ΚΙΑΤΟΥ | F67: ΣΤ
A68: 36008 | B68: b | C68: ΑΓΓΕΛΟΠΟΥΛΟΣ ΠΑΝΑΓΩΤΗΣ | D68: 2005 | E68: Ο.Α.ΠΕΙΡΑΙΑ | F68: Θ
A69: 33090 | B69: b | C69: ΑΓΓΕΛΟΠΟΥΛΟΣ ΣΠΥΡΟΣ | D69: 2002 | E69: Ο.Α.ΧΟΛΑΡΓΟΥ | F69: ΙΑ
A70: 27576 | B70: b | C70: ΑΓΓΕΛΟΠΟΥΛΟΣ ΣΤΑΥΡΟΣ | D70: 2001 | E70: Α.Ο.ΒΑΡΗΣ ΑΝΑΓΥΡΟΥΣ | F70: Η
A71: 25468 | B71: b | C71: ΑΓΓΕΛΟΠΟΥΛΟΣ ΦΙΛΙΠΠΟΣ | D71: 1997 | E71: Α.Σ.ΠΕΡΑ | F71: ΙΑ
A72: 24873 | B72: b | C72: ΑΓΓΕΛΟΠΟΥΛΟΣ ΧΡΗΣΤΟΣ | D72: 1998 | E72: Γ.Σ.ΛΙΒΥΚΟΣ ΙΕΡΑΠΕΤΡΑΣ | F72: Ζ
A73: 35224 | B73: b | C73: ΑΓΓΕΛΟΠΟΥΛΟΣ ΧΡΗΣΤΟΣ | D73: 2001 | E73: Α.Ο.Α.ΧΑΪΔΑΡΙΟΥ | F73: Θ
A74: 33172 | B74: g | C74: ΑΓΓΕΛΟΠΟΥΛΟΥ ΑΘΗΝΑ | D74: 2002 | E74: Σ.Α.ΔΡΑΜΑΣ | F74: Α
A75: 32002 | B75: g | C75: ΑΓΓΕΛΟΠΟΥΛΟΥ ΑΝΝΑ | D75: 1998 | E75: Ο.Α.ΑΘΛΗΤ.ΠΑΙΔΕΙΑ | F75: Η
A76: 30341 | B76: g | C76: ΑΓΓΕΛΟΠΟΥΛΟΥ ΑΡΙΑΔΝΗ | D76: 1998 | E76: Α.Σ.Α.ΠΑΜΒΩΤΙΣ ΙΩΑΝΝΙΝΩΝ | F76: Δ
A77: 37435 | B77: g | C77: ΑΓΓΕΛΟΠΟΥΛΟΥ ΒΙΚΤΩΡΙΑ | D77: 2003 | E77: Α.Σ.Α.ΠΑΝΟΡΑΜΑΤΟΣ | F77: Β
A78: 37138 | B78: g | C78: ΑΓΓΕΛΟΠΟΥΛΟΥ ΔΑΝΑΗ-ΜΙΡΑΝΤΑ | D78: 2008 | E78: Σ.Α.ΡΑΦΗΝΑΣ | F78: Η
A79: 32001 | B79: g | C79: ΑΓΓΕΛΟΠΟΥΛΟΥ ΔΑΦΝΗ | D79: 2004 | E79: Ο.Α.ΑΘΛΗΤ.ΠΑΙΔΕΙΑ | F79: Η
A80: 36838 | B80: g | C80: ΑΓΓΕΛΟΠΟΥΛΟΥ ΕΛΕΝΗ | D80: 2002 | E80: Ο.Α.ΑΝΑΦΛΥΣΤΟΣ ΣΑΡΩΝΙΔΑΣ | F80: Η
A81: 31418 | B81: g | C81: ΑΓΓΕΛΟΠΟΥΛΟΥ ΙΩΑΝΝΑ | D81: 2002 | E81: Γ.Σ.ΛΙΒΥΚΟΣ ΙΕΡΑΠΕΤΡΑΣ | F81: Ζ
A82: 32473 | B82: g | C82: ΑΓΓΕΛΟΠΟΥΛΟΥ ΧΡΙΣΤΙΝΑ-ΠΑΡΑΣΚΕΥΗ | D82: 2000 | E82: Γ.Ο.ΠΕΡΙΣΤΕΡΙΟΥ Γ.ΠΑΛΑΣΚΑΣ | F82: Θ
A83: 36002 | B83: g | C83: ΑΓΓΕΛΟΠΟΥΛΟΥ-ΜΑΡΙΝΑΚΗ ΧΡΙΣΤΙΝΑ | D83: 2008 | E83: Σ.Α.ΡΑΦΗΝΑΣ | F83: Η
A84: 27358 | B84: g | C84: ΑΓΓΕΛΟΥ ΑΓΓΕΛΙΚΗ | D84: 2000 | E84: Ο.Α.ΚΟΡΩΠΙΟΥ | F84: Η
A85: 30668 | B85: g | C85: ΑΓΓΕΛΟΥ ΑΝΔΡΙΑΝΝΑ | D85: 2003 | E85: Α.Π.Ο.ΣΑΝΝΥ ΣΠΟΡΤΣ ΚΛΑΜΠ | F85: Η
A86: 31945 | B86: b | C86: ΑΓΓΕΛΟΥ ΔΗΜΗΤΡΗΣ | D86: 2001 | E86: Ο.Α.ΣΗΤΕΙΑΣ | F86: Ζ
A87: 26913 | B87: g | C87: ΑΓΓΕΛΟΥ ΕΙΡΗΝΗ-ΚΥΡΙΑΚΗ | D87: 1997 | E87: Α.Ο.Α.ΝΕΑΣ ΠΕΡΑΜΟΥ ΟΙ ΤΙΤΑΝΕΣ | F87: Α
A88: 30646 | B88: b | C88: ΑΓΓΕΛΟΥ ΛΕΩΝΙΔΑΣ | D88: 2001 | E88: Α.Π.Ο.ΣΑΝΝΥ ΣΠΟΡΤΣ ΚΛΑΜΠ | F88: Η
A89: 27355 | B89: g | C89: ΑΓΓΕΛΟΥ ΧΡΥΣΑΥΓΗ | D89: 2001 | E89: Ο.Α.ΚΟΡΩΠΙΟΥ | F89: Η
A90: 35475 | B90: b | C90: ΑΓΓΕΛΟΥΣΗΣ ΑΘΑΝΑΣΙΟΣ | D90: 2001 | E90: Α.Ο.ΚΗΦΙΣΙΑΣ | F90: Η
A91: 32512 | B91: b | C91: ΑΓΓΟΥΡΑΣ ΚΩΝΣΤΑΝΤΙΝΟΣ-ΡΑΦΑΗΛ | D91: 2005 | E91: Α.Π.Ο.ΣΑΝΝΥ ΣΠΟΡΤΣ ΚΛΑΜΠ | F91: Η
A92: 35647 | B92: b | C92: ΑΓΓΟΥΡΗΣ ΚΩΝΣΤΑΝΤΙΝΟΣ | D92: 2002 | E92: Α.Ο.Α.ΑΤΤΙΚΟΣ ΗΛΙΟΣ | F92: Η
A93: 36941 | B93: b | C93: ΑΓΓΟΥΡΙΔΑΚΗΣ ΣΤΑΥΡΟΣ | D93: 2005 | E93: Α.Ο.ΑΤΡΟΜΗΤΟΣ ΤΡΙΑΔΙΟΥ | F93: Β
A94: 25894 | B94: g | C94: ΑΓΓΟΥΡΙΔΗ ΣΤΕΦΑΝΙΑ | D94: 1999 | E94: Ο.Α.ΠΕΙΡΑΙΑ | F94: Θ
A95: 33494 | B95: g | C95: ΑΓΙΑΝΝΙΔΟΥ ΕΛΕΝΗ | D95: 2001 | E95: Ο.Α.ΓΙΑΝΝΙΤΣΩΝ | F95: Γ
A96: 34719 | B96: g | C96: ΑΓΙΑΝΝΙΔΟΥ ΕΛΕΝΗ | D96: 2005 | E96: Ο.Α.ΝΕΣΤΩΡΑΣ ΓΙΑΝΝΙΤΣΩΝ | F96: Γ
A97: 33504 | B97: b | C97: ΑΓΙΑΝΟΖΟΓΛΟΥ ΕΠΑΜΕΙΝΩΝΤΑΣ | D97: 1999 | E97: Ο.Α.ΚΩ | F97: Θ
A98: 26297 | B98: b | C98: ΑΓΙΟΥΣ ΓΕΩΡΓΙΟΣ | D98: 1999 | E98: ΚΕΡΚΥΡΑΪΚΗ Λ.Τ. | F98: Δ
A99: 31723 | B99: g | C99: ΑΓΙΟΥΣ ΟΛΓΑ-ΜΑΡΙΑ | D99: 2001 | E99: ΚΕΡΚΥΡΑΪΚΗ Λ.Τ. | F99: Δ
A100: 29210 | B100: g | C100: ΑΓΙΩΤΗ ΕΛΕΝΗ | D100: 2000 | E100: Ο.Α.ΜΑΓΝΗΣΙΑΣ | F100: Ε
A101: 25375 | B101: b | C101: ΑΓΟΡΑΣΤΟΣ ΑΝΑΣΤΑΣΙΟΣ | D101: 1998 | E101: Α.Σ.Α.ΛΑΡΙΣΑΣ | F101: Ε
A102: 26745 | B102: b | C102: ΑΓΟΡΟΠΟΥΛΟΣ ΔΗΜΗΤΡΙΟΣ | D102: 1997 | E102: Σ.Ο.Α.ΚΑΡΔΙΤΣΑΣ ΦΩΚΙΑΝΟΣ | F102: Ε
A103: 35722 | B103: b | C103: ΑΓΡΑΒΑΝΗΣ ΑΧΙΛΛΕΑΣ | D103: 2004 | E103: Ο.Α.ΦΟΙΒΟΣ ΛΑΡΙΣΑΣ | F103: Ε
A104: 35348 | B104: b | C104: ΑΓΡΑΦΙΩΤΗΣ ΕΥΣΤΑΘΙΟΣ | D104: 2001 | E104: ΚΕΝΤΡΟ ΑΝΤΙΣΦΑΙΡΙΣΗΣ ΛΙΒΑΔΕΙΑΣ | F104: Ε
A105: 30984 | B105: g | C105: ΑΓΡΑΦΙΩΤΗ-ΦΛΟΥΡΑΚΗ ΜΑΡΙΑΝΝΑ | D105: 1999 | E105: Γ.Σ.ΛΙΒΥΚΟΣ ΙΕΡΑΠΕΤΡΑΣ | F105: Ζ
A106: 27095 | B106: g | C106: ΑΓΡΟΤΗ ΑΦΡΟΔΙΤΗ | D106: 1998 | E106: Α.Ε.Κ.ΤΡΙΠΟΛΗΣ | F106: ΣΤ
A107: 27101 | B107: g | C107: ΑΓΡΟΤΗ ΣΠΥΡΙΔΟΥΛΑ | D107: 1999 | E107: Α.Ε.Κ.ΤΡΙΠΟΛΗΣ | F107: ΣΤ
A108: 34764 | B108: b | C108: ΑΔΑΛΑΚΗΣ ΘΕΟΔΩΡΟΣ-ΜΑΡΙΟΣ | D108: 2001 | E108: Ο.Α.ΑΛΕΞΑΝΔΡΟΥΠΟΛΗΣ | F108: Α
A109: 33732 | B109: g | C109: ΑΔΑΛΗ ΒΕΝΕΤΙΑ | D109: 2003 | E109: Ο.Α.ΛΕΣΒΟΥ | F109: Θ
A110: 34584 | B110: b | C110: ΑΔΑΛΟΓΛΟΥ ΑΧΙΛΛΕΑΣ | D110: 2003 | E110: Γ.Α.Σ.ΚΑΡΑΤΕ ΕΡΜΗΣ | F110: Γ
A111: 22834 | B111: b | C111: ΑΔΑΛΟΓΛΟΥ ΛΑΖΑΡΟΣ | D111: 1997 | E111: Ε.Σ.Ο.ΕΠΙΚΟΥΡΟΣ ΠΟΛΙΧΝΗΣ | F111: Β
A112: 22833 | B112: g | C112: ΑΔΑΛΟΓΛΟΥ ΜΑΓΔΑΛΗΝΗ | D112: 1999 | E112: Ε.Σ.Ο.ΕΠΙΚΟΥΡΟΣ ΠΟΛΙΧΝΗΣ | F112: Β
A113: 26407 | B113: g | C113: ΑΔΑΛΟΓΛΟΥ ΜΑΡΙΑ | D113: 1998 | E113: Ο.Α.ΒΙΚΕΛΑΣ ΒΕΡΟΙΑΣ | F113: Γ
A114: 33425 | B114: b | C114: ΑΔΑΜ ΑΛΕΞΑΝΔΡΟΣ | D114: 2005 | E114: ΦΘΙΩΤΙΚΟΣ Ο.Α. | F114: Ε
A115: 24518 | B115: g | C115: ΑΔΑΜΗ ΠΟΛΥΞΕΝΗ | D115: 1998 | E115: Α.Σ.Α.ΑΓΡΙΝΙΟΥ | F115: Δ
A116: 31576 | B116: b | C116: ΑΔΑΜΙΔΗΣ ΑΛΕΞΑΝΔΡΟΣ | D116: 2000 | E116: Ο.Α.ΠΤΟΛΕΜΑΪΔΑΣ | F116: Γ
A117: 23717 | B117: b | C117: ΑΔΑΜΙΔΗΣ ΓΕΩΡΓΙΟΣ | D117: 1998 | E117: Γ.Σ.ΗΛΙΟΥΠΟΛΗΣ | F117: ΙΑ
A118: 32801 | B118: b | C118: ΑΔΑΜΙΔΗΣ ΟΡΦΕΑΣ-ΔΑΥΙΔ | D118: 2002 | E118: Ο.Α.ΑΛΕΞΑΝΔΡΟΣ ΒΕΡΟΙΑΣ | F118: Γ
A119: 29870 | B119: b | C119: ΑΔΑΜΙΔΗΣ ΣΤΕΦΑΝΟΣ | D119: 1998 | E119: Ο.Α.ΠΤΟΛΕΜΑΪΔΑΣ | F119: Γ
A120: 34735 | B120: b | C120: ΑΔΑΜΙΔΗΣ ΤΗΛΕΜΑΧΟΣ-ΝΙΚΟΛΑΟΣ | D120: 2002 | E120: Ο.Α.ΞΑΝΘΗΣ | F120: Α
A121: 34736 | B121: g | C121: ΑΔΑΜΙΔΟΥ ΔΗΜΗΤΡΑ | D121: 2000 | E121: Ο.Α.ΞΑΝΘΗΣ | F121: Α
A122: 36066 | B122: g | C122: ΑΔΑΜΙΔΟΥ ΝΕΦΕΛΗ | D122: 2005 | E122: Ο.Α.ΠΕΤΡΟΥΠΟΛΗΣ | F122: Θ
A123: 37284 | B123: b | C123: ΑΔΑΜΟΠΟΥΛΟΣ ΙΩΑΝΝΗΣ | D123: 2005 | E123: Α.Ο.ΑΙΓΙΟΥ ΜΟΡΕΑΣ | F123: ΣΤ
A124: 35178 | B124: b | C124: ΑΔΑΜΟΠΟΥΛΟΣ ΝΙΚΟΛΑΟΣ | D124: 2005 | E124: Ο.Α.ΠΕΤΡΟΥΠΟΛΗΣ | F124: Θ
A125: 33648 | B125: g | C125: ΑΔΑΜΟΠΟΥΛΟΥ ΑΝΑΣΤΑΣΙΑ | D125: 2002 | E125: Α.Ο.Α.ΧΑΪΔΑΡΙΟΥ | F125: Θ
A126: 33169 | B126: g | C126: ΑΔΑΜΟΠΟΥΛΟΥ ΒΕΡΟΝΙΚΗ-ΓΕΩΡΓΙΑ | D126: 2004 | E126: Α.Ε.Τ.ΝΙΚΗ ΠΑΤΡΩΝ | F126: ΣΤ
A127: 33331 | B127: g | C127: ΑΔΑΜΟΠΟΥΛΟΥ ΜΑΓΔΑΛΙΝΗ | D127: 2003 | E127: Ο.Α.ΠΕΤΡΟΥΠΟΛΗΣ | F127: Θ
A128: 33170 | B128: g | C128: ΑΔΑΜΟΠΟΥΛΟΥ ΜΑΡΙΑΝΑ-ΣΤΑΥΡΟΥΛΑ | D128: 2002 | E128: Α.Ε.Τ.ΝΙΚΗ ΠΑΤΡΩΝ | F128: ΣΤ
A129: 31610 | B129: b | C129: ΑΔΑΜΟΣ ΒΑΣΙΛΗΣ | D129: 2000 | E129: Ο.Α.ΤΡΙΚΑΛΩΝ | F129: Ε
A130: 27826 | B130: g | C130: ΑΔΑΣΗ ΕΙΡΗΝΗ | D130: 1998 | E130: Α.Ο.Α.ΧΑΪΔΑΡΙΟΥ | F130: Θ
A131: 32735 | B131: g | C131: ΑΕΡΑΚΗ ΕΛΕΝΑ | D131: 1999 | E131: Ο.Α.ΒΟΥΛΙΑΓΜΕΝΗΣ ΜΙΚΡΟΙ ΑΣΣΟΙ | F131: ΙΑ
A132: 29000 | B132: g | C132: ΑΖΛΗ ΑΙΚΑΤΕΡΙΝΗ | D132: 2001 | E132: Α.Ο.Α.ΝΕΑΣ ΠΕΡΑΜΟΥ ΟΙ ΤΙΤΑΝΕΣ | F132: Α
A133: 29148 | B133: g | C133: ΑΘΑΝΑΣΑΚΗ ΣΤΕΦΑΝΙΑ | D133: 2000 | E133: Ο.Α.ΒΟΛΟΥ | F133: Ε
A134: 34107 | B134: b | C134: ΑΘΑΝΑΣΑΚΗΣ ΝΙΚΟΛΑΟΣ | D134: 2000 | E134: Γ.Ο.ΠΕΡΙΣΤΕΡΙΟΥ Γ.ΠΑΛΑΣΚΑΣ | F134: Θ
A135: 30163 | B135: b | C135: ΑΘΑΝΑΣΑΚΗΣ ΧΡΗΣΤΟΣ | D135: 2000 | E135: Ο.Α.ΧΑΝΙΩΝ | F135: Ζ
A136: 34737 | B136: g | C136: ΑΘΑΝΑΣΙΑ ΑΔΑΜΙΔΟΥ | D136: 2000 | E136: Ο.Α.ΞΑΝΘΗΣ | F136: Α
A137: 36634 | B137: g | C137: ΑΘΑΝΑΣΙΑΔΗ ΙΩΑΝΝΑ | D137: 2003 | E137: Α.Ε.Κ.ΤΡΙΠΟΛΗΣ | F137: ΣΤ
A138: 28114 | B138: g | C138: ΑΘΑΝΑΣΙΑΔΗ ΧΡΙΣΤΙΝΑ | D138: 2001 | E138: Σ.Α.ΤΡΙΠΟΛΗΣ | F138: ΣΤ
A139: 28117 | B139: b | C139: ΑΘΑΝΑΣΙΑΔΗΣ ΑΝΑΣΤΑΣΙΟΣ | D139: 1998 | E139: Σ.Α.ΤΡΙΠΟΛΗΣ | F139: ΣΤ
A140: 37436 | B140: b | C140: ΑΘΑΝΑΣΙΑΔΗΣ ΓΕΩΡΓΙΟΣ | D140: 2001 | E140: Α.Σ.ΑΚΑΔΗΜΙΕΣ ΠΡΩΤΑΘΛΗΤΩΝ ΠΕΥΚΩΝ | F140: Β
A141: 36350 | B141: b | C141: ΑΘΑΝΑΣΙΑΔΗΣ ΔΗΜΗΤΡΙΟΣ | D141: 2008 | E141: Ν.Ο.Ν.Α.Μ | F141: Γ
A142: 28160 | B142: b | C142: ΑΘΑΝΑΣΙΑΔΗΣ ΙΩΑΝΝΗΣ | D142: 1998 | E142: Α.Ο.Α.ΠΡΩΤΑΘΛ.ΚΑΒΑΛΑΣ | F142: Α
A143: 34721 | B143: g | C143: ΑΘΑΝΑΣΙΑΔΟΥ ΝΙΚΟΛΙΝΑ | D143: 2003 | E143: Ο.Α.ΝΕΣΤΩΡΑΣ ΓΙΑΝΝΙΤΣΩΝ | F143: Γ
A144: 33958 | B144: g | C144: ΑΘΑΝΑΣΙΑΔΟΥ ΧΡΥΣΑ-ΖΑΝΝΑ | D144: 2007 | E144: Α.Ο.ΧΡΥΣΟΥΠΟΛΗΣ | F144: Α
A145: 24876 | B145: b | C145: ΑΘΑΝΑΣΙΟΥ ΑΘΑΝΑΣΙΟΣ | D145: 1998 | E145: Σ.Α.ΤΡΙΠΟΛΗΣ | F145: ΣΤ
A146: 27215 | B146: g | C146: ΑΘΑΝΑΣΙΟΥ ΑΛΕΞΑΝΔΡΑ | D146: 1999 | E146: Ο.Α.ΘΕΣΠΡΩΤΙΑΣ ΤΙΤΑΝΗ | F146: Δ
A147: 24833 | B147: b | C147: ΑΘΑΝΑΣΙΟΥ ΒΑΣΙΛΕΙΟΣ | D147: 1997 | E147: Σ.Ο.Α.ΚΑΡΔΙΤΣΑΣ ΦΩΚΙΑΝΟΣ | F147: Ε
A148: 36449 | B148: b | C148: ΑΘΑΝΑΣΙΟΥ ΒΑΣΙΛΗΣ | D148: 2004 | E148: ΡΟΔΙΑΚΗ ΑΚΑΔ.ΑΝΤΙΣΦ. | F148: Θ
A149: 37480 | B149: g | C149: ΑΘΑΝΑΣΙΟΥ ΔΑΝΑΗ | D149: 2007 | E149: Ο.Α.ΦΟΙΒΟΣ ΛΑΡΙΣΑΣ | F149: Ε
A150: 28706 | B150: g | C150: ΑΘΑΝΑΣΙΟΥ ΕΛΕΝΗ | D150: 1998 | E150: Ο.Α.ΛΑΥΡΙΟΥ | F150: Η
A151: 36569 | B151: b | C151: ΑΘΑΝΑΣΙΟΥ ΕΥΘΥΜΙΟΣ | D151: 2005 | E151: Ο.Α.ΠΕΙΡΑΙΑ | F151: Θ
A152: 22158 | B152: g | C152: ΑΘΑΝΑΣΙΟΥ ΜΑΡΙΑ | D152: 1997 | E152: Ο.Α.ΘΕΣΠΡΩΤΙΑΣ ΤΙΤΑΝΗ | F152: Δ
A153: 22257 | B153: b | C153: ΑΘΑΝΑΣΟΠΟΥΛΟΣ ΑΛΕΞΑΝΔΡΟΣ | D153: 1997 | E153: Α.Ο.ΜΕΓΑΣ ΑΛΕΞΑΝΔΡΟΣ | F153: ΙΑ
A154: 28904 | B154: b | C154: ΑΘΑΝΑΣΟΠΟΥΛΟΣ ΒΑΣΙΛΕΙΟΣ | D154: 2003 | E154: Σ.Α.ΜΕΣΣΗΝΗΣ | F154: ΣΤ
A155: 37551 | B155: b | C155: ΑΘΑΝΑΣΟΠΟΥΛΟΣ ΔΗΜΗΤΡΙΟΣ | D155: 2007 | E155: Γ.Σ.ΗΛΙΟΥΠΟΛΗΣ | F155: ΙΑ
A156: 36444 | B156: b | C156: ΑΘΑΝΑΣΟΠΟΥΛΟΣ ΘΕΟΔΩΡΟΣ | D156: 2007 | E156: Α.Ε.Κ.ΤΡΙΠΟΛΗΣ | F156: ΣΤ
A157: 33893 | B157: b | C157: ΑΘΑΝΑΣΟΠΟΥΛΟΣ ΙΩΑΝΝΗΣ | D157: 2005 | E157: Α.Ο.ΑΙΓΙΟΥ ΜΟΡΕΑΣ | F157: ΣΤ
A158: 34728 | B158: b | C158: ΑΘΑΝΑΣΟΠΟΥΛΟΣ ΚΩΝΣΤΑΝΤΙΝΟΣ | D158: 2006 | E158: Ο.Α.ΝΑΥΠΑΚΤΟΥ | F158: ΣΤ
A159: 32552 | B159: b | C159: ΑΘΑΝΑΣΟΠΟΥΛΟΣ ΝΙΚΟΛΑΟΣ | D159: 2007 | E159: Ο.Α.ΑΙΓΙΑΛΕΙΑΣ | F159: ΣΤ
A160: 37552 | B160: b | C160: ΑΘΑΝΑΣΟΠΟΥΛΟΣ ΝΙΚΟΛΑΟΣ | D160: 2005 | E160: Γ.Σ.ΗΛΙΟΥΠΟΛΗΣ | F160: ΙΑ
A161: 37777 | B161: b | C161: ΑΘΑΝΑΣΟΠΟΥΛΟΣ ΣΩΤΗΡΗΣ | D161: 2007 | E161: Γ.Σ.ΗΛΙΟΥΠΟΛΗΣ | F161: ΙΑ
A162: 32613 | B162: g | C162: ΑΘΑΝΑΣΟΠΟΥΛΟΥ ΑΝΑΣΤΑΣΙΑ | D162: 1999 | E162: Σ.Α.ΜΕΣΣΗΝΗΣ | F162: ΣΤ
A163: 37044 | B163: g | C163: ΑΘΑΝΑΣΟΠΟΥΛΟΥ ΗΛΙΑΝΑ-ΓΕΩΡΓΙΑ | D163: 2007 | E163: Ο.Α.ΚΑΛΑΜΑΤΑΣ | F163: ΣΤ
A164: 37043 | B164: g | C164: ΑΘΑΝΑΣΟΠΟΥΛΟΥ ΜΑΡΙΑ-ΙΟΥΛΙΑ | D164: 2003 | E164: Ο.Α.ΚΑΛΑΜΑΤΑΣ | F164: ΣΤ
A165: 28905 | B165: g | C165: ΑΘΑΝΑΣΟΠΟΥΛΟΥ ΣΤΑΥΡΟΥΛΑ | D165: 2003 | E165: Σ.Α.ΜΕΣΣΗΝΗΣ | F165: ΣΤ
A166: 34226 | B166: b | C166: ΑΘΑΝΑΣΟΥΛΑΣ ΕΚΤΟΡΑΣ | D166: 2002 | E166: Α.Ο.ΣΙΚΥΩΝΟΣ ΚΙΑΤΟΥ | F166: ΣΤ
A167: 32569 | B167: b | C167: ΑΘΑΝΑΣΟΥΛΗΣ ΣΩΤΗΡΙΟΣ | D167: 2001 | E167: Ο.Α.ΑΓΙΑΣ ΠΑΡΑΣΚΕΥΗΣ | F167: Η
A168: 32568 | B168: b | C168: ΑΘΑΝΑΣΟΥΛΗΣ ΦΙΛΙΠΠΟΣ | D168: 2003 | E168: Ο.Α.ΑΓΙΑΣ ΠΑΡΑΣΚΕΥΗΣ | F168: Η
A169: 21620 | B169: g | C169: ΑΘΗΝΑ ΠΕΡΣΙΔΟΥ | D169: 1997 | E169: Σ.Α.ΔΡΑΜΑΣ | F169: Α
A170: 31592 | B170: b | C170: ΑΪΒΑΖΙΔΗΣ ΕΥΑΓΓΕΛΟΣ | D170: 1999 | E170: Α.Ο.ΑΤΡΟΜΗΤΟΣ ΤΡΙΑΔΙΟΥ | F170: Β
A171: 25675 | B171: g | C171: ΑΪΒΑΛΙΩΤΗ ΑΡΕΤΗ-ΑΗΔΟΝΗ | D171: 1997 | E171: Ο.Α.ΩΡΑΙΟΚΑΣΤΡΟΥ Ο ΑΝΤΑΙΟΣ | F171: Β
A172: 34850 | B172: g | C172: ΑϊΒΑΛΙΩΤΗ ΝΙΚΗ | D172: 2006 | E172: Ο.Α.ΣΠΑΡΤΗΣ | F172: ΣΤ
A173: 33602 | B173: b | C173: ΑϊΒΑΛΙΩΤΗΣ ΡΟΣ-ΑΝΤΩΝΙΟΣ | D173: 2002 | E173: Ν.Ο.ΘΕΣΣΑΛΟΝΙΚΗΣ | F173: Β
A174: 26938 | B174: g | C174: ΑΙΓΙΝΗΤΟΥ ΕΛΕΝΗ | D174: 1997 | E174: Ο.Α.ΠΑΡΟΥ | F174: Η
A175: 34738 | B175: g | C175: ΑΪΔΙΝΙΔΟΥ ΧΡΙΣΤΙΝΑ | D175: 2002 | E175: Ο.Α.ΞΑΝΘΗΣ | F175: Α
A176: 36168 | B176: g | C176: ΑΙΚΑΤΕΡΙΝΗ ΤΣΟΤΣΟΛΗ | D176: 2001 | E176: Α.Μ.Σ.ΠΑΝΟΡΑΜΑΤΟΣ | F176: Β
A177: 36313 | B177: g | C177: ΑΪΛΑΜΑΚΗ ΙΩΑΝΝΑ | D177: 2004 | E177: Ο.Α.ΣΗΤΕΙΑΣ | F177: Ζ
A178: 29385 | B178: g | C178: ΑΪΛΑΜΑΚΗ ΣΤΥΛΙΑΝΗ | D178: 2003 | E178: Ο.Α.ΝΙΚΑΙΑ ΛΑΡΙΣΑΣ | F178: Ε
A179: 34910 | B179: g | C179: ΑϊΝΑΛΙΔΟΥ ΚΥΡΙΑΚΗ | D179: 2005 | E179: Ο.Α.ΑΡΙΔΑΙΑΣ | F179: Γ
A180: 27852 | B180: g | C180: ΑΪΝΑΤΖΟΓΛΟΥ ΑΛΕΞΑΝΔΡΑ | D180: 1998 | E180: Μ.Γ.Σ.ΑΠΟΛΛΩΝ ΚΑΛΑΜΑΡΙΑΣ | F180: Β
A181: 27850 | B181: g | C181: ΑΪΝΑΤΖΟΓΛΟΥ ΚΩΝΣΤΑΝΤΙΝΑ | D181: 1997 | E181: Μ.Γ.Σ.ΑΠΟΛΛΩΝ ΚΑΛΑΜΑΡΙΑΣ | F181: Β
A182: 27745 | B182: g | C182: ΑΙΣΩΠΟΥ ΙΩΑΝΝΑ | D182: 1999 | E182: Ο.Α.ΚΕΡΑΤΣΙΝΙΟΥ | F182: Θ
A183: 35696 | B183: b | C183: ΑΚΑΡΕΠΗΣ ΑΝΔΡΕΑΣ | D183: 1999 | E183: Ο.Α.ΑΝΑΦΛΥΣΤΟΣ ΣΑΡΩΝΙΔΑΣ | F183: Η
A184: 29164 | B184: b | C184: ΑΚΙΔΗΣ ΜΗΝΑΣ | D184: 1997 | E184: Ο.Α.ΑΛΕΞΑΝΔΡΟΥΠΟΛΗΣ | F184: Α
A185: 29252 | B185: g | C185: ΑΚΡΙΒΟΥΛΗ ΚΩΝΣΤΑΝΤΙΝΑ | D185: 2000 | E185: Ο.Α.ΝΙΚΑΙΑ ΛΑΡΙΣΑΣ | F185: Ε
A186: 31732 | B186: g | C186: ΑΚΡΙΤΙΔΟΥ ΑΜΑΛΙΑ | D186: 2000 | E186: Μ.Α.Σ.ΑΕΤΟΣ ΘΕΣΣΑΛΟΝΙΚΗΣ | F186: Β
A187: 31733 | B187: g | C187: ΑΚΡΙΤΙΔΟΥ ΑΝΝΕΤΑ | D187: 1998 | E187: Μ.Α.Σ.ΑΕΤΟΣ ΘΕΣΣΑΛΟΝΙΚΗΣ | F187: Β
A188: 34683 | B188: g | C188: ΑΚΡΙΤΙΔΟΥ ΑΡΕΤΗ | D188: 2001 | E188: ΠΑΝΘΡΑΚΙΚΟΣ Ο.Α.ΚΟΜΟΤΗΝΗΣ | F188: Α
A189: 31734 | B189: g | C189: ΑΚΡΙΤΙΔΟΥ ΕΥΑΓΓΕΛΙΑ | D189: 2000 | E189: Μ.Α.Σ.ΑΕΤΟΣ ΘΕΣΣΑΛΟΝΙΚΗΣ | F189: Β
A190: 32961 | B190: g | C190: ΑΚΤΥΠΗ-ΓΟΥΝΕ ΑΝΔΡΙΑΝΗ | D190: 2005 | E190: ΖΑΚΥΝΘΙΝΟΣ Α.Ο.Α | F190: ΣΤ
A191: 25768 | B191: g | C191: ΑΛΑΒΕΡΑ ΜΑΡΙΑ-ΕΛΕΝΗ | D191: 1997 | E191: Ο.Α.ΚΩ | F191: Θ
A192: 32598 | B192: g | C192: ΑΛΑΜΑΝΙΩΤΗ ΠΟΛΥΞΕΝΗ | D192: 2002 | E192: Ο.Α.ΜΑΓΝΗΣΙΑΣ | F192: Ε
A193: 36771 | B193: b | C193: ΑΛΑΜΑΝΙΩΤΗΣ ΕΜΜΑΝΟΥΗΛ | D193: 2006 | E193: Α.Ο.Α.ΛΕ ΡΑΚΕΤ | F193: Β
A194: 27208 | B194: b | C194: ΑΛΑΜΑΝΙΩΤΗΣ ΧΡΗΣΤΟΣ | D194: 1998 | E194: Ο.Α.ΚΩ | F194: Θ
A195: 27991 | B195: g | C195: ΑΛΑΜΑΝΤΑΡΙΩΤΗ ΒΙΟΛΕΤΤΑ | D195: 1997 | E195: Γ.Σ.ΙΤΕΑΣ | F195: Ε
A196: 28782 | B196: g | C196: ΑΛΑΤΑ ΕΥΦΡΟΣΥΝΗ | D196: 1997 | E196: Ο.Α.ΣΟΥΡΩΤΗΣ ΑΛΕΞΑΝΔΡΟΣ | F196: Β
A197: 25403 | B197: g | C197: ΑΛΑΦΟΣΤΕΡΓΙΟΥ ΒΑΣΙΛΙΚΗ | D197: 1997 | E197: Α.Κ.ΖΩΓΡΑΦΟΥ | F197: ΙΑ
A198: 36307 | B198: b | C198: ΑΛΑΧΟΥΖΟΣ ΝΙΚΟΛΑΟΣ | D198: 2002 | E198: Α.Σ.ΑΠΟΛΛΩΝ ΚΑΛΥΜΝΟΥ | F198: Θ
A199: 36045 | B199: g | C199: ΑΛΒΑΝΑΚΗ ΕΛΙΣΑΒΕΤ-ΛΥΔΙΑ | D199: 2000 | E199: ΡΟΔΙΑΚΟΣ Ο.Α. | F199: Θ
A200: 33534 | B200: g | C200: ΑΛΒΑΝΟΠΟΥΛΟΥ ΜΑΡΙΑ | D200: 2000 | E200: Α.Ο.Α.ΦΙΛΟΘΕΗΣ | F200: Η
... 10574 more rows

Sheet Stat
